Department,Entity, Transaction Date, Expense Type, Expense Area, Supplier Name,Transaction number, Amount, Invoice Description
DFID,DFID,03/04/2017,Hotels - Accommodation only ,Conflict  Humanitarian  Security & Stabilisation Division ,Corporate Travel Provider ,100049-102 ,503.40,
DFID,DFID,03/04/2017,Air fares ,Conflict  Humanitarian  Security & Stabilisation Division ,Corporate Travel Provider ,100049-133 ,644.86,
DFID,DFID,03/04/2017,Air fares ,Conflict  Humanitarian  Security & Stabilisation Division ,Corporate Travel Provider ,100049-133 ,"1,074.16",
DFID,DFID,03/04/2017,Air fares ,Conflict  Humanitarian  Security & Stabilisation Division ,Corporate Travel Provider ,100049-133 ,"1,278.37",
DFID,DFID,03/04/2017,Hotels - Accommodation only ,Conflict  Humanitarian  Security & Stabilisation Division ,Corporate Travel Provider ,100049-133 ,935.15,
DFID,DFID,03/04/2017,Hotels - Accommodation only ,Conflict  Humanitarian  Security & Stabilisation Division ,Corporate Travel Provider ,100049-133 ,935.15,
DFID,DFID,03/04/2017,Hotels - Accommodation only ,Conflict  Humanitarian  Security & Stabilisation Division ,Corporate Travel Provider ,100049-133 ,"1,078.28",
DFID,DFID,03/04/2017,Hotels - Accommodation only ,Conflict  Humanitarian  Security & Stabilisation Division ,Corporate Travel Provider ,100049-133 ,"1,078.28",
DFID,DFID,03/04/2017,Air fares ,Conflict  Humanitarian  Security & Stabilisation Division ,Corporate Travel Provider ,100049-133 ,"1,054.77",
DFID,DFID,03/04/2017,Hotels - Accommodation only ,West and Southern Africa ,Corporate Travel Provider ,100068-101 ,643.84,
DFID,DFID,13/04/2017,Training - Travel & Subsistence ,East and Central Africa ,Foreign & Commonwealth Office ,100082-101 ,678.43,
DFID,DFID,11/04/2017,Training - Travel & Subsistence ,East and Central Africa ,Foreign & Commonwealth Office ,100082-101 ,675.13,
DFID,DFID,03/04/2017,Air fares ,Asia  Caribbean and Overseas Territories ,Corporate Travel Provider ,100084-101 ,"1,864.60",
DFID,DFID,03/04/2017,Air fares ,Asia  Caribbean and Overseas Territories ,Corporate Travel Provider ,100084-101 ,"1,018.47",
DFID,DFID,03/04/2017,Air fares ,Asia  Caribbean and Overseas Territories ,Corporate Travel Provider ,100084-101 ,"1,018.47",
DFID,DFID,03/04/2017,Air fares ,Asia  Caribbean and Overseas Territories ,Corporate Travel Provider ,100084-101 ,619.20,
DFID,DFID,03/04/2017,Air fares ,Asia  Caribbean and Overseas Territories ,Corporate Travel Provider ,100084-101 ,619.20,
DFID,DFID,03/04/2017,Air fares ,Asia  Caribbean and Overseas Territories ,Corporate Travel Provider ,100084-101 ,"2,079.30",
DFID,DFID,03/04/2017,Air fares ,Asia  Caribbean and Overseas Territories ,Corporate Travel Provider ,100084-101 ,538.50,
DFID,DFID,03/04/2017,Air fares ,International Relations Division ,Corporate Travel Provider ,100086-101 ,680.00,
DFID,DFID,03/04/2017,Air fares ,International Relations Division ,Corporate Travel Provider ,100086-101 ,501.90,
DFID,DFID,03/04/2017,Air fares ,Global Funds ,Corporate Travel Provider ,100098-101 ,784.40,
DFID,DFID,03/04/2017,Air fares ,Global Funds ,Corporate Travel Provider ,100098-101 ,860.10,
DFID,DFID,03/04/2017,Air fares ,Economic Development Division ,Corporate Travel Provider ,100111-101 ,932.77,
DFID,DFID,03/04/2017,Air fares ,Internal Audit ,Corporate Travel Provider ,100121-101 ,881.06,
DFID,DFID,03/04/2017,Air fares ,Internal Audit ,Corporate Travel Provider ,100121-101 ,"1,265.87",
DFID,DFID,03/04/2017,Air fares ,Internal Audit ,Corporate Travel Provider ,100121-101 ,"1,451.37",
DFID,DFID,03/04/2017,Air fares ,Internal Audit ,Corporate Travel Provider ,100121-101 ,"1,451.37",
DFID,DFID,03/04/2017,Air fares ,Internal Audit ,Corporate Travel Provider ,100121-101 ,881.26,
DFID,DFID,03/04/2017,Air fares ,Internal Audit ,Corporate Travel Provider ,100121-101 ,881.26,
DFID,DFID,03/04/2017,Air fares ,Internal Audit ,Corporate Travel Provider ,100121-101 ,881.26,
DFID,DFID,05/04/2017,Air fares ,Internal Audit ,Foreign & Commonwealth Office ,100121-101 ,806.36,
DFID,DFID,03/04/2017,Air fares ,Economic Development Division ,Corporate Travel Provider ,100124-101 ,809.17,
DFID,DFID,03/04/2017,Hotels - Accommodation only ,Economic Development Division ,Corporate Travel Provider ,100124-101 ,847.70,
DFID,DFID,03/04/2017,Air fares ,Middle East and North Africa Division ,Corporate Travel Provider ,100146-101 ,695.97,
DFID,DFID,19/04/2017,Hotels - Accommodation only ,Middle East and North Africa Division ,Foreign & Commonwealth Office ,100146-101 ,678.92,
DFID,DFID,03/04/2017,Air fares ,Middle East and North Africa Division ,Corporate Travel Provider ,100146-101 ,"1,151.70",
DFID,DFID,19/04/2017,Mobile telephones & accessories,West and Southern Africa ,Foreign & Commonwealth Office ,100148-101 ,773.71,
DFID,DFID,03/04/2017,Air fares ,West and Southern Africa ,Supplier Name withheld ,100152-114 ,938.57,
DFID,DFID,03/04/2017,Air fares ,Communications Division ,Corporate Travel Provider ,100154-101 ,681.41,
DFID,DFID,03/04/2017,Air fares ,Finance and Corporate Performance Division ,Corporate Travel Provider ,100201-101 ,571.30,
DFID,DFID,11/04/2017,Other Admin Costs ,East and Central Africa ,Foreign & Commonwealth Office ,100230-101 ,"3,006.17",
DFID,DFID,03/04/2017,Air fares ,Top Management Group ,Corporate Travel Provider ,100232-102 ,"4,261.97",
DFID,DFID,03/04/2017,Air fares ,Top Management Group ,Corporate Travel Provider ,100232-102 ,847.10,
DFID,DFID,03/04/2017,Air fares ,Top Management Group ,Corporate Travel Provider ,100232-102 ,"1,494.30",
DFID,DFID,03/04/2017,Air fares ,Top Management Group ,Corporate Travel Provider ,100232-102 ,"1,494.30",
DFID,DFID,03/04/2017,Air fares ,Top Management Group ,Corporate Travel Provider ,100232-102 ,"1,094.97",
DFID,DFID,03/04/2017,Air fares ,Top Management Group ,Corporate Travel Provider ,100232-102 ,"2,316.17",
DFID,DFID,03/04/2017,Air fares ,Top Management Group ,Corporate Travel Provider ,100232-102 ,697.30,
DFID,DFID,03/04/2017,Air fares ,Top Management Group ,Corporate Travel Provider ,100232-102 ,"2,315.87",
DFID,DFID,03/04/2017,Air fares ,Top Management Group ,Corporate Travel Provider ,100232-103 ,"1,094.97",
DFID,DFID,03/04/2017,Air fares ,Top Management Group ,Corporate Travel Provider ,100232-103 ,"1,494.30",
DFID,DFID,03/04/2017,Air fares ,Top Management Group ,Corporate Travel Provider ,100232-103 ,"2,259.47",
DFID,DFID,03/04/2017,Air fares ,Top Management Group ,Corporate Travel Provider ,100232-104 ,"1,635.37",
DFID,DFID,03/04/2017,Air fares ,Top Management Group ,Corporate Travel Provider ,100232-104 ,"1,635.37",
DFID,DFID,03/04/2017,Air fares ,Top Management Group ,Corporate Travel Provider ,100232-104 ,814.90,
DFID,DFID,03/04/2017,Air fares ,Top Management Group ,Corporate Travel Provider ,100232-104 ,814.90,
DFID,DFID,03/04/2017,Air fares ,Top Management Group ,Corporate Travel Provider ,100232-104 ,"2,519.67",
DFID,DFID,03/04/2017,Hotels - Accommodation only ,Top Management Group ,Corporate Travel Provider ,100232-105 ,509.12,
DFID,DFID,03/04/2017,Air fares ,Top Management Group ,Corporate Travel Provider ,100232-105 ,"1,204.57",
DFID,DFID,03/04/2017,Air fares ,Top Management Group ,Corporate Travel Provider ,100232-105 ,"1,564.17",
DFID,DFID,03/04/2017,Air fares ,Top Management Group ,Corporate Travel Provider ,100232-105 ,882.60,
DFID,DFID,03/04/2017,Air fares ,Top Management Group ,Corporate Travel Provider ,100232-105 ,754.40,
DFID,DFID,03/04/2017,Air fares ,Top Management Group ,Corporate Travel Provider ,100232-105 ,"1,635.37",
DFID,DFID,03/04/2017,Air fares ,Top Management Group ,Corporate Travel Provider ,100232-105 ,814.90,
DFID,DFID,03/04/2017,Air fares ,Top Management Group ,Corporate Travel Provider ,100232-106 ,706.50,
DFID,DFID,03/04/2017,Air fares ,Top Management Group ,Corporate Travel Provider ,100232-106 ,706.50,
DFID,DFID,03/04/2017,Air fares ,Top Management Group ,Corporate Travel Provider ,100232-106 ,"1,040.67",
DFID,DFID,03/04/2017,Air fares ,Top Management Group ,Corporate Travel Provider ,100232-106 ,"1,321.67",
DFID,DFID,03/04/2017,Air fares ,Top Management Group ,Corporate Travel Provider ,100232-106 ,"1,321.67",
DFID,DFID,03/04/2017,Air fares ,Top Management Group ,Corporate Travel Provider ,100232-106 ,"1,421.70",
DFID,DFID,03/04/2017,Air fares ,Top Management Group ,Corporate Travel Provider ,100232-106 ,"1,421.70",
DFID,DFID,03/04/2017,Air fares ,Top Management Group ,Corporate Travel Provider ,100232-107 ,"1,080.77",
DFID,DFID,03/04/2017,Air fares ,Top Management Group ,Corporate Travel Provider ,100232-108 ,"2,893.17",
DFID,DFID,03/04/2017,Air fares ,Top Management Group ,Corporate Travel Provider ,100232-108 ,"2,893.17",
DFID,DFID,10/04/2017,Electricity ,International Relations Division ,Foreign & Commonwealth Office ,100238-101 ,"1,021.36",
DFID,DFID,10/04/2017,Gas ,International Relations Division ,Foreign & Commonwealth Office ,100238-101 ,"1,205.21",
DFID,DFID,10/04/2017,Office Equipment - Maintenance ,International Relations Division ,Foreign & Commonwealth Office ,100238-101 ,576.87,
DFID,DFID,10/04/2017,Office Equipment - Maintenance ,International Relations Division ,Foreign & Commonwealth Office ,100238-101 ,"1,025.52",
DFID,DFID,03/04/2017,Air fares ,Policy Division ,Corporate Travel Provider ,100191-101 ,806.80,
DFID,DFID,03/04/2017,Air fares ,International Relations Division ,Corporate Travel Provider ,100240-101 ,504.95,
DFID,DFID,03/04/2017,Air fares ,Human Resources ,Corporate Travel Provider ,100268-101 ,544.71,
DFID,DFID,03/04/2017,Air fares ,Middle East and North Africa Division ,Corporate Travel Provider ,100307-101 ,539.75,
DFID,DFID,03/04/2017,Air fares ,Middle East and North Africa Division ,Corporate Travel Provider ,100307-101 ,"2,519.67",
DFID,DFID,03/04/2017,Hotels - Accommodation only ,Asia  Caribbean and Overseas Territories ,Corporate Travel Provider ,101601-110 ,530.12,
DFID,DFID,03/04/2017,Air fares ,Asia  Caribbean and Overseas Territories ,Corporate Travel Provider ,101601-110 ,"1,075.57",
DFID,DFID,03/04/2017,Hotels - Accommodation only ,Asia  Caribbean and Overseas Territories ,Corporate Travel Provider ,101601-110 ,"2,488.90",
DFID,DFID,11/04/2017,Air fares ,Asia  Caribbean and Overseas Territories ,Foreign & Commonwealth Office ,101601-110 ,"10,484.00",
DFID,DFID,13/04/2017,Other passenger transport ,Asia  Caribbean and Overseas Territories ,Foreign & Commonwealth Office ,101601-110 ,"1,243.08",
DFID,DFID,13/04/2017,Contract Catering Services ,Asia  Caribbean and Overseas Territories ,Foreign & Commonwealth Office ,101601-110 ,"1,512.86",
DFID,DFID,11/04/2017,Air fares ,Asia  Caribbean and Overseas Territories ,Foreign & Commonwealth Office ,101601-110 ,"1,362.02",
DFID,DFID,11/04/2017,Air fares ,Asia  Caribbean and Overseas Territories ,Foreign & Commonwealth Office ,101601-110 ,"32,722.51",Secure air transport support costs for  Kabul for March 2017
DFID,DFID,03/04/2017,Air fares ,Asia  Caribbean and Overseas Territories ,Corporate Travel Provider ,101601-110 ,"1,460.00",
DFID,DFID,03/04/2017,Air fares ,Asia  Caribbean and Overseas Territories ,Corporate Travel Provider ,101601-110 ,"1,570.27",
DFID,DFID,03/04/2017,Air fares ,Asia  Caribbean and Overseas Territories ,Corporate Travel Provider ,101601-110 ,"1,506.67",
DFID,DFID,19/04/2017,Air fares ,Asia  Caribbean and Overseas Territories ,Foreign & Commonwealth Office ,101601-110 ,"9,843.00",
DFID,DFID,19/04/2017,Contract Catering Services ,Asia  Caribbean and Overseas Territories ,Foreign & Commonwealth Office ,101601-110 ,"1,554.03",
DFID,DFID,19/04/2017,Contract Catering Services ,Asia  Caribbean and Overseas Territories ,Foreign & Commonwealth Office ,101601-110 ,"1,111.49",
DFID,DFID,19/04/2017,Contract Catering Services ,Asia  Caribbean and Overseas Territories ,Foreign & Commonwealth Office ,101601-110 ,"1,512.86",
DFID,DFID,03/04/2017,Air fares ,East and Central Africa ,Corporate Travel Provider ,100016-107 ,974.27,
DFID,DFID,03/04/2017,Air fares ,East and Central Africa ,Corporate Travel Provider ,100016-107 ,"3,018.47",
DFID,DFID,03/04/2017,Air fares ,East and Central Africa ,Corporate Travel Provider ,100016-107 ,"2,315.87",
DFID,DFID,03/04/2017,Air fares ,East and Central Africa ,Corporate Travel Provider ,100016-107 ,"1,464.50",
DFID,DFID,03/04/2017,Air fares ,Research and Evidence Division ,Corporate Travel Provider ,100039-108 ,"1,171.20",
DFID,DFID,03/04/2017,Air fares ,Research and Evidence Division ,Corporate Travel Provider ,100039-111 ,"2,961.17",
DFID,DFID,03/04/2017,Air fares ,Policy Division ,Corporate Travel Provider ,100274-111 ,"2,640.87",
DFID,DFID,03/04/2017,Air fares ,Policy Division ,Corporate Travel Provider ,100274-111 ,689.57,
DFID,DFID,03/04/2017,Air fares ,Policy Division ,Corporate Travel Provider ,100274-111 ,890.40,
DFID,DFID,03/04/2017,Air fares ,Policy Division ,Corporate Travel Provider ,100275-101 ,"1,430.60",
DFID,DFID,03/04/2017,Air fares ,Economic Development Division ,Corporate Travel Provider ,100276-101 ,"1,219.47",
DFID,DFID,07/04/2017,Air fares ,Policy Division ,Foreign & Commonwealth Office ,100277-101 ,"3,358.03",
DFID,DFID,07/04/2017,Air fares ,Policy Division ,Foreign & Commonwealth Office ,100277-101 ,831.07,
DFID,DFID,03/04/2017,Air fares ,Policy Division ,Corporate Travel Provider ,100277-101 ,925.96,
DFID,DFID,05/04/2017,Furniture & Fittings ,Asia  Caribbean and Overseas Territories ,Foreign & Commonwealth Office ,101604-101 ,"1,162.48",
DFID,DFID,05/04/2017,Training - Travel & Subsistence ,Asia  Caribbean and Overseas Territories ,Foreign & Commonwealth Office ,101604-101 ,768.27,
DFID,DFID,25/04/2017,Hotels - Accommodation only ,Asia  Caribbean and Overseas Territories ,Foreign & Commonwealth Office ,101604-101 ,933.75,
DFID,DFID,25/04/2017,Air fares ,Asia  Caribbean and Overseas Territories ,Foreign & Commonwealth Office ,101604-101 ,556.61,
DFID,DFID,19/04/2017,Hotels - Accommodation only ,Asia  Caribbean and Overseas Territories ,Foreign & Commonwealth Office ,101605-101 ,"2,173.39",
DFID,DFID,19/04/2017,Hotels - Accommodation only ,Asia  Caribbean and Overseas Territories ,Foreign & Commonwealth Office ,101605-101 ,"1,190.95",
DFID,DFID,19/04/2017,Training - Travel & Subsistence ,Asia  Caribbean and Overseas Territories ,Foreign & Commonwealth Office ,101605-101 ,"1,010.51",
DFID,DFID,19/04/2017,Air fares ,Asia  Caribbean and Overseas Territories ,Foreign & Commonwealth Office ,101605-101 ,"5,617.13",
DFID,DFID,03/04/2017,Air fares ,Asia  Caribbean and Overseas Territories ,Corporate Travel Provider ,101605-101 ,684.90,
DFID,DFID,03/04/2017,Hotels - Accommodation only ,Asia  Caribbean and Overseas Territories ,Corporate Travel Provider ,101605-101 ,708.00,
DFID,DFID,05/04/2017,Air fares ,Asia  Caribbean and Overseas Territories ,Foreign & Commonwealth Office ,101605-101 ,"3,834.41",
DFID,DFID,13/04/2017,"Conferences, Seminars & Meeting/Event Resource",Asia  Caribbean and Overseas Territories ,Foreign & Commonwealth Office ,101605-101 ,721.79,
DFID,DFID,11/04/2017,Travel documentation costs ,Asia  Caribbean and Overseas Territories ,Foreign & Commonwealth Office ,101605-101 ,639.34,
DFID,DFID,11/04/2017,Hotels - Accommodation only ,Asia  Caribbean and Overseas Territories ,Foreign & Commonwealth Office ,101605-101 ,"1,075.68",
DFID,DFID,11/04/2017,Hotels - Accommodation only ,Asia  Caribbean and Overseas Territories ,Foreign & Commonwealth Office ,101605-101 ,599.38,
DFID,DFID,13/04/2017,Telephone Usage & services ,West and Southern Africa ,Foreign & Commonwealth Office ,101610-101 ,"2,194.23",
DFID,DFID,11/04/2017,Telephone Usage & services ,West and Southern Africa ,Foreign & Commonwealth Office ,101610-101 ,"2,702.52",
DFID,DFID,11/04/2017,Telephone Usage & services ,West and Southern Africa ,Foreign & Commonwealth Office ,101610-101 ,"2,576.21",
DFID,DFID,03/04/2017,Air fares ,West and Southern Africa ,Corporate Travel Provider ,101610-101 ,644.60,
DFID,DFID,03/04/2017,Hotels - Accommodation only ,West and Southern Africa ,Corporate Travel Provider ,101610-101 ,572.66,
DFID,DFID,03/04/2017,Air fares ,West and Southern Africa ,Corporate Travel Provider ,101610-101 ,"1,455.69",
DFID,DFID,03/04/2017,Air fares ,West and Southern Africa ,Corporate Travel Provider ,101610-101 ,648.60,
DFID,DFID,03/04/2017,Air fares ,West and Southern Africa ,Corporate Travel Provider ,101610-101 ,"1,361.00",
DFID,DFID,03/04/2017,Hotels - Accommodation only ,West and Southern Africa ,Corporate Travel Provider ,101610-101 ,582.66,
DFID,DFID,19/04/2017,Telephone Usage & services ,West and Southern Africa ,Foreign & Commonwealth Office ,101610-101 ,"2,276.94",
DFID,DFID,03/04/2017,Air fares ,Asia  Caribbean and Overseas Territories ,Corporate Travel Provider ,101603-101 ,763.07,
DFID,DFID,03/04/2017,Air fares ,Asia  Caribbean and Overseas Territories ,Corporate Travel Provider ,101603-101 ,"2,521.85",
DFID,DFID,03/04/2017,Air fares ,Asia  Caribbean and Overseas Territories ,Corporate Travel Provider ,101603-101 ,571.97,
DFID,DFID,19/04/2017,Air fares ,East and Central Africa ,Foreign & Commonwealth Office ,101612-101 ,"1,513.79",
DFID,DFID,19/04/2017,Air fares ,East and Central Africa ,Foreign & Commonwealth Office ,101612-101 ,"1,387.41",
DFID,DFID,19/04/2017,Air fares ,East and Central Africa ,Foreign & Commonwealth Office ,101612-101 ,"1,387.41",
DFID,DFID,19/04/2017,Air fares ,East and Central Africa ,Foreign & Commonwealth Office ,101612-101 ,"1,549.52",
DFID,DFID,19/04/2017,Air fares ,East and Central Africa ,Foreign & Commonwealth Office ,101612-101 ,"1,549.52",
DFID,DFID,03/04/2017,Hotels - Accommodation only ,East and Central Africa ,Corporate Travel Provider ,101612-101 ,575.00,
DFID,DFID,03/04/2017,Hotels - Accommodation only ,East and Central Africa ,Corporate Travel Provider ,101612-101 ,653.58,
DFID,DFID,03/04/2017,Air fares ,East and Central Africa ,Corporate Travel Provider ,101612-101 ,656.60,
DFID,DFID,13/04/2017,Hotels - Accommodation only ,East and Central Africa ,Foreign & Commonwealth Office ,101612-101 ,"10,437.35",
DFID,DFID,05/04/2017,Training - Travel & Subsistence ,East and Central Africa ,Foreign & Commonwealth Office ,101612-101 ,702.74,
DFID,DFID,13/04/2017,Telephone Usage & services ,East and Central Africa ,Foreign & Commonwealth Office ,101612-101 ,"2,897.95",
DFID,DFID,13/04/2017,Training - Travel & Subsistence ,East and Central Africa ,Foreign & Commonwealth Office ,101612-101 ,551.82,
DFID,DFID,13/04/2017,Air fares ,East and Central Africa ,Foreign & Commonwealth Office ,101612-101 ,"1,174.41",
DFID,DFID,13/04/2017,Training - Travel & Subsistence ,East and Central Africa ,Foreign & Commonwealth Office ,101612-101 ,683.87,
DFID,DFID,13/04/2017,Air fares ,East and Central Africa ,Foreign & Commonwealth Office ,101612-101 ,631.71,
DFID,DFID,11/04/2017,Air fares ,East and Central Africa ,Foreign & Commonwealth Office ,101612-101 ,868.30,
DFID,DFID,03/04/2017,Hotels - Accommodation only ,West and Southern Africa ,Corporate Travel Provider ,101613-101 ,767.20,
DFID,DFID,03/04/2017,Hotels - Accommodation only ,West and Southern Africa ,Corporate Travel Provider ,101613-101 ,767.20,
DFID,DFID,03/04/2017,Air fares ,East and Central Africa ,Corporate Travel Provider ,101616-101 ,582.70,
DFID,DFID,03/04/2017,Air fares ,East and Central Africa ,Corporate Travel Provider ,101616-101 ,634.90,
DFID,DFID,03/04/2017,Air fares ,East and Central Africa ,Corporate Travel Provider ,101616-101 ,556.80,
DFID,DFID,03/04/2017,Air fares ,West and Southern Africa ,Corporate Travel Provider ,101618-101 ,"1,287.37",
DFID,DFID,03/04/2017,Air fares ,West and Southern Africa ,Corporate Travel Provider ,101618-101 ,680.20,
DFID,DFID,03/04/2017,Air fares ,West and Southern Africa ,Corporate Travel Provider ,101618-101 ,635.00,
DFID,DFID,03/04/2017,Air fares ,Middle East and North Africa Division ,Corporate Travel Provider ,101619-101 ,733.67,
DFID,DFID,03/04/2017,Air fares ,Middle East and North Africa Division ,Corporate Travel Provider ,101619-101 ,540.67,
DFID,DFID,03/04/2017,Air fares ,West and Southern Africa ,Corporate Travel Provider ,101620-101 ,714.50,
DFID,DFID,03/04/2017,Air fares ,West and Southern Africa ,Corporate Travel Provider ,101620-101 ,673.60,
DFID,DFID,03/04/2017,Hotels - Accommodation only ,West and Southern Africa ,Corporate Travel Provider ,101620-101 ,891.00,
DFID,DFID,03/04/2017,Air fares ,West and Southern Africa ,Corporate Travel Provider ,101620-101 ,"1,012.00",
DFID,DFID,03/04/2017,Air fares ,West and Southern Africa ,Corporate Travel Provider ,101620-101 ,886.00,
DFID,DFID,03/04/2017,Air fares ,West and Southern Africa ,Corporate Travel Provider ,101620-101 ,886.00,
DFID,DFID,03/04/2017,Air fares ,West and Southern Africa ,Corporate Travel Provider ,101620-101 ,573.20,
DFID,DFID,03/04/2017,Air fares ,West and Southern Africa ,Corporate Travel Provider ,101620-102 ,728.97,
DFID,DFID,19/04/2017,Hotels - Accommodation only ,Asia  Caribbean and Overseas Territories ,Foreign & Commonwealth Office ,101621-108 ,649.61,
DFID,DFID,03/04/2017,Air fares ,West and Southern Africa ,Supplier Name withheld ,101622-106 ,"1,337.80",
DFID,DFID,03/04/2017,Air fares ,West and Southern Africa ,Supplier Name withheld ,101622-106 ,547.20,
DFID,DFID,03/04/2017,Air fares ,West and Southern Africa ,Supplier Name withheld ,101622-106 ,"1,169.17",
DFID,DFID,03/04/2017,Air fares ,West and Southern Africa ,Supplier Name withheld ,101622-106 ,598.17,
DFID,DFID,03/04/2017,Air fares ,West and Southern Africa ,Supplier Name withheld ,101622-106 ,598.17,
DFID,DFID,13/04/2017,Repairs  Maint  Alter - Property & Constrct. Services ,West and Southern Africa ,Foreign & Commonwealth Office ,101622-108 ,"7,415.20",
DFID,DFID,13/04/2017,Repairs  Maint  Alter - Property & Constrct. Services ,West and Southern Africa ,Foreign & Commonwealth Office ,101622-108 ,"4,529.75",
DFID,DFID,11/04/2017,Office Supplies ,West and Southern Africa ,Foreign & Commonwealth Office ,101622-108 ,717.00,
DFID,DFID,11/04/2017,Office Supplies ,West and Southern Africa ,Foreign & Commonwealth Office ,101622-108 ,561.60,
DFID,DFID,11/04/2017,Office Supplies ,West and Southern Africa ,Foreign & Commonwealth Office ,101622-108 ,900.00,
DFID,DFID,11/04/2017,Office Supplies ,West and Southern Africa ,Foreign & Commonwealth Office ,101622-108 ,899.90,
DFID,DFID,03/04/2017,Air fares ,East and Central Africa ,Corporate Travel Provider ,101625-102 ,"1,680.04",
DFID,DFID,03/04/2017,Air fares ,East and Central Africa ,Corporate Travel Provider ,101625-102 ,"1,070.17",
DFID,DFID,03/04/2017,Air fares ,East and Central Africa ,Corporate Travel Provider ,101625-102 ,"1,001.80",
DFID,DFID,03/04/2017,Air fares ,East and Central Africa ,Corporate Travel Provider ,101625-104 ,696.57,
DFID,DFID,03/04/2017,Air fares ,East and Central Africa ,Corporate Travel Provider ,101625-104 ,"1,252.57",
DFID,DFID,03/04/2017,Air fares ,Asia  Caribbean and Overseas Territories ,Corporate Travel Provider ,101624-101 ,652.37,
DFID,DFID,03/04/2017,Hotels - Accommodation only ,Asia  Caribbean and Overseas Territories ,Corporate Travel Provider ,101624-101 ,576.25,
DFID,DFID,03/04/2017,Air fares ,Asia  Caribbean and Overseas Territories ,Corporate Travel Provider ,101624-101 ,817.47,
DFID,DFID,03/04/2017,Air fares ,West and Southern Africa ,Corporate Travel Provider ,101629-101 ,692.66,
DFID,DFID,03/04/2017,Air fares ,West and Southern Africa ,Corporate Travel Provider ,101629-101 ,723.96,
DFID,DFID,03/04/2017,Air fares ,West and Southern Africa ,Corporate Travel Provider ,101629-101 ,"1,368.03",
DFID,DFID,03/04/2017,Air fares ,West and Southern Africa ,Corporate Travel Provider ,101629-101 ,573.20,
DFID,DFID,03/04/2017,Air fares ,West and Southern Africa ,Corporate Travel Provider ,101629-101 ,573.20,
DFID,DFID,03/04/2017,Hotels - Accommodation only ,West and Southern Africa ,Corporate Travel Provider ,101629-101 ,544.65,
DFID,DFID,03/04/2017,Air fares ,West and Southern Africa ,Corporate Travel Provider ,101629-101 ,579.70,
DFID,DFID,03/04/2017,Air fares ,West and Southern Africa ,Corporate Travel Provider ,101629-101 ,890.20,
DFID,DFID,13/04/2017,Air fares ,West and Southern Africa ,Foreign & Commonwealth Office ,101629-101 ,573.33,
DFID,DFID,03/04/2017,Air fares ,West and Southern Africa ,Corporate Travel Provider ,101629-101 ,602.00,
DFID,DFID,03/04/2017,Air fares ,West and Southern Africa ,Corporate Travel Provider ,101629-101 ,"1,010.00",
DFID,DFID,03/04/2017,Air fares ,West and Southern Africa ,Corporate Travel Provider ,101629-101 ,"1,732.63",
DFID,DFID,03/04/2017,Air fares ,West and Southern Africa ,Corporate Travel Provider ,101629-101 ,641.62,
DFID,DFID,03/04/2017,Air fares ,West and Southern Africa ,Corporate Travel Provider ,101629-101 ,"1,095.30",
DFID,DFID,03/04/2017,Air fares ,West and Southern Africa ,Corporate Travel Provider ,101629-101 ,"1,095.30",
DFID,DFID,03/04/2017,Air fares ,East and Central Africa ,Corporate Travel Provider ,101630-101 ,563.77,
DFID,DFID,03/04/2017,Air fares ,East and Central Africa ,Corporate Travel Provider ,101630-101 ,607.77,
DFID,DFID,13/04/2017,Air fares ,East and Central Africa ,Foreign & Commonwealth Office ,101630-101 ,"2,976.90",
DFID,DFID,05/04/2017,Hotels - Accommodation only ,East and Central Africa ,Foreign & Commonwealth Office ,101630-101 ,991.77,
DFID,DFID,03/04/2017,Air fares ,East and Central Africa ,Corporate Travel Provider ,101630-102 ,882.70,
DFID,DFID,03/04/2017,Air fares ,West and Southern Africa ,Corporate Travel Provider ,101631-101 ,755.77,
DFID,DFID,03/04/2017,Air fares ,East and Central Africa ,Corporate Travel Provider ,101633-101 ,818.37,
DFID,DFID,11/04/2017,Hotels - Accommodation only ,East and Central Africa ,Foreign & Commonwealth Office ,101633-101 ,"1,986.95",
DFID,DFID,11/04/2017,Air fares ,East and Central Africa ,Foreign & Commonwealth Office ,101633-101 ,670.48,
DFID,DFID,11/04/2017,Hotels - Accommodation only ,East and Central Africa ,Foreign & Commonwealth Office ,101633-101 ,595.79,
DFID,DFID,11/04/2017,Air fares ,East and Central Africa ,Foreign & Commonwealth Office ,101633-101 ,722.59,
DFID,DFID,03/04/2017,Air fares ,East and Central Africa ,Corporate Travel Provider ,101634-101 ,731.27,
DFID,DFID,03/04/2017,Air fares ,East and Central Africa ,Corporate Travel Provider ,101634-101 ,731.27,
DFID,DFID,03/04/2017,Air fares ,East and Central Africa ,Corporate Travel Provider ,101634-101 ,561.27,
DFID,DFID,03/04/2017,Hotels - Accommodation only ,East and Central Africa ,Corporate Travel Provider ,101634-101 ,704.23,
DFID,DFID,03/04/2017,Hotels - Accommodation only ,East and Central Africa ,Corporate Travel Provider ,101634-101 ,595.70,
DFID,DFID,03/04/2017,Air fares ,East and Central Africa ,Corporate Travel Provider ,101635-101 ,710.90,
DFID,DFID,03/04/2017,Air fares ,East and Central Africa ,Corporate Travel Provider ,101635-101 ,822.80,
DFID,DFID,03/04/2017,Air fares ,East and Central Africa ,Corporate Travel Provider ,101635-101 ,822.80,
DFID,DFID,03/04/2017,Air fares ,East and Central Africa ,Corporate Travel Provider ,101635-101 ,556.47,
DFID,DFID,03/04/2017,Air fares ,West and Southern Africa ,Corporate Travel Provider ,101637-101 ,"1,244.37",
DFID,DFID,03/04/2017,Air fares ,West and Southern Africa ,Corporate Travel Provider ,101637-101 ,"1,244.37",
DFID,DFID,11/04/2017,Telephone Usage & services ,Middle East and North Africa Division ,Foreign & Commonwealth Office ,201705-101 ,568.48,
DFID,DFID,03/04/2017,Air fares ,Middle East and North Africa Division ,Corporate Travel Provider ,201705-101 ,"1,031.48",
DFID,DFID,13/04/2017,Cleaning Costs ,Middle East and North Africa Division ,Foreign & Commonwealth Office ,201705-101 ,853.50,
DFID,DFID,03/04/2017,Air fares ,Middle East and North Africa Division ,Corporate Travel Provider ,201705-101 ,625.77,
DFID,DFID,19/04/2017,Hotels - Accommodation only ,Middle East and North Africa Division ,Foreign & Commonwealth Office ,201705-101 ,"1,098.72",
DFID,DFID,19/04/2017,Hotels - Accommodation only ,Middle East and North Africa Division ,Foreign & Commonwealth Office ,201705-101 ,785.95,
DFID,DFID,19/04/2017,Project delivery costs – supplier services ,Policy Division ,Foreign & Commonwealth Office ,201724-124 ,843.94,
DFID,DFID,19/04/2017,Project delivery costs – supplier services ,Policy Division ,Foreign & Commonwealth Office ,201724-124 ,775.77,
DFID,DFID,19/04/2017,Project delivery costs – supplier services ,Policy Division ,Foreign & Commonwealth Office ,201724-124 ,"2,444.78",
DFID,DFID,03/04/2017,Air fares ,Economic Development Division ,Corporate Travel Provider ,202259-101 ,"1,217.67",
DFID,DFID,03/04/2017,Air fares ,Economic Development Division ,Corporate Travel Provider ,202259-101 ,"1,217.67",
DFID,DFID,03/04/2017,Hotels - Accommodation only ,Economic Development Division ,Corporate Travel Provider ,202259-101 ,775.00,
DFID,DFID,03/04/2017,Hotels - Accommodation only ,Economic Development Division ,Corporate Travel Provider ,202259-101 ,775.00,
DFID,DFID,03/04/2017,Air fares ,Economic Development Division ,Corporate Travel Provider ,202259-101 ,936.07,
DFID,DFID,03/04/2017,Air fares ,Economic Development Division ,Corporate Travel Provider ,202259-101 ,936.07,
DFID,DFID,03/04/2017,Air fares ,Economic Development Division ,Corporate Travel Provider ,202259-101 ,624.67,
DFID,DFID,03/04/2017,Air fares ,Economic Development Division ,Corporate Travel Provider ,202259-101 ,624.67,
DFID,DFID,03/04/2017,Air fares ,Economic Development Division ,Corporate Travel Provider ,202259-101 ,861.27,
DFID,DFID,03/04/2017,Air fares ,Economic Development Division ,Corporate Travel Provider ,202259-101 ,"3,613.57",
DFID,DFID,03/04/2017,Hotels - Accommodation only ,Research and Evidence Division ,Corporate Travel Provider ,202331-101 ,501.50,
DFID,DFID,03/04/2017,Hotels - Accommodation only ,Research and Evidence Division ,Corporate Travel Provider ,202331-101 ,501.50,
DFID,DFID,03/04/2017,Hotels - Accommodation only ,Research and Evidence Division ,Corporate Travel Provider ,202331-101 ,633.14,
DFID,DFID,03/04/2017,Air fares ,Research and Evidence Division ,Corporate Travel Provider ,202348-103 ,"1,184.80",
DFID,DFID,03/04/2017,Hotels - Accommodation only ,Research and Evidence Division ,Corporate Travel Provider ,202348-103 ,514.29,
DFID,DFID,03/04/2017,Air fares ,Economic Development Division ,Corporate Travel Provider ,202373-101 ,"1,223.47",
DFID,DFID,03/04/2017,Air fares ,Economic Development Division ,Corporate Travel Provider ,202373-101 ,551.60,
DFID,DFID,03/04/2017,Air fares ,Economic Development Division ,Corporate Travel Provider ,202373-101 ,664.02,
DFID,DFID,03/04/2017,Hotels - Accommodation only ,Economic Development Division ,Corporate Travel Provider ,202373-101 ,"1,144.38",
DFID,DFID,03/04/2017,Air fares ,Economic Development Division ,Corporate Travel Provider ,202373-101 ,"1,336.49",
DFID,DFID,03/04/2017,Air fares ,Economic Development Division ,Corporate Travel Provider ,202373-101 ,"1,354.37",
DFID,DFID,03/04/2017,Air fares ,Economic Development Division ,Corporate Travel Provider ,202373-101 ,847.57,
DFID,DFID,03/04/2017,Air fares ,Economic Development Division ,Corporate Travel Provider ,202373-101 ,687.37,
DFID,DFID,03/04/2017,Air fares ,West and Southern Africa ,Corporate Travel Provider ,101638-105 ,754.77,
DFID,DFID,03/04/2017,Hotels - Accommodation only ,Business Solutions Division Level ,Corporate Travel Provider ,200001-101 ,556.00,
DFID,DFID,03/04/2017,Hotels - Accommodation only ,Business Solutions Division Level ,Corporate Travel Provider ,200001-101 ,690.00,
DFID,DFID,03/04/2017,Air fares ,Business Solutions Division Level ,Corporate Travel Provider ,200001-101 ,"1,169.58",
DFID,DFID,03/04/2017,Air fares ,Business Solutions Division Level ,Corporate Travel Provider ,200001-101 ,610.88,
DFID,DFID,07/04/2017,Data Network - land lines ,Business Solutions Division Level ,Foreign & Commonwealth Office ,200002-117 ,"1,939.15",
DFID,DFID,03/04/2017,Air fares ,Group Operations ,Corporate Travel Provider ,201157-104 ,796.57,
DFID,DFID,19/04/2017,Air fares ,Middle East and North Africa Division ,Foreign & Commonwealth Office ,201701-101 ,574.84,
DFID,DFID,03/04/2017,Air fares ,Middle East and North Africa Division ,Corporate Travel Provider ,201701-101 ,512.90,
DFID,DFID,13/04/2017,Air fares ,Middle East and North Africa Division ,Foreign & Commonwealth Office ,201701-101 ,689.81,
DFID,DFID,13/04/2017,Hotels - Accommodation only ,Middle East and North Africa Division ,Foreign & Commonwealth Office ,201701-101 ,678.92,
DFID,DFID,03/04/2017,Air fares ,Research and Evidence Division ,Corporate Travel Provider ,202392-103 ,675.77,
DFID,DFID,03/04/2017,Air fares ,Research and Evidence Division ,Corporate Travel Provider ,202392-103 ,675.77,
DFID,DFID,03/04/2017,Air fares ,Research and Evidence Division ,Corporate Travel Provider ,202392-106 ,791.40,
DFID,DFID,03/04/2017,Air fares ,Research and Evidence Division ,Corporate Travel Provider ,202392-107 ,609.90,
DFID,DFID,03/04/2017,Air fares ,Research and Evidence Division ,Corporate Travel Provider ,202392-107 ,650.70,
DFID,DFID,03/04/2017,Hotels - Accommodation only ,Research and Evidence Division ,Corporate Travel Provider ,202392-111 ,655.00,
DFID,DFID,03/04/2017,Air fares ,Policy Division ,Corporate Travel Provider ,202402-107 ,"1,291.77",
DFID,DFID,03/04/2017,Hotels - Accommodation only ,Policy Division ,Corporate Travel Provider ,202402-107 ,"1,315.78",
DFID,DFID,03/04/2017,Air fares ,Policy Division ,Corporate Travel Provider ,202402-107 ,761.17,
DFID,DFID,03/04/2017,Air fares ,Policy Division ,Corporate Travel Provider ,202402-107 ,"1,025.87",
DFID,DFID,03/04/2017,Air fares ,Policy Division ,Corporate Travel Provider ,202402-107 ,950.79,
DFID,DFID,03/04/2017,Hotels - Accommodation only ,Policy Division ,Corporate Travel Provider ,202402-107 ,861.05,
DFID,DFID,19/04/2017,Other Admin Costs ,Asia  Caribbean and Overseas Territories ,Foreign & Commonwealth Office ,202403-101 ,"1,326.01",
DFID,DFID,19/04/2017,Hotels - Accommodation only ,Asia  Caribbean and Overseas Territories ,Foreign & Commonwealth Office ,202403-101 ,"1,382.62",
DFID,DFID,19/04/2017,Hotels - Accommodation only ,Asia  Caribbean and Overseas Territories ,Foreign & Commonwealth Office ,202403-101 ,"2,311.05",
DFID,DFID,03/04/2017,Air fares ,Asia  Caribbean and Overseas Territories ,Corporate Travel Provider ,202403-101 ,626.70,
DFID,DFID,11/04/2017,Hotels - Accommodation only ,Asia  Caribbean and Overseas Territories ,Foreign & Commonwealth Office ,202403-101 ,"1,681.99",
DFID,DFID,11/04/2017,Project delivery costs – supplier services ,Asia  Caribbean and Overseas Territories ,Foreign & Commonwealth Office ,202403-101 ,"1,966.99",
DFID,DFID,03/04/2017,Air fares ,Research and Evidence Division ,Corporate Travel Provider ,202392-113 ,523.67,
DFID,DFID,03/04/2017,Air fares ,Research and Evidence Division ,Corporate Travel Provider ,202392-113 ,"1,010.67",
DFID,DFID,03/04/2017,Air fares ,Research and Evidence Division ,Corporate Travel Provider ,202392-113 ,"1,058.57",
DFID,DFID,03/04/2017,Air fares ,Conflict  Humanitarian  Security & Stabilisation Division ,Corporate Travel Provider ,202410-107 ,656.37,
DFID,DFID,19/04/2017,Hotels - Accommodation only ,Conflict  Humanitarian  Security & Stabilisation Division ,Foreign & Commonwealth Office ,202410-108 ,750.67,
DFID,DFID,19/04/2017,Hotels - Accommodation only ,Conflict  Humanitarian  Security & Stabilisation Division ,Foreign & Commonwealth Office ,202410-108 ,750.67,
DFID,DFID,19/04/2017,Hotels - Accommodation only ,Conflict  Humanitarian  Security & Stabilisation Division ,Foreign & Commonwealth Office ,202410-108 ,750.67,
DFID,DFID,03/04/2017,Air fares ,East and Central Africa ,Corporate Travel Provider ,202594-101 ,700.40,
DFID,DFID,03/04/2017,Air fares ,East and Central Africa ,Corporate Travel Provider ,202594-101 ,908.30,
DFID,DFID,03/04/2017,Air fares ,East and Central Africa ,Corporate Travel Provider ,202594-101 ,900.10,
DFID,DFID,03/04/2017,Air fares ,East and Central Africa ,Corporate Travel Provider ,202594-101 ,785.37,
DFID,DFID,03/04/2017,Air fares ,East and Central Africa ,Corporate Travel Provider ,202594-101 ,675.57,
DFID,DFID,03/04/2017,Air fares ,East and Central Africa ,Corporate Travel Provider ,202594-101 ,606.37,
DFID,DFID,03/04/2017,Air fares ,East and Central Africa ,Corporate Travel Provider ,202594-101 ,"1,094.97",
DFID,DFID,03/04/2017,Air fares ,East and Central Africa ,Corporate Travel Provider ,202594-101 ,702.30,
DFID,DFID,03/04/2017,Air fares ,East and Central Africa ,Corporate Travel Provider ,202594-101 ,605.07,
DFID,DFID,03/04/2017,Air fares ,East and Central Africa ,Corporate Travel Provider ,202594-101 ,603.50,
DFID,DFID,03/04/2017,Air fares ,East and Central Africa ,Corporate Travel Provider ,202594-101 ,523.87,
DFID,DFID,03/04/2017,Air fares ,East and Central Africa ,Corporate Travel Provider ,202594-101 ,694.20,
DFID,DFID,03/04/2017,Air fares ,East and Central Africa ,Corporate Travel Provider ,202594-101 ,"3,391.30",
DFID,DFID,03/04/2017,Air fares ,East and Central Africa ,Corporate Travel Provider ,202594-101 ,521.20,
DFID,DFID,03/04/2017,Air fares ,East and Central Africa ,Corporate Travel Provider ,202594-101 ,511.40,
DFID,DFID,03/04/2017,Air fares ,East and Central Africa ,Corporate Travel Provider ,202594-101 ,828.27,
DFID,DFID,03/04/2017,Hotels - Accommodation only ,Asia  Caribbean and Overseas Territories ,Corporate Travel Provider ,202775-108 ,633.73,
DFID,DFID,03/04/2017,Hotels - Accommodation only ,Finance and Corporate Performance Division ,Corporate Travel Provider ,202836-101 ,503.40,
DFID,DFID,13/04/2017,Aid Programme - Humanitarian Material Relief Assistance and Services ,East and Central Africa ,Foreign & Commonwealth Office ,202890-104 ,"9,292.78",
DFID,DFID,13/04/2017,Aid Programme - Humanitarian Material Relief Assistance and Services ,East and Central Africa ,Foreign & Commonwealth Office ,202890-104 ,"4,724.29",
DFID,DFID,13/04/2017,Telephone Usage & services ,East and Central Africa ,Foreign & Commonwealth Office ,202913-104 ,"1,837.58",
DFID,DFID,03/04/2017,Air fares ,West and Southern Africa ,Corporate Travel Provider ,203567-101 ,714.17,
DFID,DFID,03/04/2017,Hotels - Accommodation only ,West and Southern Africa ,Corporate Travel Provider ,203627-106 ,604.08,
DFID,DFID,03/04/2017,Air fares ,West and Southern Africa ,Corporate Travel Provider ,203627-106 ,558.14,
DFID,DFID,03/04/2017,Air fares ,West and Southern Africa ,Corporate Travel Provider ,203627-106 ,943.87,
DFID,DFID,03/04/2017,Air fares ,West and Southern Africa ,Corporate Travel Provider ,203627-106 ,"1,106.60",
DFID,DFID,13/04/2017,DFID Purchased Relief Supplies ,West and Southern Africa ,Foreign & Commonwealth Office ,203674-103 ,"9,116.36",
DFID,DFID,19/04/2017,DFID Purchased Relief Supplies ,West and Southern Africa ,Foreign & Commonwealth Office ,203674-103 ,"3,207.37",
DFID,DFID,19/04/2017,DFID Purchased Relief Supplies ,West and Southern Africa ,Foreign & Commonwealth Office ,203674-103 ,"12,166.29",
DFID,DFID,19/04/2017,DFID Purchased Relief Supplies ,West and Southern Africa ,Foreign & Commonwealth Office ,203674-103 ,"1,386.60",
DFID,DFID,03/04/2017,Air fares ,Policy Division ,Corporate Travel Provider ,202419-101 ,818.77,
DFID,DFID,03/04/2017,Air fares ,Policy Division ,Corporate Travel Provider ,202419-101 ,781.96,
DFID,DFID,03/04/2017,Hotels - Accommodation only ,Policy Division ,Corporate Travel Provider ,202419-101 ,782.11,
DFID,DFID,03/04/2017,Air fares ,Economic Development Division ,Corporate Travel Provider ,202432-101 ,902.00,
DFID,DFID,03/04/2017,Air fares ,Economic Development Division ,Corporate Travel Provider ,202432-101 ,521.17,
DFID,DFID,03/04/2017,Air fares ,Economic Development Division ,Corporate Travel Provider ,202432-101 ,792.37,
DFID,DFID,03/04/2017,Air fares ,Research and Evidence Division ,Corporate Travel Provider ,203874-103 ,577.67,
DFID,DFID,03/04/2017,Air fares ,Research and Evidence Division ,Corporate Travel Provider ,203874-103 ,509.53,
DFID,DFID,03/04/2017,Air fares ,Research and Evidence Division ,Corporate Travel Provider ,203874-103 ,865.67,
DFID,DFID,03/04/2017,Air fares ,Research and Evidence Division ,Corporate Travel Provider ,203874-103 ,698.40,
DFID,DFID,13/04/2017,Aid Programme - Humanitarian Material Relief Assistance and Services ,East and Central Africa ,Foreign & Commonwealth Office ,203961-114 ,"9,449.66",
DFID,DFID,13/04/2017,Air fares ,Asia  Caribbean and Overseas Territories ,Foreign & Commonwealth Office ,204053-101 ,703.81,
DFID,DFID,03/04/2017,Air fares ,Asia  Caribbean and Overseas Territories ,Corporate Travel Provider ,204053-101 ,570.00,
DFID,DFID,03/04/2017,Air fares ,Asia  Caribbean and Overseas Territories ,Corporate Travel Provider ,204053-101 ,"3,674.85",
DFID,DFID,03/04/2017,Hotels - Accommodation only ,Middle East and North Africa Division ,Corporate Travel Provider ,204055-101 ,503.39,
DFID,DFID,03/04/2017,Air fares ,Middle East and North Africa Division ,Corporate Travel Provider ,204055-101 ,590.30,
DFID,DFID,03/04/2017,Air fares ,Middle East and North Africa Division ,Corporate Travel Provider ,204055-101 ,514.97,
DFID,DFID,03/04/2017,Air fares ,Middle East and North Africa Division ,Corporate Travel Provider ,204055-101 ,600.10,
DFID,DFID,03/04/2017,Air fares ,Middle East and North Africa Division ,Corporate Travel Provider ,204055-101 ,527.57,
DFID,DFID,03/04/2017,Air fares ,Middle East and North Africa Division ,Corporate Travel Provider ,204055-101 ,620.00,
DFID,DFID,07/04/2017,Aid Programme - Humanitarian Material Relief Assistance and Services ,Conflict  Humanitarian  Security & Stabilisation Division ,Foreign & Commonwealth Office ,204273-103 ,601.70,
DFID,DFID,03/04/2017,Hotels - Accommodation only ,Group Operations ,Corporate Travel Provider ,204284-101 ,"3,711.00",
DFID,DFID,05/04/2017,Project delivery costs – supplier services ,East and Central Africa ,Foreign & Commonwealth Office ,204439-103 ,"2,097.55",
DFID,DFID,11/04/2017,Project delivery costs – supplier services ,East and Central Africa ,Foreign & Commonwealth Office ,204439-103 ,998.04,
DFID,DFID,11/04/2017,Project delivery costs – supplier services ,East and Central Africa ,Foreign & Commonwealth Office ,204439-103 ,507.57,
DFID,DFID,19/04/2017,Project delivery costs – supplier services ,East and Central Africa ,Foreign & Commonwealth Office ,204439-103 ,998.04,
DFID,DFID,03/04/2017,Air fares ,Global Funds ,Corporate Travel Provider ,204452-101 ,"1,169.97",
DFID,DFID,03/04/2017,Air fares ,Global Funds ,Corporate Travel Provider ,204452-101 ,"1,102.10",
DFID,DFID,03/04/2017,Air fares ,Research and Evidence Division ,Corporate Travel Provider ,204815-101 ,940.69,
DFID,DFID,03/04/2017,Air fares ,Research and Evidence Division ,Corporate Travel Provider ,204815-101 ,612.50,
DFID,DFID,03/04/2017,Air fares ,Research and Evidence Division ,Corporate Travel Provider ,204815-101 ,970.43,
DFID,DFID,03/04/2017,Air fares ,Regional Directorate ,Corporate Travel Provider ,204832-101 ,536.30,
DFID,DFID,11/04/2017,Secure Staff Accommodation ,Asia  Caribbean and Overseas Territories ,Foreign & Commonwealth Office ,204857-102 ,"3,556.68",
DFID,DFID,19/04/2017,Repairs  Maint  Alter - Property & Constrct. Services ,East and Central Africa ,Foreign & Commonwealth Office ,204957-104 ,"2,458.57",
DFID,DFID,05/04/2017,Repairs  Maint  Alter - Property & Constrct. Services ,East and Central Africa ,Foreign & Commonwealth Office ,204957-104 ,"1,639.04",
DFID,DFID,13/04/2017,Mobile telephones & accessories ,East and Central Africa ,Foreign & Commonwealth Office ,204957-104 ,567.50,
DFID,DFID,13/04/2017,Mobile telephones & accessories ,East and Central Africa ,Foreign & Commonwealth Office ,204957-104 ,567.50,
DFID,DFID,13/04/2017,Mobile telephones & accessories ,East and Central Africa ,Foreign & Commonwealth Office ,204957-104 ,567.50,
DFID,DFID,13/04/2017,Mobile telephones & accessories ,East and Central Africa ,Foreign & Commonwealth Office ,204957-104 ,567.50,
DFID,DFID,13/04/2017,Mobile telephones & accessories ,East and Central Africa ,Foreign & Commonwealth Office ,204957-104 ,567.50,
DFID,DFID,03/04/2017,Air fares ,Middle East and North Africa Division ,Corporate Travel Provider ,204981-101 ,656.60,
DFID,DFID,03/04/2017,Air fares ,Middle East and North Africa Division ,Corporate Travel Provider ,204981-101 ,777.57,
DFID,DFID,03/04/2017,Air fares ,Middle East and North Africa Division ,Corporate Travel Provider ,204981-101 ,830.27,
DFID,DFID,03/04/2017,Air fares ,Middle East and North Africa Division ,Corporate Travel Provider ,204981-101 ,576.37,
DFID,DFID,03/04/2017,Air fares ,Middle East and North Africa Division ,Corporate Travel Provider ,204981-101 ,559.57,
DFID,DFID,03/04/2017,Air fares ,Middle East and North Africa Division ,Corporate Travel Provider ,204981-101 ,738.27,
DFID,DFID,03/04/2017,Air fares ,Middle East and North Africa Division ,Corporate Travel Provider ,204981-101 ,"1,041.20",
DFID,DFID,03/04/2017,Hotels - Accommodation only ,Middle East and North Africa Division ,Corporate Travel Provider ,204981-101 ,557.82,
DFID,DFID,03/04/2017,Air fares ,Middle East and North Africa Division ,Corporate Travel Provider ,204981-101 ,506.37,
DFID,DFID,03/04/2017,Air fares ,Middle East and North Africa Division ,Corporate Travel Provider ,204981-101 ,756.57,
DFID,DFID,03/04/2017,Air fares ,Conflict  Humanitarian  Security & Stabilisation Division ,Corporate Travel Provider ,205280-101 ,675.27,
DFID,DFID,03/04/2017,Air fares ,Policy Division ,Corporate Travel Provider ,300032-101 ,557.70,
DFID,DFID,03/04/2017,Air fares ,Policy Division ,Corporate Travel Provider ,300032-101 ,750.10,
DFID,DFID,03/04/2017,Air fares ,Policy Division ,Corporate Travel Provider ,300032-101 ,887.17,
DFID,DFID,03/04/2017,Air fares ,Policy Division ,Corporate Travel Provider ,300033-101 ,"1,205.77",
DFID,DFID,19/04/2017,Project delivery costs � supplier services,West and Southern Africa ,Foreign & Commonwealth Office ,300047-102 ,"1,679.06",
DFID,DFID,19/04/2017,Hotels - Accommodation only ,Middle East and North Africa Division ,Foreign & Commonwealth Office ,300078-101 ,581.93,
DFID,DFID,19/04/2017,Hotels - Accommodation only ,Middle East and North Africa Division ,Foreign & Commonwealth Office ,300078-101 ,581.93,
DFID,DFID,19/04/2017,Air fares ,Middle East and North Africa Division ,Foreign & Commonwealth Office ,300078-101 ,562.35,
DFID,DFID,19/04/2017,Hotels - Accommodation only ,Middle East and North Africa Division ,Foreign & Commonwealth Office ,300078-101 ,578.72,
DFID,DFID,03/04/2017,Air fares ,Middle East and North Africa Division ,Corporate Travel Provider ,300078-101 ,815.47,
DFID,DFID,03/04/2017,Hotels - Accommodation only ,Middle East and North Africa Division ,Corporate Travel Provider ,300078-101 ,807.80,
DFID,DFID,03/04/2017,Air fares ,Middle East and North Africa Division ,Corporate Travel Provider ,300078-101 ,760.80,
DFID,DFID,13/04/2017,SAIC Salaries - Basic Pay,Middle East and North Africa Division ,Foreign & Commonwealth Office ,300078-101 ,"2,146.14",
DFID,DFID,03/04/2017,Air fares ,Middle East and North Africa Division ,Corporate Travel Provider ,300078-101 ,666.70,
DFID,DFID,03/04/2017,Air fares ,Middle East and North Africa Division ,Corporate Travel Provider ,300080-101 ,652.47,
DFID,DFID,03/04/2017,Hotels - Accommodation only ,Middle East and North Africa Division ,Corporate Travel Provider ,300080-101 ,580.04,
DFID,DFID,03/04/2017,Air fares ,Middle East and North Africa Division ,Corporate Travel Provider ,300080-101 ,544.47,
DFID,DFID,03/04/2017,Air fares ,Middle East and North Africa Division ,Corporate Travel Provider ,300080-101 ,672.47,
DFID,DFID,19/04/2017,Project delivery costs � supplier services,International Relations Division ,Foreign & Commonwealth Office ,205081-101 ,"2,628.50",
DFID,DFID,19/04/2017,Project delivery costs � supplier services,International Relations Division ,Foreign & Commonwealth Office ,205081-101 ,"1,189.38",
DFID,DFID,19/04/2017,Project delivery costs � supplier services,International Relations Division ,Foreign & Commonwealth Office ,205081-101 ,"1,108.97",
DFID,DFID,19/04/2017,Project delivery costs � supplier services,International Relations Division ,Foreign & Commonwealth Office ,205081-101 ,"6,392.95",
DFID,DFID,19/04/2017,Project delivery costs � supplier services,International Relations Division ,Foreign & Commonwealth Office ,205081-101 ,"5,993.77",
DFID,DFID,19/04/2017,Project delivery costs � supplier services,International Relations Division ,Foreign & Commonwealth Office ,205081-101 ,"6,706.63",
DFID,DFID,19/04/2017,Project delivery costs � supplier services,International Relations Division ,Foreign & Commonwealth Office ,205081-101 ,"1,138.63",
DFID,DFID,19/04/2017,Project delivery costs � supplier services,International Relations Division ,Foreign & Commonwealth Office ,205081-101 ,521.24,
DFID,DFID,19/04/2017,Project delivery costs � supplier services,International Relations Division ,Foreign & Commonwealth Office ,205081-101 ,"2,825.57",
DFID,DFID,19/04/2017,Project delivery costs � supplier services,International Relations Division ,Foreign & Commonwealth Office ,205081-101 ,"2,888.33",
DFID,DFID,03/04/2017,Hotels - Accommodation only ,International Relations Division ,Corporate Travel Provider ,205081-101 ,"1,324.46",
DFID,DFID,03/04/2017,Air fares ,Asia  Caribbean and Overseas Territories ,Corporate Travel Provider ,205138-103 ,770.17,
DFID,DFID,11/04/2017,Project delivery costs - supplier services,Asia  Caribbean and Overseas Territories ,Foreign & Commonwealth Office ,205138-103 ,"2,252.44",
DFID,DFID,13/04/2017,Aid Programme - Humanitarian Material Relief Assistance and Services ,East and Central Africa ,Foreign & Commonwealth Office ,205256-104 ,"1,986.15",
DFID,DFID,13/04/2017,Aid Programme - Humanitarian Material Relief Assistance and Services ,East and Central Africa ,Foreign & Commonwealth Office ,205256-104 ,"5,276.77",
DFID,DFID,04/04/2017,Project delivery costs – supplier services ,West and Southern Africa ,ADAM SMITH INTERNATIONAL  LTD ,202539-106 ,"21,376.75",
DFID,DFID,25/04/2017,Project delivery costs – supplier services ,West and Southern Africa ,ADAM SMITH INTERNATIONAL  LTD ,202539-108 ,"357,020.30",
DFID,DFID,11/04/2017,Project delivery costs – supplier services ,East and Central Africa ,ADAM SMITH INTERNATIONAL  LTD ,202698-113 ,"64,883.29",
DFID,DFID,07/04/2017,Project delivery costs – supplier services ,East and Central Africa ,ADAM SMITH INTERNATIONAL  LTD ,202698-113 ,"151,170.48",
DFID,DFID,21/04/2017,Project delivery costs – supplier services ,West and Southern Africa ,ADAM SMITH INTERNATIONAL  LTD ,204659-104 ,"7,953.33",
DFID,DFID,27/04/2017,Project delivery costs – supplier services ,West and Southern Africa ,ADAM SMITH INTERNATIONAL  LTD ,204659-104 ,"34,940.39",
DFID,DFID,10/04/2017,Project delivery costs – supplier services ,East and Central Africa ,ADAM SMITH INTERNATIONAL  LTD ,205065-103 ,"368,075.00",
DFID,DFID,04/04/2017,Project delivery costs – supplier services ,East and Central Africa ,ADAM SMITH INTERNATIONAL  LTD ,205065-103 ,"28,746.42",
DFID,DFID,07/04/2017,Project delivery costs – supplier services ,West and Southern Africa ,ADAM SMITH INTERNATIONAL  LTD ,203674-103 ,"110,522.84",
DFID,DFID,07/04/2017,Project delivery costs – supplier services ,West and Southern Africa ,ADAM SMITH INTERNATIONAL  LTD ,201433-102 ,"419,463.74",
DFID,DFID,18/04/2017,Project delivery costs – supplier services ,West and Southern Africa ,ADAM SMITH INTERNATIONAL  LTD ,203666-102 ,"34,131.30",
DFID,DFID,10/04/2017,Project delivery costs – supplier services ,East and Central Africa ,ADAM SMITH INTERNATIONAL  LTD ,203308-111 ,"219,200.00",
DFID,DFID,04/04/2017,Project delivery costs – supplier services ,East and Central Africa ,ADAM SMITH INTERNATIONAL  LTD ,204375-103 ,"1,076,997.16",
DFID,DFID,10/04/2017,Project delivery costs – supplier services ,West and Southern Africa ,ADAM SMITH INTERNATIONAL  LTD ,203161-103 ,"530,623.94",
DFID,DFID,11/04/2017,Project delivery costs – supplier services ,Middle East and North Africa Division ,ADAM SMITH INTERNATIONAL  LTD ,205048-102 ,"319,793.84",
DFID,DFID,10/04/2017,Project delivery costs – supplier services ,Middle East and North Africa Division ,ADAM SMITH INTERNATIONAL  LTD ,205048-102 ,"154,594.27",
DFID,DFID,06/04/2017,Project delivery costs – supplier services ,Middle East and North Africa Division ,ADAM SMITH INTERNATIONAL  LTD ,205048-102 ,"24,918.31",
DFID,DFID,27/04/2017,Project delivery costs – supplier services ,Middle East and North Africa Division ,ADAM SMITH INTERNATIONAL  LTD ,205048-102 ,"15,504.48",
DFID,DFID,25/04/2017,Project delivery costs – supplier services ,West and Southern Africa ,ADAM SMITH INTERNATIONAL  LTD ,203824-103 ,"141,201.54",
DFID,DFID,07/04/2017,Project delivery costs – supplier services ,Asia  Caribbean and Overseas Territories ,ADAM SMITH INTERNATIONAL  LTD ,202328-102 ,"376,493.30",
DFID,DFID,28/04/2017,Project delivery costs – supplier services ,Asia  Caribbean and Overseas Territories ,ADAM SMITH INTERNATIONAL  LTD ,202328-102 ,"776,772.00",
DFID,DFID,26/04/2017,Project delivery costs – supplier services ,Asia  Caribbean and Overseas Territories ,ADAM SMITH INTERNATIONAL  LTD ,204619-104 ,"200,000.00",
DFID,DFID,03/04/2017,Project delivery costs – supplier services ,Asia  Caribbean and Overseas Territories ,ADAM SMITH INTERNATIONAL  LTD ,204619-104 ,"194,205.80",
DFID,DFID,07/04/2017,Project delivery costs – supplier services ,East and Central Africa ,ADAM SMITH INTERNATIONAL  LTD ,205092-101 ,"94,318.70",
DFID,DFID,07/04/2017,Project delivery costs – supplier services ,West and Southern Africa ,ADAM SMITH INTERNATIONAL  LTD ,203674-102 ,"4,938.24",
DFID,DFID,13/04/2017,Project delivery costs – supplier services ,East and Central Africa ,ADAM SMITH INTERNATIONAL  LTD ,204456-103 ,"157,752.00",
DFID,DFID,03/04/2017,Project delivery costs – supplier services ,East and Central Africa ,ADAM SMITH INTERNATIONAL  LTD ,204456-105 ,"14,410.05",
DFID,DFID,24/04/2017,Project delivery costs – supplier services ,East and Central Africa ,ADAM SMITH INTERNATIONAL  LTD ,204456-105 ,"12,890.26",
DFID,DFID,05/04/2017,Project delivery costs – supplier services ,West and Southern Africa ,ADAM SMITH INTERNATIONAL  LTD ,203839-101 ,"144,553.63",
DFID,DFID,07/04/2017,Project delivery costs – supplier services ,West and Southern Africa ,ADAM SMITH INTERNATIONAL  LTD ,203839-101 ,"85,757.00",
DFID,DFID,07/04/2017,Project delivery costs – supplier services ,West and Southern Africa ,ADAM SMITH INTERNATIONAL  LTD ,203839-101 ,"85,757.00",
DFID,DFID,18/04/2017,Project delivery costs – supplier services ,West and Southern Africa ,ADAM SMITH INTERNATIONAL  LTD ,203674-102 ,"114,720.30",
DFID,DFID,07/04/2017,Project delivery costs – supplier services ,West and Southern Africa ,ADAM SMITH INTERNATIONAL  LTD ,203674-102 ,"104,218.90",
DFID,DFID,18/04/2017,Project delivery costs – supplier services ,West and Southern Africa ,ADAM SMITH INTERNATIONAL  LTD ,203674-103 ,"421,143.01",
DFID,DFID,11/04/2017,Project delivery costs – supplier services ,West and Southern Africa ,ADAM SMITH INTERNATIONAL  LTD ,202584-106 ,"352,777.37",
DFID,DFID,11/04/2017,Project delivery costs – supplier services ,West and Southern Africa ,ADAM SMITH INTERNATIONAL  LTD ,202584-106 ,"9,779.98",
DFID,DFID,07/04/2017,Project delivery costs – supplier services ,West and Southern Africa ,ADAM SMITH INTERNATIONAL  LTD ,202584-108 ,577.43,
DFID,DFID,07/04/2017,Project delivery costs – supplier services ,West and Southern Africa ,ADAM SMITH INTERNATIONAL  LTD ,201433-102 ,"79,993.19",
DFID,DFID,07/04/2017,Project delivery costs – supplier services ,West and Southern Africa ,ADAM SMITH INTERNATIONAL  LTD ,204179-107 ,"16,430.00",
DFID,DFID,12/04/2017,Research and development costs - supplier services ,Research and Evidence Division ,ADAM SMITH INTERNATIONAL  LTD ,203778-104 ,"264,121.99",
DFID,DFID,12/04/2017,Research and development costs - supplier services ,Research and Evidence Division ,ADAM SMITH INTERNATIONAL  LTD ,203778-104 ,"20,904.94",
DFID,DFID,28/04/2017,Project delivery costs – supplier services ,East and Central Africa ,ADAM SMITH INTERNATIONAL  LTD ,203153-103 ,"252,432.85",
DFID,DFID,19/04/2017,Project delivery costs – supplier services ,East and Central Africa ,ADAM SMITH INTERNATIONAL  LTD ,203153-103 ,"170,180.20",
DFID,DFID,13/04/2017,Data Network -Satellite ,Communications Division ,AST CONNECTIONS LIMITED ,100154-101 ,"1,072.81",
DFID,DFID,26/04/2017,Aid Programme - Accountable Grant Payments ,East and Central Africa ,THE AEGIS TRUST ,203923-101 ,"186,902.00",
DFID,DFID,03/04/2017,Training - Course Fees ,Business Solutions Division Level ,ADVANTAGE LEARNING LTD ,200001-101 ,"3,560.00",
DFID,DFID,03/04/2017,Training - Course Fees ,Finance and Corporate Performance Division ,ADVANTAGE LEARNING LTD ,100201-101 ,970.00,
DFID,DFID,26/04/2017,Conferences  Seminars & Meeting/Event Resource ,Research and Evidence Division ,BRITISH COUNCIL (UK) ,205288-101 ,914.00,
DFID,DFID,26/04/2017,Project delivery costs – supplier services ,West and Southern Africa ,BRITISH COUNCIL (UK) ,114161-101 ,"356,181.28",
DFID,DFID,03/04/2017,Aid Programme - Voluntary contributions ,Conflict  Humanitarian  Security & Stabilisation Division ,BRITISH RED CROSS ,300264-104 ,"1,500,000.00",
DFID,DFID,20/04/2017,Data Network - land lines ,Business Solutions Division Level ,BT BACS PAYMENTS ,200002-130 ,833.64,
DFID,DFID,25/04/2017,Project delivery costs – supplier services ,West and Southern Africa ,BRITISH COUNCIL ,201625-101 ,"11,747.27",
DFID,DFID,25/04/2017,Project delivery costs – supplier services ,West and Southern Africa ,BRITISH COUNCIL ,201625-109 ,"186,994.58",
DFID,DFID,19/04/2017,Project delivery costs – supplier services ,West and Southern Africa ,BRITISH COUNCIL ,203851-102 ,"38,243.52",
DFID,DFID,24/04/2017,Project delivery costs – supplier services ,West and Southern Africa ,BRITISH COUNCIL ,203816-103 ,"44,308.98",
DFID,DFID,04/04/2017,Aid Programme - Accountable Grant Payments ,Conflict  Humanitarian  Security & Stabilisation Division ,CHRISTIAN AID ,203978-102 ,"25,000.00",
DFID,DFID,28/04/2017,Aid Programme - Accountable Grant Payments ,West and Southern Africa ,CHRISTIAN AID ,204822-106 ,"496,906.89",
DFID,DFID,13/04/2017,Aid Programme - Accountable Grant Payments ,West and Southern Africa ,CHRISTIAN AID ,201196-112 ,"546,346.42",
DFID,DFID,18/04/2017,Project delivery costs – supplier services ,West and Southern Africa ,CHRISTIAN AID ,205269-101 ,"311,788.82",
DFID,DFID,26/04/2017,Project delivery costs – supplier services ,Conflict  Humanitarian  Security & Stabilisation Division ,Crown Agents. ,205141-104 ,"1,010.23",
DFID,DFID,26/04/2017,Project delivery costs – supplier services ,Conflict  Humanitarian  Security & Stabilisation Division ,Crown Agents. ,205141-104 ,"8,884.83",
DFID,DFID,06/04/2017,Project delivery costs – supplier services ,Conflict  Humanitarian  Security & Stabilisation Division ,Crown Agents. ,205141-104 ,"24,264.00",
DFID,DFID,12/04/2017,Project delivery costs – supplier services ,Conflict  Humanitarian  Security & Stabilisation Division ,Crown Agents. ,205141-104 ,"17,526.00",
DFID,DFID,13/04/2017,Project delivery costs – supplier services ,Conflict  Humanitarian  Security & Stabilisation Division ,Crown Agents. ,203815-106 ,"3,305.96",
DFID,DFID,19/04/2017,Project delivery costs – supplier services ,Conflict  Humanitarian  Security & Stabilisation Division ,Crown Agents. ,203815-106 ,"15,772.80",
DFID,DFID,03/04/2017,Project delivery costs – supplier services ,Middle East and North Africa Division ,Crown Agents. ,300045-102 ,"3,528.50",
DFID,DFID,03/04/2017,Project delivery costs – supplier services ,Middle East and North Africa Division ,Crown Agents. ,300045-102 ,"7,879.20",
DFID,DFID,19/04/2017,Aid Programme - Humanitarian Material Relief Assistance and Services ,Middle East and North Africa Division ,Crown Agents. ,204516-103 ,"18,777.60",
DFID,DFID,26/04/2017,Project delivery costs – supplier services ,Conflict  Humanitarian  Security & Stabilisation Division ,Crown Agents. ,202741-104 ,"23,877.60",
DFID,DFID,10/04/2017,Aid Programme - Humanitarian Material Relief Assistance and Services ,Middle East and North Africa Division ,Crown Agents. ,205094-102 ,"3,241.67",
DFID,DFID,12/04/2017,Project delivery costs – supplier services ,Middle East and North Africa Division ,Crown Agents. ,205094-103 ,"11,088.00",
DFID,DFID,03/04/2017,Project delivery costs – supplier services ,Middle East and North Africa Division ,Crown Agents. ,205094-103 ,"3,134.07",
DFID,DFID,20/04/2017,Aid Programme - Humanitarian Material Relief Assistance and Services ,Middle East and North Africa Division ,Crown Agents. ,205094-104 ,"20,613.60",
DFID,DFID,24/04/2017,Aid Programme - Humanitarian Material Relief Assistance and Services ,Middle East and North Africa Division ,Crown Agents. ,205094-104 ,"1,819.00",
DFID,DFID,26/04/2017,Aid Programme - Humanitarian Material Relief Assistance and Services ,Middle East and North Africa Division ,Crown Agents. ,205094-104 ,"2,037.00",
DFID,DFID,21/04/2017,Project delivery costs – supplier services ,East and Central Africa ,Crown Agents. ,300280-106 ,"1,170.40",
DFID,DFID,20/04/2017,Project delivery costs – supplier services ,East and Central Africa ,Crown Agents. ,300280-106 ,"14,304.00",
DFID,DFID,21/04/2017,Project delivery costs – supplier services ,Middle East and North Africa Division ,Crown Agents. ,204016-103 ,"7,218.21",
DFID,DFID,13/04/2017,Project delivery costs – supplier services ,Middle East and North Africa Division ,Crown Agents. ,204016-103 ,"15,660.00",
DFID,DFID,10/04/2017,Aid Programme - Accountable Grant Payments ,Conflict  Humanitarian  Security & Stabilisation Division ,Crown Agents. ,300334-101 ,842.40,
DFID,DFID,10/04/2017,Aid Programme - Accountable Grant Payments ,Conflict  Humanitarian  Security & Stabilisation Division ,Crown Agents. ,300334-101 ,"5,342.15",
DFID,DFID,28/04/2017,Project delivery costs – supplier services ,Conflict  Humanitarian  Security & Stabilisation Division ,Crown Agents. ,203416-102 ,"29,141.87",
DFID,DFID,19/04/2017,Project delivery costs – supplier services ,Conflict  Humanitarian  Security & Stabilisation Division ,Crown Agents. ,202741-106 ,"16,292.40",
DFID,DFID,28/04/2017,Project delivery costs – supplier services ,Conflict  Humanitarian  Security & Stabilisation Division ,Crown Agents. ,202741-107 ,"1,560.00",
DFID,DFID,28/04/2017,Project delivery costs – supplier services ,Conflict  Humanitarian  Security & Stabilisation Division ,Crown Agents. ,202741-107 ,"4,592.93",
DFID,DFID,19/04/2017,Aid Programme - Humanitarian Material Relief Assistance and Services ,East and Central Africa ,Crown Agents. ,205256-104 ,"1,245.57",
DFID,DFID,21/04/2017,Project delivery costs – supplier services ,East and Central Africa ,Crown Agents. ,205256-104 ,"2,466.79",
DFID,DFID,20/04/2017,Project delivery costs – supplier services ,West and Southern Africa ,Crown Agents. ,300298-105 ,"24,024.00",
DFID,DFID,21/04/2017,Aid Programme - Accountable Grant Payments ,East and Central Africa ,Crown Agents. ,205256-104 ,"1,245.81",
DFID,DFID,11/04/2017,Aid Programme - Accountable Grant Payments ,East and Central Africa ,Crown Agents. ,205256-104 ,"15,523.20",
DFID,DFID,13/04/2017,Aid Programme - Accountable Grant Payments ,Conflict  Humanitarian  Security & Stabilisation Division ,Crown Agents. ,300334-101 ,"63,399.86",
DFID,DFID,06/04/2017,Aid Programme - Accountable Grant Payments ,Conflict  Humanitarian  Security & Stabilisation Division ,Crown Agents. ,300334-101 ,"3,643.20",
DFID,DFID,28/04/2017,Project delivery costs – supplier services ,Conflict  Humanitarian  Security & Stabilisation Division ,Crown Agents. ,203416-102 ,"23,208.08",
DFID,DFID,05/04/2017,Project delivery costs – supplier services ,West and Southern Africa ,Crown Agents. ,202416-115 ,"1,740.09",
DFID,DFID,25/04/2017,Project delivery costs – supplier services ,Policy Division ,Crown Agents. ,200706-102 ,"20,837.36",
DFID,DFID,24/04/2017,Project delivery costs – supplier services ,Policy Division ,Crown Agents. ,200706-102 ,"321,084.47",
DFID,DFID,19/04/2017,Project delivery costs – supplier services ,East and Central Africa ,Crown Agents. ,204439-103 ,"13,320.00",
DFID,DFID,18/04/2017,Project delivery costs – supplier services ,East and Central Africa ,Crown Agents. ,204439-103 ,"2,623.33",
DFID,DFID,24/04/2017,Project delivery costs – supplier services ,East and Central Africa ,Crown Agents. ,205286-105 ,"10,294.80",
DFID,DFID,03/04/2017,Project delivery costs – supplier services ,East and Central Africa ,Crown Agents. ,205286-105 ,"3,510.48",
DFID,DFID,21/04/2017,Project delivery costs – supplier services ,Asia  Caribbean and Overseas Territories ,Crown Agents. ,300250-106 ,546.16,
DFID,DFID,26/04/2017,Project delivery costs – supplier services ,West and Southern Africa ,Crown Agents. ,300047-102 ,"3,765.07",
DFID,DFID,20/04/2017,Project delivery costs – supplier services ,Asia  Caribbean and Overseas Territories ,Crown Agents. ,201645-105 ,"810,162.55",
DFID,DFID,28/04/2017,Aid Programme - Humanitarian Material Relief Assistance and Services ,Asia  Caribbean and Overseas Territories ,Crown Agents. ,204603-101 ,"2,667.00",
DFID,DFID,18/04/2017,Project delivery costs – supplier services ,Asia  Caribbean and Overseas Territories ,Crown Agents. ,205138-103 ,"3,040.12",
DFID,DFID,20/04/2017,Aid Programme - Humanitarian Material Relief Assistance and Services ,Middle East and North Africa Division ,Crown Agents. ,204516-102 ,"57,888.00",
DFID,DFID,12/04/2017,Project delivery costs – supplier services ,West and Southern Africa ,Crown Agents. ,300047-102 ,"15,822.00",
DFID,DFID,12/04/2017,Project delivery costs – supplier services ,West and Southern Africa ,Crown Agents. ,300047-102 ,"9,448.20",
DFID,DFID,26/04/2017,Project delivery costs – supplier services ,West and Southern Africa ,Crown Agents. ,300047-102 ,"28,228.20",
DFID,DFID,13/04/2017,Project delivery costs – supplier services ,Asia  Caribbean and Overseas Territories ,Crown Agents. ,202433-109 ,947.28,
DFID,DFID,03/04/2017,Project delivery costs – supplier services ,Asia  Caribbean and Overseas Territories ,Crown Agents. ,205145-105 ,"42,417.55",
DFID,DFID,20/04/2017,Medicines & Drugs ,West and Southern Africa ,Crown Agents. ,202992-102 ,"86,709.46",
DFID,DFID,20/04/2017,Project delivery costs – supplier services ,West and Southern Africa ,Crown Agents. ,202992-102 ,"2,514.57",
DFID,DFID,26/04/2017,Aid Programme - Humanitarian Material Relief Assistance and Services ,Middle East and North Africa Division ,Crown Agents. ,204516-102 ,"94,739.40",
DFID,DFID,04/04/2017,Aid Programme - Humanitarian Material Relief Assistance and Services ,Middle East and North Africa Division ,Crown Agents. ,204516-102 ,"67,744.80",
DFID,DFID,04/04/2017,Aid Programme - Humanitarian Material Relief Assistance and Services ,Middle East and North Africa Division ,Crown Agents. ,204516-102 ,"6,374.17",
DFID,DFID,04/04/2017,Aid Programme - Humanitarian Material Relief Assistance and Services ,Middle East and North Africa Division ,Crown Agents. ,204516-102 ,"21,107.83",
DFID,DFID,19/04/2017,Medicines & Drugs ,West and Southern Africa ,Crown Agents. ,202992-102 ,"4,947.83",
DFID,DFID,19/04/2017,Medicines & Drugs ,West and Southern Africa ,Crown Agents. ,202992-102 ,"21,897.97",
DFID,DFID,19/04/2017,Project delivery costs – supplier services ,West and Southern Africa ,Crown Agents. ,202992-102 ,635.04,
DFID,DFID,04/04/2017,Medical Equipment ,West and Southern Africa ,Crown Agents. ,202992-102 ,"18,036.72",
DFID,DFID,04/04/2017,Project delivery costs – supplier services ,West and Southern Africa ,Crown Agents. ,202992-102 ,523.06,
DFID,DFID,20/04/2017,Medicines & Drugs ,West and Southern Africa ,Crown Agents. ,202992-102 ,"2,249.35",
DFID,DFID,26/04/2017,Medicines & Drugs ,West and Southern Africa ,Crown Agents. ,202992-102 ,"83,156.99",
DFID,DFID,26/04/2017,Project delivery costs – supplier services ,West and Southern Africa ,Crown Agents. ,202992-102 ,"2,411.55",
DFID,DFID,25/04/2017,Medicines & Drugs ,West and Southern Africa ,Crown Agents. ,202992-102 ,"23,243.36",
DFID,DFID,25/04/2017,Project delivery costs – supplier services ,West and Southern Africa ,Crown Agents. ,202992-102 ,674.06,
DFID,DFID,19/04/2017,Medicines & Drugs ,West and Southern Africa ,Crown Agents. ,202992-102 ,"43,981.92",
DFID,DFID,19/04/2017,Project delivery costs – supplier services ,West and Southern Africa ,Crown Agents. ,202992-102 ,"1,275.48",
DFID,DFID,10/04/2017,Medical Equipment ,West and Southern Africa ,Crown Agents. ,202992-102 ,"34,961.18",
DFID,DFID,10/04/2017,Project delivery costs – supplier services ,West and Southern Africa ,Crown Agents. ,202992-102 ,"1,013.87",
DFID,DFID,10/04/2017,Medical Equipment ,West and Southern Africa ,Crown Agents. ,202992-102 ,"52,438.00",
DFID,DFID,10/04/2017,Project delivery costs – supplier services ,West and Southern Africa ,Crown Agents. ,202992-102 ,"1,520.70",
DFID,DFID,26/04/2017,Medicines & Drugs ,West and Southern Africa ,Crown Agents. ,202992-102 ,"20,529.00",
DFID,DFID,26/04/2017,Project delivery costs – supplier services ,West and Southern Africa ,Crown Agents. ,202992-102 ,595.34,
DFID,DFID,04/04/2017,Aid Programme - Humanitarian Material Relief Assistance and Services ,Conflict  Humanitarian  Security & Stabilisation Division ,Crown Agents. ,202878-103 ,"15,482.30",
DFID,DFID,20/04/2017,Aid Programme - Humanitarian Material Relief Assistance and Services ,Conflict  Humanitarian  Security & Stabilisation Division ,Crown Agents. ,202878-103 ,"26,888.40",
DFID,DFID,10/04/2017,DFID Purchased Relief Supplies ,East and Central Africa ,Crown Agents. ,202900-107 ,"145,929.42",
DFID,DFID,05/04/2017,DFID Purchased Relief Supplies ,East and Central Africa ,Crown Agents. ,202900-107 ,"9,068.24",
DFID,DFID,05/04/2017,DFID Purchased Relief Supplies ,East and Central Africa ,Crown Agents. ,202900-107 ,"3,183.50",
DFID,DFID,05/04/2017,DFID Purchased Relief Supplies ,East and Central Africa ,Crown Agents. ,202900-107 ,714.67,
DFID,DFID,19/04/2017,AV Conferencing systems -hardware ,Business Solutions Division Level ,COMPUTACENTER (UK) LTD ,200004-128 ,699.70,
DFID,DFID,19/04/2017,AV Conferencing systems -hardware ,Business Solutions Division Level ,COMPUTACENTER (UK) LTD ,200004-128 ,"3,298.02",
DFID,DFID,26/04/2017,Computer software maintenance ,Business Solutions Division Level ,COMPUTACENTER (UK) LTD ,200002-141 ,"53,206.39",DFID systems back up maintenance and support costs for 2017/2018 
DFID,DFID,10/04/2017,AV Conferencing systems -hardware ,Business Solutions Division Level ,COMPUTACENTER (UK) LTD ,200004-101 ,"54,305.30",
DFID,DFID,10/04/2017,Training - Course Fees ,Business Solutions Division Level ,COMPUTACENTER (UK) LTD ,200001-101 ,"1,550.79",
DFID,DFID,25/04/2017,Aid Programme - Accountable Grant Payments ,West and Southern Africa ,CAMFED ,300247-101 ,"1,849,905.00",
DFID,DFID,11/04/2017,Aid Programme - Accountable Grant Payments ,Research and Evidence Division ,CENTRE FOR ECONOMIC POLICY RESEARCH ,202835-104 ,"106,088.99",
DFID,DFID,06/04/2017,Project delivery costs – supplier services ,West and Southern Africa ,CALLUND CONSULTING LIMITED ,101622-106 ,"8,500.00",
DFID,DFID,12/04/2017,Aid Programme - Core contributions ,International Relations Division ,COMMONWEALTH FOUNDATION ,300318-104 ,"307,350.00",
DFID,DFID,18/04/2017,Storage & Distribution costs ,West and Southern Africa ,CROWN RELOCATIONS  UK ,101622-101 ,"1,818.00",
DFID,DFID,18/04/2017,Storage & Distribution costs ,West and Southern Africa ,CROWN RELOCATIONS  UK ,101622-101 ,"1,206.17",
DFID,DFID,11/04/2017,Storage & Distribution costs ,East and Central Africa ,CROWN RELOCATIONS  UK ,101634-101 ,825.00,
DFID,DFID,10/04/2017,Storage & Distribution costs ,West and Southern Africa ,CROWN RELOCATIONS  UK ,101610-101 ,540.00,
DFID,DFID,13/04/2017,Training Providers/Facilitation Services ,Finance and Corporate Performance Division ,City of Glasgow College ,100201-101 ,"8,645.00",
DFID,DFID,13/04/2017,Training - Course Fees ,Finance and Corporate Performance Division ,City of Glasgow College ,100201-101 ,"3,640.00",
DFID,DFID,21/04/2017,Training Providers/Facilitation Services ,West and Southern Africa ,Capita  Business Services ,101622-101 ,525.15,
DFID,DFID,11/04/2017,Training - Travel & Subsistence ,Asia  Caribbean and Overseas Territories ,Capita  Business Services ,202403-101 ,"3,276.13",
DFID,DFID,28/04/2017,Training Providers/Facilitation Services ,Finance and Corporate Performance Division ,Capita  Business Services ,204846-101 ,"14,091.47",
DFID,DFID,27/04/2017,Training Providers/Facilitation Services ,Finance and Corporate Performance Division ,Capita  Business Services ,204846-101 ,"1,658.54",
DFID,DFID,26/04/2017,Training - Travel & Subsistence ,Asia  Caribbean and Overseas Territories ,Capita  Business Services ,101603-101 ,"1,075.38",
DFID,DFID,07/04/2017,Training - Course Fees ,Human Resources ,Capita  Business Services ,100269-155 ,"1,549.45",
DFID,DFID,07/04/2017,Training Providers/Facilitation Services ,Finance and Corporate Performance Division ,Capita  Business Services ,204846-101 ,"9,390.24",
DFID,DFID,21/04/2017,Training - Course Fees ,Human Resources ,Capita  Business Services ,100266-103 ,"4,653.66",
DFID,DFID,24/04/2017,Training - Course Fees ,Human Resources ,Capita  Business Services ,100266-103 ,"4,653.66",
DFID,DFID,03/04/2017,Training - Course Fees ,Human Resources ,Capita  Business Services ,100269-109 ,"5,100.00",
DFID,DFID,25/04/2017,Training Providers/Facilitation Services ,West and Southern Africa ,Capita  Business Services ,101610-101 ,"2,370.83",
DFID,DFID,07/04/2017,Training Providers/Facilitation Services ,West and Southern Africa ,Capita  Business Services ,101610-101 ,"4,663.36",
DFID,DFID,07/04/2017,Training - Course Fees ,Asia  Caribbean and Overseas Territories ,Supplier Name withheld ,101601-110 ,"11,707.32",
DFID,DFID,26/04/2017,Aid Programme - Accountable Grant Payments ,West and Southern Africa ,CONCERN WORLDWIDE ,203981-102 ,"166,530.00",
DFID,DFID,19/04/2017,Project delivery costs – supplier services ,Asia  Caribbean and Overseas Territories ,CONCERN WORLDWIDE ,203264-102 ,"202,538.00",
DFID,DFID,28/04/2017,Training - Course Fees ,Human Resources ,MINISTRY OF DEFENCE ,100269-155 ,"7,847.00",
DFID,DFID,28/04/2017,Training - Course Fees ,Human Resources ,MINISTRY OF DEFENCE ,100269-155 ,"7,847.00",
DFID,DFID,24/04/2017,Project delivery costs – supplier services ,Asia  Caribbean and Overseas Territories ,Nathan Associates London Ltd ,202180-102 ,"567,596.26",
DFID,DFID,27/04/2017,Aid Programme - Accountable Grant Payments ,Economic Development Division ,ETHICAL TRADING INITIATIVE ,203448-101 ,"397,378.00",
DFID,DFID,21/04/2017,Training - Course Fees ,Human Resources ,ECA INTERNATIONAL ,100266-106 ,"2,150.00",
DFID,DFID,21/04/2017,Project delivery costs – supplier services ,East and Central Africa ,COFFEY INTERNATIONAL DEVELOPMENT LTD ,105528-101 ,"1,534.93",
DFID,DFID,26/04/2017,Project delivery costs – supplier services ,East and Central Africa ,COFFEY INTERNATIONAL DEVELOPMENT LTD ,203024-104 ,"35,113.44",
DFID,DFID,26/04/2017,Project delivery costs – supplier services ,Asia  Caribbean and Overseas Territories ,COFFEY INTERNATIONAL DEVELOPMENT LTD ,202368-102 ,"12,591.44",
DFID,DFID,07/04/2017,Project delivery costs – supplier services ,East and Central Africa ,COFFEY INTERNATIONAL DEVELOPMENT LTD ,203307-110 ,"3,940.00",
DFID,DFID,18/04/2017,Project delivery costs – supplier services ,Middle East and North Africa Division ,COFFEY INTERNATIONAL DEVELOPMENT LTD ,300305-101 ,"149,970.00",
DFID,DFID,06/04/2017,Project delivery costs – supplier services ,Middle East and North Africa Division ,COFFEY INTERNATIONAL DEVELOPMENT LTD ,300305-101 ,"150,000.00",
DFID,DFID,18/04/2017,Project delivery costs – supplier services ,Asia  Caribbean and Overseas Territories ,COFFEY INTERNATIONAL DEVELOPMENT LTD ,204952-101 ,"229,451.17",
DFID,DFID,06/04/2017,Project delivery costs – supplier services ,West and Southern Africa ,COFFEY INTERNATIONAL DEVELOPMENT LTD ,104190-109 ,"257,289.76",
DFID,DFID,10/04/2017,Project delivery costs – supplier services ,West and Southern Africa ,COFFEY INTERNATIONAL DEVELOPMENT LTD ,203429-105 ,"25,856.00",
DFID,DFID,12/04/2017,Project delivery costs – supplier services ,Policy Division ,COFFEY INTERNATIONAL DEVELOPMENT LTD ,202372-104 ,"100,544.80",
DFID,DFID,26/04/2017,Project delivery costs – supplier services ,Policy Division ,COFFEY INTERNATIONAL DEVELOPMENT LTD ,300310-101 ,"42,349.00",
DFID,DFID,21/04/2017,Project delivery costs – supplier services ,East and Central Africa ,COFFEY INTERNATIONAL DEVELOPMENT LTD ,202509-102 ,"1,400,000.00",
DFID,DFID,06/04/2017,Project delivery costs – supplier services ,Asia  Caribbean and Overseas Territories ,COFFEY INTERNATIONAL DEVELOPMENT LTD ,203508-104 ,"3,220.00",
DFID,DFID,10/04/2017,Project delivery costs – supplier services ,Asia  Caribbean and Overseas Territories ,COFFEY INTERNATIONAL DEVELOPMENT LTD ,300166-101 ,"33,000.00",
DFID,DFID,19/04/2017,Project delivery costs – supplier services ,West and Southern Africa ,COFFEY INTERNATIONAL DEVELOPMENT LTD ,202455-102 ,"30,282.00",
DFID,DFID,05/04/2017,Project delivery costs – supplier services ,West and Southern Africa ,COFFEY INTERNATIONAL DEVELOPMENT LTD ,202455-104 ,"39,154.51",
DFID,DFID,10/04/2017,Project delivery costs – supplier services ,West and Southern Africa ,COFFEY INTERNATIONAL DEVELOPMENT LTD ,202455-104 ,"3,500.00",
DFID,DFID,03/04/2017,Project delivery costs – supplier services ,West and Southern Africa ,COFFEY INTERNATIONAL DEVELOPMENT LTD ,300255-101 ,"99,194.86",
DFID,DFID,11/04/2017,Project delivery costs – supplier services ,Middle East and North Africa Division ,COFFEY INTERNATIONAL DEVELOPMENT LTD ,202241-103 ,"42,545.68",
DFID,DFID,04/04/2017,Project delivery costs – supplier services ,East and Central Africa ,COFFEY INTERNATIONAL DEVELOPMENT LTD ,205091-101 ,"109,697.81",
DFID,DFID,05/04/2017,Project delivery costs – supplier services ,Asia  Caribbean and Overseas Territories ,COFFEY INTERNATIONAL DEVELOPMENT LTD ,205138-103 ,"5,205.26",
DFID,DFID,26/04/2017,Project delivery costs – supplier services ,Asia  Caribbean and Overseas Territories ,COFFEY INTERNATIONAL DEVELOPMENT LTD ,205138-103 ,"6,385.58",
DFID,DFID,11/04/2017,Project delivery costs – supplier services ,East and Central Africa ,COFFEY INTERNATIONAL DEVELOPMENT LTD ,205143-103 ,"29,132.00",
DFID,DFID,05/04/2017,Project delivery costs – supplier services ,Asia  Caribbean and Overseas Territories ,COFFEY INTERNATIONAL DEVELOPMENT LTD ,203454-105 ,"38,907.00",
DFID,DFID,10/04/2017,Project delivery costs – supplier services ,Asia  Caribbean and Overseas Territories ,COFFEY INTERNATIONAL DEVELOPMENT LTD ,202495-112 ,"3,199.53",
DFID,DFID,13/04/2017,Project delivery costs – supplier services ,Asia  Caribbean and Overseas Territories ,COFFEY INTERNATIONAL DEVELOPMENT LTD ,300166-101 ,"52,513.00",
DFID,DFID,27/04/2017,Project delivery costs – supplier services ,East and Central Africa ,COFFEY INTERNATIONAL DEVELOPMENT LTD ,205225-101 ,"47,680.21",
DFID,DFID,06/04/2017,Project delivery costs – supplier services ,West and Southern Africa ,COFFEY INTERNATIONAL DEVELOPMENT LTD ,104190-109 ,"58,610.13",
DFID,DFID,03/04/2017,Project delivery costs – supplier services ,West and Southern Africa ,COFFEY INTERNATIONAL DEVELOPMENT LTD ,300255-101 ,"104,479.17",
DFID,DFID,28/04/2017,Aid Programme - Accountable Grant Payments ,Policy Division ,EMERGENCY NUTRITION NETWORK ,204954-104 ,"159,974.00",
DFID,DFID,25/04/2017,Other Building Products ,Group Operations ,ENVIRONMENT AGENCY ,203717-101 ,"1,290.00",
DFID,DFID,25/04/2017,Electricity ,Group Operations ,EDF ENERGY ,203717-101 ,"1,036.80",
DFID,DFID,05/04/2017,Aid Programme - Accountable Grant Payments ,Policy Division ,FARM-Africa ,203559-103 ,"49,635.00",
DFID,DFID,24/04/2017,Training Providers/Facilitation Services ,Research and Evidence Division ,FACULTY OF PUBLIC HEALTH MEDECI ,202331-102 ,"1,230.00",
DFID,DFID,18/04/2017,Aid Programme - Accountable Grant Payments ,Asia  Caribbean and Overseas Territories ,FACULTY OF PUBLIC HEALTH MEDECI ,203224-103 ,"21,790.00",
DFID,DFID,03/04/2017,Courier & Bag Services ,Business Solutions Division Level ,FCO SERVICES ,200001-101 ,"1,823.35",
DFID,DFID,03/04/2017,Repairs  Maint  Alter - Property & Constrct. Services ,Central Department Division ,FCO SERVICES ,204994-143 ,"14,356.14",
DFID,DFID,07/04/2017,Repairs  Maint  Alter - Property & Constrct. Services ,Central Department Division ,FCO SERVICES ,204994-143 ,"21,026.57",
DFID,DFID,03/04/2017,Repairs  Maint  Alter - Property & Constrct. Services ,Central Department Division ,FCO SERVICES ,204994-143 ,"39,514.08",The delivery of remedial works required to the DFID properties in multiple overseas locations as part of the 1 HMG consolidation programme
DFID,DFID,07/04/2017,Repairs  Maint  Alter - Property & Constrct. Services ,Central Department Division ,FCO SERVICES ,204994-143 ,"46,865.47",The delivery of remedial works required to the DFID properties in multiple overseas locations as part of the 1 HMG consolidation programme
DFID,DFID,06/04/2017,Repairs  Maint  Alter - Property & Constrct. Services ,Central Department Division ,FCO SERVICES ,204994-146 ,"136,890.72",
DFID,DFID,06/04/2017,Repairs  Maint  Alter - Property & Constrct. Services ,Central Department Division ,FCO SERVICES ,204994-143 ,"13,224.81",
DFID,DFID,04/04/2017,Postage Costs ,Group Operations ,FCO SERVICES ,203717-101 ,617.84,
DFID,DFID,03/04/2017,Repairs  Maint  Alter - Property & Constrct. Services ,Central Department Division ,FCO SERVICES ,204994-143 ,"28,156.42",The delivery of remedial works required to the DFID properties in multiple overseas locations as part of the 1 HMG consolidation programme
DFID,DFID,05/04/2017,Repairs  Maint  Alter - Property & Constrct. Services ,Central Department Division ,FCO SERVICES ,204994-143 ,"164,779.00",The delivery of remedial works required to the DFID properties in multiple overseas locations as part of the 1 HMG consolidation programme
DFID,DFID,03/04/2017,Repairs  Maint  Alter - Property & Constrct. Services ,Central Department Division ,FCO SERVICES ,204994-143 ,"41,470.00",The delivery of remedial works required to the DFID properties in multiple overseas locations as part of the 1 HMG consolidation programme
DFID,DFID,03/04/2017,Repairs  Maint  Alter - Property & Constrct. Services ,Central Department Division ,FCO SERVICES ,204994-143 ,"283,810.00",The delivery of remedial works required to the DFID properties in multiple overseas locations as part of the 1 HMG consolidation programme
DFID,DFID,03/04/2017,Repairs  Maint  Alter - Property & Constrct. Services ,Central Department Division ,FCO SERVICES ,204994-143 ,"83,012.00",The delivery of remedial works required to the DFID properties in multiple overseas locations as part of the 1 HMG consolidation programme
DFID,DFID,06/04/2017,Repairs  Maint  Alter - Property & Constrct. Services ,Central Department Division ,FCO SERVICES ,204994-143 ,"77,802.00",The delivery of remedial works required to the DFID properties in multiple overseas locations as part of the 1 HMG consolidation programme
DFID,DFID,03/04/2017,Repairs  Maint  Alter - Property & Constrct. Services ,Central Department Division ,FCO SERVICES ,204994-143 ,"7,135.98",
DFID,DFID,03/04/2017,Repairs  Maint  Alter - Property & Constrct. Services ,Central Department Division ,FCO SERVICES ,204994-143 ,"6,628.07",
DFID,DFID,18/04/2017,Repairs  Maint  Alter - Property & Constrct. Services ,Central Department Division ,FCO SERVICES ,204994-143 ,"2,554.08",
DFID,DFID,03/04/2017,Repairs  Maint  Alter - Property & Constrct. Services ,Central Department Division ,FCO SERVICES ,204994-143 ,"16,847.02",
DFID,DFID,03/04/2017,Repairs  Maint  Alter - Property & Constrct. Services ,Central Department Division ,FCO SERVICES ,204994-143 ,"21,856.70",
DFID,DFID,03/04/2017,Repairs  Maint  Alter - Property & Constrct. Services ,Central Department Division ,FCO SERVICES ,204994-143 ,"7,905.40",
DFID,DFID,06/04/2017,Project delivery costs – supplier services ,Business Solutions Division Level ,FCO RECOVERIES UNIT ,200002-229 ,"75,294.00",
DFID,DFID,25/04/2017,Project delivery costs – supplier services ,Policy Division ,BDO LLP ,201733-114 ,"6,000.00",
DFID,DFID,11/04/2017,Aid Programme - Accountable Grant Payments ,Asia  Caribbean and Overseas Territories ,FORUM FOR THE FUTURE ,204825-103 ,"3,935.02",
DFID,DFID,13/04/2017,Project delivery costs – supplier services ,West and Southern Africa ,PALLADIUM ,202352-102 ,"230,398.35",
DFID,DFID,19/04/2017,Project delivery costs – supplier services ,Policy Division ,PALLADIUM ,202745-104 ,"543,708.61",
DFID,DFID,26/04/2017,Project delivery costs – supplier services ,Asia  Caribbean and Overseas Territories ,PALLADIUM ,201851-101 ,"226,666.22",
DFID,DFID,04/04/2017,Fund monies to be managed and dispersed by the supplier ,East and Central Africa ,PALLADIUM ,203539-102 ,"105,642.26",
DFID,DFID,10/04/2017,Project delivery costs – supplier services ,West and Southern Africa ,PALLADIUM ,203429-103 ,"208,989.97",
DFID,DFID,26/04/2017,Project delivery costs – supplier services ,West and Southern Africa ,PALLADIUM ,203429-103 ,"24,000.00",
DFID,DFID,19/04/2017,Project delivery costs – supplier services ,Policy Division ,PALLADIUM ,201724-155 ,"189,459.19",
DFID,DFID,06/04/2017,Project delivery costs – supplier services ,East and Central Africa ,PALLADIUM ,204012-106 ,"196,689.08",
DFID,DFID,21/04/2017,Aid Programme - Accountable Grant Payments ,Research and Evidence Division ,Energy 4 Impact ,203705-123 ,"185,052.00",
DFID,DFID,21/04/2017,Aid Programme - Accountable Grant Payments ,East and Central Africa ,GOAL ,204019-121 ,"525,096.00",
DFID,DFID,28/04/2017,Aid Programme - Accountable Grant Payments ,Asia  Caribbean and Overseas Territories ,HEALTH POVERTY ACTION ,203400-115 ,"300,523.00",
DFID,DFID,10/04/2017,Project delivery costs – supplier services ,Conflict  Humanitarian  Security & Stabilisation Division ,THE HALO TRUST ,203243-119 ,"434,523.00",
DFID,DFID,27/04/2017,Project delivery costs – supplier services ,Conflict  Humanitarian  Security & Stabilisation Division ,THE HALO TRUST ,203243-126 ,"2,382,226.48",
DFID,DFID,07/04/2017,Project delivery costs – supplier services ,West and Southern Africa ,HEALTH PARTNERS INTERNATIONAL ,202694-104 ,"72,515.81",
DFID,DFID,25/04/2017,Project delivery costs – supplier services ,East and Central Africa ,HTSPE LTD ,203574-112 ,"98,234.16",
DFID,DFID,18/04/2017,Project delivery costs – supplier services ,Asia  Caribbean and Overseas Territories ,HTSPE LTD ,204984-101 ,"8,092.80",
DFID,DFID,26/04/2017,Project delivery costs – supplier services ,Research and Evidence Division ,HTSPE LTD ,203036-106 ,"18,014.00",
DFID,DFID,25/04/2017,Project delivery costs – supplier services ,East and Central Africa ,HTSPE LTD ,203574-109 ,"4,403.20",
DFID,DFID,26/04/2017,Project delivery costs – supplier services ,East and Central Africa ,HTSPE LTD ,204258-101 ,"33,496.53",
DFID,DFID,26/04/2017,Project delivery costs – supplier services ,East and Central Africa ,HTSPE LTD ,204258-101 ,"19,529.07",
DFID,DFID,04/04/2017,Project delivery costs – supplier services ,East and Central Africa ,HTSPE LTD ,204033-105 ,"6,229.97",
DFID,DFID,04/04/2017,Project delivery costs – supplier services ,East and Central Africa ,HTSPE LTD ,204033-105 ,"11,149.15",
DFID,DFID,26/04/2017,Project delivery costs – supplier services ,East and Central Africa ,HTSPE LTD ,204258-101 ,"372,888.35",
DFID,DFID,28/04/2017,Project delivery costs – supplier services ,East and Central Africa ,HTSPE LTD ,203153-104 ,"17,346.37",
DFID,DFID,06/04/2017,Project delivery costs – supplier services ,East and Central Africa ,HTSPE LTD ,202900-102 ,"32,000.00",
DFID,DFID,28/04/2017,Project delivery costs – supplier services ,East and Central Africa ,HTSPE LTD ,202900-102 ,"847,690.53",
DFID,DFID,03/04/2017,Project delivery costs – supplier services ,Asia  Caribbean and Overseas Territories ,HTSPE LTD ,203764-105 ,"11,677.31",
DFID,DFID,25/04/2017,Aid Programme - Accountable Grant Payments ,Research and Evidence Division ,HANDICAP INTERNATIONAL UK ,203706-115 ,"9,791.00",
DFID,DFID,10/04/2017,Recruitment costs ,Group Operations ,HUDSON GLOBAL RESOURCES LTD ,204284-101 ,"1,465.00",
DFID,DFID,06/04/2017,Contract & Agency Staff ,Business Solutions Division Level ,HUDSON GLOBAL RESOURCES LTD ,200001-101 ,"5,981.81",
DFID,DFID,06/04/2017,Recruitment costs ,Business Solutions Division Level ,HUDSON GLOBAL RESOURCES LTD ,200001-101 ,"4,393.98",
DFID,DFID,07/04/2017,Contract & Agency Staff ,Finance and Corporate Performance Division ,HUDSON GLOBAL RESOURCES LTD ,100201-101 ,"6,711.94",
DFID,DFID,28/04/2017,Contract & Agency Staff ,Finance and Corporate Performance Division ,HUDSON GLOBAL RESOURCES LTD ,100201-101 ,"4,256.71",
DFID,DFID,28/04/2017,Contract & Agency Staff ,Finance and Corporate Performance Division ,HUDSON GLOBAL RESOURCES LTD ,100201-101 ,"1,595.14",
DFID,DFID,28/04/2017,Contract & Agency Staff ,Finance and Corporate Performance Division ,HUDSON GLOBAL RESOURCES LTD ,100201-101 ,"4,080.48",
DFID,DFID,06/04/2017,Contract & Agency Staff ,Finance and Corporate Performance Division ,HUDSON GLOBAL RESOURCES LTD ,202437-102 ,"5,491.58",
DFID,DFID,06/04/2017,Contract & Agency Staff ,Finance and Corporate Performance Division ,HUDSON GLOBAL RESOURCES LTD ,100201-101 ,"3,895.24",
DFID,DFID,04/04/2017,Project delivery costs – supplier services ,Research and Evidence Division ,THE INSTITUTE OF DEVELOPMENT STUDIE ,205121-101 ,"73,100.44",
DFID,DFID,04/04/2017,Project delivery costs – supplier services ,Research and Evidence Division ,THE INSTITUTE OF DEVELOPMENT STUDIE ,205121-101 ,"72,209.39",
DFID,DFID,11/04/2017,Project delivery costs – supplier services ,Research and Evidence Division ,THE INSTITUTE OF DEVELOPMENT STUDIE ,204725-103 ,"514,045.91",
DFID,DFID,07/04/2017,Project delivery costs – supplier services ,West and Southern Africa ,THE INSTITUTE OF DEVELOPMENT STUDIE ,202427-103 ,"31,070.00",
DFID,DFID,11/04/2017,Aid Programme - Core contributions ,Asia  Caribbean and Overseas Territories ,INTERNATIONAL CENTRE FOR DIARRO ,202767-102 ,"716,233.00",
DFID,DFID,20/04/2017,Aid Programme - Accountable Grant Payments ,Research and Evidence Division ,INASP ,203962-101 ,"450,032.00",
DFID,DFID,12/04/2017,Training - Course Fees ,Internal Audit ,INSTITUTE OF INTERNAL AUDITORS-UK ,100121-101 ,515.00,
DFID,DFID,04/04/2017,Aid Programme - Contributions to Debt Relief ,Economic Development Division ,INTERNATIONAL DEVELOPMENT ASSOCIATION 'B ACC' ,110951-101 ,"89,410,000.00",
DFID,DFID,25/04/2017,Project delivery costs – supplier services ,Policy Division ,INTERN DEVEL EDUC ASSOC OF SCOTLAND ,201469-105 ,"104,646.00",
DFID,DFID,06/04/2017,Research and development costs - supplier services ,Research and Evidence Division ,THE UNIVERSITY OF MANCHESTER ,201010-105 ,"221,322.25",
DFID,DFID,28/04/2017,Research and development costs - supplier services ,Research and Evidence Division ,THE UNIVERSITY OF MANCHESTER ,201010-105 ,"45,552.87",
DFID,DFID,18/04/2017,Aid Programme - Accountable Grant Payments ,Conflict  Humanitarian  Security & Stabilisation Division ,INTERNATIONAL RESCUE COMMITTEE UK ,300263-102 ,"798,675.00",
DFID,DFID,04/04/2017,Aid Programme - Humanitarian Material Relief Assistance and Services ,Asia  Caribbean and Overseas Territories ,INTERNATIONAL RESCUE COMMITTEE UK ,204603-105 ,"788,584.50",
DFID,DFID,04/04/2017,Aid Programme - Accountable Grant Payments ,Asia  Caribbean and Overseas Territories ,INTERNATIONAL RESCUE COMMITTEE UK ,204603-116 ,"262,861.50",
DFID,DFID,21/04/2017,Aid Programme - Trust Funds contributions ,Economic Development Division ,IBRD HSBC T ,203481-101 ,"1,000,000.00",
DFID,DFID,21/04/2017,Aid Programme - Trust Funds contributions ,West and Southern Africa ,IBRD HSBC T ,202854-101 ,"250,000.00",
DFID,DFID,21/04/2017,Aid Programme - Trust Funds contributions ,West and Southern Africa ,IBRD HSBC T ,202854-101 ,"80,305.00",
DFID,DFID,25/04/2017,Aid Programme - Trust Funds contributions ,Economic Development Division ,IBRD HSBC T ,203808-106 ,"800,000.00",
DFID,DFID,03/04/2017,Aid Programme - Trust Funds contributions ,Asia  Caribbean and Overseas Territories ,IBRD HSBC T ,204672-101 ,"1,140,000.00",
DFID,DFID,03/04/2017,Aid Programme - Trust Funds contributions ,Asia  Caribbean and Overseas Territories ,IBRD HSBC T ,204672-105 ,"600,000.00",
DFID,DFID,03/04/2017,Aid Programme - Trust Funds contributions ,Asia  Caribbean and Overseas Territories ,IBRD HSBC T ,203996-101 ,"1,500,000.00",
DFID,DFID,03/04/2017,Aid Programme - Trust Funds contributions ,Asia  Caribbean and Overseas Territories ,IBRD HSBC T ,203996-101 ,"825,000.00",
DFID,DFID,03/04/2017,Aid Programme - Trust Funds contributions ,Asia  Caribbean and Overseas Territories ,IBRD HSBC T ,203996-103 ,"468,167.00",
DFID,DFID,07/04/2017,Aid Programme - Trust Funds contributions ,Research and Evidence Division ,IBRD HSBC T ,203050-103 ,"350,000.00",
DFID,DFID,21/04/2017,Aid Programme - Trust Funds contributions ,Economic Development Division ,IBRD HSBC T ,203481-101 ,"3,000,000.00",
DFID,DFID,24/04/2017,Project delivery costs – supplier services ,Asia  Caribbean and Overseas Territories ,IOD PARC ,202775-105 ,"1,483.30",
DFID,DFID,26/04/2017,Aid Programme - Trust Funds contributions ,West and Southern Africa ,IBRD (HSBC)  C/O THE WORLD BANK ,203312-101 ,"950,000.00",
DFID,DFID,24/04/2017,Aid Programme - Trust Funds contributions ,West and Southern Africa ,IBRD (HSBC)  C/O THE WORLD BANK ,202427-101 ,"761,390.00",
DFID,DFID,12/04/2017,Aid Programme - Trust Funds contributions ,East and Central Africa ,IBRD (HSBC)  C/O THE WORLD BANK ,202529-102 ,"1,500,000.00",
DFID,DFID,05/04/2017,Aid Programme - Trust Funds contributions ,East and Central Africa ,IBRD (HSBC)  C/O THE WORLD BANK ,204044-101 ,"300,000.00",
DFID,DFID,12/04/2017,Aid Programme - Joint programme contribution ,Asia  Caribbean and Overseas Territories ,INTERNATIONAL TRADE CENTRE ,202762-101 ,"223,915.08",
DFID,DFID,07/04/2017,Aid Programme - Accountable Grant Payments ,East and Central Africa ,INTERNATIONAL MEDICAL CORPS (UK) ,204852-112 ,"6,824.00",
DFID,DFID,04/04/2017,Aid Programme - Accountable Grant Payments ,East and Central Africa ,INTERNATIONAL MEDICAL CORPS (UK) ,204019-123 ,"403,324.00",
DFID,DFID,03/04/2017,Aid Programme - Accountable Grant Payments ,Middle East and North Africa Division ,Supplier Name withheld ,204525-101 ,"2,100,554.00",
DFID,DFID,26/04/2017,Project delivery costs – supplier services ,Policy Division ,IMPERIAL COLLEGE LONDON ,200706-101 ,"504,561.44",
DFID,DFID,18/04/2017,Hardware - servers & storage ,Business Solutions Division Level ,INSIGHT DIRECT (UK) LTD ,200001-101 ,824.08,
DFID,DFID,04/04/2017,Computer software maintenance ,Business Solutions Division Level ,CHUBB SYSTEMS LTD ,200002-149 ,"7,239.60",
DFID,DFID,03/04/2017,Aid Programme - Core contributions ,Global Funds ,IBRD-IFFIm ,111073-101 ,"44,699,300.00",
DFID,DFID,03/04/2017,Aid Programme - Core contributions ,Global Funds ,IBRD-IFFIm ,201185-101 ,"6,022,418.05",
DFID,DFID,28/04/2017,Hostile Environment Training ,Economic Development Division ,KELLOGG BROWN & ROOT LIMITED ,202259-101 ,660.00,
DFID,DFID,06/04/2017,Hostile Environment Training ,Economic Development Division ,KELLOGG BROWN & ROOT LIMITED ,202432-101 ,660.00,
DFID,DFID,11/04/2017,Hostile Environment Training ,Policy Division ,KELLOGG BROWN & ROOT LIMITED ,202396-101 ,660.00,
DFID,DFID,07/04/2017,Hostile Environment Training ,East and Central Africa ,KELLOGG BROWN & ROOT LIMITED ,101625-111 ,979.20,
DFID,DFID,10/04/2017,Hostile Environment Training ,Economic Development Division ,KELLOGG BROWN & ROOT LIMITED ,202373-101 ,660.00,
DFID,DFID,13/04/2017,Hostile Environment Training ,Research and Evidence Division ,KELLOGG BROWN & ROOT LIMITED ,203874-103 ,816.00,
DFID,DFID,13/04/2017,Hostile Environment Training ,East and Central Africa ,KELLOGG BROWN & ROOT LIMITED ,101612-101 ,979.20,
DFID,DFID,07/04/2017,Hostile Environment Training ,East and Central Africa ,KELLOGG BROWN & ROOT LIMITED ,101612-101 ,588.00,
DFID,DFID,27/04/2017,Hostile Environment Training ,Internal Audit ,KELLOGG BROWN & ROOT LIMITED ,100121-101 ,549.15,
DFID,DFID,07/04/2017,Hostile Environment Training ,Middle East and North Africa Division ,KELLOGG BROWN & ROOT LIMITED ,300078-101 ,816.00,
DFID,DFID,06/04/2017,Hostile Environment Training ,Conflict  Humanitarian  Security & Stabilisation Division ,KELLOGG BROWN & ROOT LIMITED ,202410-107 ,660.00,
DFID,DFID,12/04/2017,Hostile Environment Training ,Middle East and North Africa Division ,KELLOGG BROWN & ROOT LIMITED ,204978-101 ,979.20,
DFID,DFID,18/04/2017,Hostile Environment Training ,Middle East and North Africa Division ,KELLOGG BROWN & ROOT LIMITED ,204981-101 ,979.20,
DFID,DFID,04/04/2017,Hostile Environment Training ,Middle East and North Africa Division ,KELLOGG BROWN & ROOT LIMITED ,204981-101 ,588.00,
DFID,DFID,07/04/2017,Hostile Environment Training ,Research and Evidence Division ,KELLOGG BROWN & ROOT LIMITED ,202392-107 ,660.00,
DFID,DFID,11/04/2017,Hostile Environment Training ,Asia  Caribbean and Overseas Territories ,KELLOGG BROWN & ROOT LIMITED ,101603-102 ,660.00,
DFID,DFID,11/04/2017,Hostile Environment Training ,Asia  Caribbean and Overseas Territories ,KELLOGG BROWN & ROOT LIMITED ,101603-102 ,550.00,
DFID,DFID,07/04/2017,Hostile Environment Training ,East and Central Africa ,KELLOGG BROWN & ROOT LIMITED ,101625-108 ,660.00,
DFID,DFID,06/04/2017,Hostile Environment Training ,East and Central Africa ,KELLOGG BROWN & ROOT LIMITED ,101625-108 ,550.00,
DFID,DFID,27/04/2017,Hostile Environment Training ,East and Central Africa ,KELLOGG BROWN & ROOT LIMITED ,101633-101 ,550.00,
DFID,DFID,24/04/2017,Hostile Environment Training ,Middle East and North Africa Division ,KELLOGG BROWN & ROOT LIMITED ,300078-101 ,"1,100.00",
DFID,DFID,26/04/2017,Hostile Environment Training ,Policy Division ,KELLOGG BROWN & ROOT LIMITED ,300033-101 ,660.00,
DFID,DFID,12/04/2017,Hostile Environment Training ,West and Southern Africa ,KELLOGG BROWN & ROOT LIMITED ,101622-106 ,979.20,
DFID,DFID,13/04/2017,Hostile Environment Training ,West and Southern Africa ,KELLOGG BROWN & ROOT LIMITED ,101622-106 ,"1,320.00",
DFID,DFID,25/04/2017,Aid Programme - Accountable Grant Payments ,Policy Division ,THE LEPROSY MISSION ,203559-140 ,"92,639.00",
DFID,DFID,12/04/2017,Training - Course Fees,Research and Evidence Division ,LIVERPOOL SCHOOL OF TROPICAL MEDICINE ,202331-102 ,"6,000.00",
DFID,DFID,28/04/2017,Research and development costs - supplier services ,Research and Evidence Division ,LIVERPOOL SCHOOL OF TROPICAL MEDICINE ,201400-103 ,"355,562.51",
DFID,DFID,12/04/2017,Aid Programme - Accountable Grant Payments ,Policy Division ,LIVERPOOL SCHOOL OF TROPICAL MEDICINE ,201177-101 ,"257,987.00",
DFID,DFID,18/04/2017,Project delivery costs – supplier services ,Research and Evidence Division ,London School of Hygiene and Tropical Medicine ,203806-102 ,"95,527.61",
DFID,DFID,18/04/2017,Project delivery costs – supplier services ,Research and Evidence Division ,London School of Hygiene and Tropical Medicine ,203806-102 ,"45,902.00",
DFID,DFID,19/04/2017,Project delivery costs – supplier services ,East and Central Africa ,London School of Hygiene and Tropical Medicine ,203155-103 ,"300,806.00",
DFID,DFID,06/04/2017,Project delivery costs – supplier services ,East and Central Africa ,London School of Hygiene and Tropical Medicine ,204033-105 ,"48,018.21",
DFID,DFID,20/04/2017,Project delivery costs – supplier services ,West and Southern Africa ,Supplier Name withheld ,203154-103 ,"308,725.00",
DFID,DFID,28/04/2017,Project delivery costs – supplier services ,West and Southern Africa ,Supplier Name withheld ,205234-102 ,"490,862.68",
DFID,DFID,18/04/2017,Project delivery costs – supplier services ,East and Central Africa ,Supplier Name withheld ,204288-103 ,"73,336.43",
DFID,DFID,26/04/2017,Project delivery costs – supplier services ,Asia  Caribbean and Overseas Territories ,Supplier Name withheld ,204023-104 ,"84,194.27",
DFID,DFID,25/04/2017,Project delivery costs – supplier services ,East and Central Africa ,Supplier Name withheld ,203641-103 ,"46,856.37",
DFID,DFID,20/04/2017,Project delivery costs – supplier services ,East and Central Africa ,Supplier Name withheld ,203363-103 ,"671,471.16",
DFID,DFID,21/04/2017,Project delivery costs – supplier services ,West and Southern Africa ,Supplier Name withheld ,202678-101 ,"168,189.56",
DFID,DFID,21/04/2017,Project delivery costs – supplier services ,West and Southern Africa ,Supplier Name withheld ,202678-101 ,"31,995.16",
DFID,DFID,21/04/2017,Project delivery costs – supplier services ,West and Southern Africa ,Supplier Name withheld ,202942-102 ,"163,596.58",
DFID,DFID,21/04/2017,Project delivery costs – supplier services ,West and Southern Africa ,Supplier Name withheld ,202942-102 ,"115,442.11",
DFID,DFID,21/04/2017,Project delivery costs – supplier services ,West and Southern Africa ,Supplier Name withheld ,205234-102 ,"512,477.59",
DFID,DFID,10/04/2017,Project delivery costs – supplier services ,East and Central Africa ,Supplier Name withheld ,202893-102 ,"75,297.24",
DFID,DFID,03/04/2017,Project delivery costs – supplier services ,West and Southern Africa ,Supplier Name withheld ,205195-102 ,"38,741.01",
DFID,DFID,03/04/2017,Project delivery costs – supplier services ,West and Southern Africa ,Supplier Name withheld ,205195-102 ,"16,505.44",
DFID,DFID,10/04/2017,Project delivery costs – supplier services ,Policy Division ,Supplier Name withheld ,203148-101 ,"295,441.62",
DFID,DFID,26/04/2017,Project delivery costs – supplier services ,Policy Division ,Supplier Name withheld ,203148-101 ,"538,041.74",
DFID,DFID,20/04/2017,Data Network - land lines ,Business Solutions Division Level ,VODAFONE LIMITED ,200002-187 ,"16,612.90",
DFID,DFID,27/04/2017,Data Network - land lines ,Business Solutions Division Level ,VODAFONE LIMITED ,200002-185 ,"197,631.43", Rental charge for telecommunication data links out with the European Union for March 2017
DFID,DFID,26/04/2017,Aid Programme - Core contributions ,East and Central Africa ,MET OFFICE ,204364-109 ,"205,024.00",
DFID,DFID,12/04/2017,Aid Programme - Core contributions ,East and Central Africa ,MET OFFICE ,204624-103 ,"136,776.96",
DFID,DFID,12/04/2017,Aid Programme - Core contributions ,East and Central Africa ,MET OFFICE ,204624-107 ,"495,420.24",
DFID,DFID,25/04/2017,Hardware - printers ,Business Solutions Division Level ,RICOH UK LTD ,200001-113 ,"5,723.58",
DFID,DFID,03/04/2017,Aid Programme - Accountable Grant Payments ,Conflict  Humanitarian  Security & Stabilisation Division ,MAPACTION ,300334-101 ,"31,546.25",
DFID,DFID,10/04/2017,Aid Programme - Accountable Grant Payments ,West and Southern Africa ,OXFAM INSTITUTIONAL INCOME ACCOUNT ,300067-106 ,"136,084.00",
DFID,DFID,20/04/2017,Telephone Usage & services ,West and Southern Africa ,FOREIGN AND COMMONWEALTH OFFICE (FCO) ,101620-101 ,"1,057.00",
DFID,DFID,13/04/2017,Project delivery costs – supplier services ,International Relations Division ,FOREIGN AND COMMONWEALTH OFFICE (FCO) ,100238-101 ,748.56,
DFID,DFID,13/04/2017,Project delivery costs – supplier services ,International Relations Division ,FOREIGN AND COMMONWEALTH OFFICE (FCO) ,100238-101 ,"1,714.79",
DFID,DFID,13/04/2017,FCO shared service charges ,Central Department Division ,FOREIGN AND COMMONWEALTH OFFICE (FCO) ,200510-107 ,"12,431,478.00","Operational costs for DFID overseas office and residential accommodation, maintenance, and corporate services for April � June 2017."
DFID,DFID,12/04/2017,Telephone Usage & services ,East and Central Africa ,FOREIGN AND COMMONWEALTH OFFICE (FCO) ,101612-101 ,"13,691.81",
DFID,DFID,03/04/2017,Project delivery costs – supplier services ,Asia  Caribbean and Overseas Territories ,OXFORD POLICY MANAGEMENT ,300238-102 ,"41,945.20",
DFID,DFID,03/04/2017,Project delivery costs – supplier services ,Asia  Caribbean and Overseas Territories ,OXFORD POLICY MANAGEMENT ,300238-102 ,"17,597.98",
DFID,DFID,03/04/2017,Project delivery costs – supplier services ,East and Central Africa ,OXFORD POLICY MANAGEMENT ,205241-101 ,"65,103.68",
DFID,DFID,20/04/2017,Project delivery costs – supplier services ,Asia  Caribbean and Overseas Territories ,OXFORD POLICY MANAGEMENT ,201518-105 ,"14,471.65",
DFID,DFID,07/04/2017,Project delivery costs – supplier services ,East and Central Africa ,OXFORD POLICY MANAGEMENT ,204012-107 ,"71,070.00",
DFID,DFID,06/04/2017,Project delivery costs – supplier services ,West and Southern Africa ,OXFORD POLICY MANAGEMENT ,202623-110 ,"49,848.17",
DFID,DFID,03/04/2017,Project delivery costs – supplier services ,Asia  Caribbean and Overseas Territories ,OXFORD POLICY MANAGEMENT ,300238-102 ,"1,960.68",
DFID,DFID,03/04/2017,Project delivery costs – supplier services ,Asia  Caribbean and Overseas Territories ,OXFORD POLICY MANAGEMENT ,300238-102 ,"304,284.51",
DFID,DFID,07/04/2017,Project delivery costs – supplier services ,Research and Evidence Division ,OXFORD POLICY MANAGEMENT ,203705-111 ,"46,709.44",
DFID,DFID,20/04/2017,Project delivery costs – supplier services ,Policy Division ,OXFORD POLICY MANAGEMENT ,202918-108 ,"62,562.24",
DFID,DFID,28/04/2017,Project delivery costs – supplier services ,West and Southern Africa ,OXFORD POLICY MANAGEMENT ,205066-101 ,"90,656.83",
DFID,DFID,11/04/2017,Project delivery costs – supplier services ,West and Southern Africa ,OXFORD POLICY MANAGEMENT ,205066-101 ,"110,210.40",
DFID,DFID,03/04/2017,Project delivery costs – supplier services ,Asia  Caribbean and Overseas Territories ,OXFORD POLICY MANAGEMENT ,300238-102 ,"387,348.54",
DFID,DFID,03/04/2017,Project delivery costs – supplier services ,Asia  Caribbean and Overseas Territories ,OXFORD POLICY MANAGEMENT ,300238-102 ,"314,227.00",
DFID,DFID,25/04/2017,Project delivery costs – supplier services ,Asia  Caribbean and Overseas Territories ,OXFORD POLICY MANAGEMENT ,202367-103 ,"316,359.64",
DFID,DFID,04/04/2017,Project delivery costs – supplier services ,Asia  Caribbean and Overseas Territories ,OXFORD POLICY MANAGEMENT ,203186-105 ,"113,410.00",
DFID,DFID,04/04/2017,Project delivery costs – supplier services ,East and Central Africa ,OXFORD POLICY MANAGEMENT ,202549-107 ,"62,347.93",
DFID,DFID,26/04/2017,Project delivery costs – supplier services ,West and Southern Africa ,OXFORD POLICY MANAGEMENT ,204330-103 ,"143,585.86",
DFID,DFID,18/04/2017,Project delivery costs – supplier services ,West and Southern Africa ,OXFORD POLICY MANAGEMENT ,205182-105 ,"19,838.36",
DFID,DFID,27/04/2017,Research and development costs - supplier services ,Research and Evidence Division ,OXFORD POLICY MANAGEMENT ,203705-120 ,"122,225.00",
DFID,DFID,26/04/2017,Project delivery costs – supplier services ,Asia  Caribbean and Overseas Territories ,OPTIONS CONSULTANCY SERVICES LIMITED ,203413-103 ,"70,000.00",
DFID,DFID,04/04/2017,Project delivery costs – supplier services ,Asia  Caribbean and Overseas Territories ,OPTIONS CONSULTANCY SERVICES LIMITED ,203390-104 ,"52,850.00",
DFID,DFID,11/04/2017,Oil - Other Utilities ,Group Operations ,Government Procurement Service ,203717-101 ,"13,122.00",
DFID,DFID,12/04/2017,Oil - Other Utilities ,Group Operations ,Government Procurement Service ,203717-101 ,"12,005.45",
DFID,DFID,18/04/2017,Aid Programme - Accountable Grant Payments ,Research and Evidence Division ,OVERSEAS DEVELOPMENT INSTITUTE ,300288-101 ,"787,360.91",
DFID,DFID,19/04/2017,Aid Programme - Accountable Grant Payments ,Policy Division ,OXFAM ,203559-142 ,"266,964.11",
DFID,DFID,24/04/2017,Postage Costs ,Group Operations ,ROYAL MAIL GROUP PLC ,203717-101 ,"3,240.00",
DFID,DFID,04/04/2017,Project delivery costs – supplier services ,Asia  Caribbean and Overseas Territories ,PRICEWATERHOUSECOOPERS ,205093-103 ,"1,156,004.00",
DFID,DFID,13/04/2017,Project delivery costs – supplier services ,Asia  Caribbean and Overseas Territories ,PRICEWATERHOUSECOOPERS ,205093-103 ,"1,187,490.00",
DFID,DFID,06/04/2017,Project delivery costs – supplier services ,West and Southern Africa ,PRICEWATERHOUSECOOPERS ,205234-106 ,"87,100.00",
DFID,DFID,26/04/2017,Project delivery costs – supplier services ,Economic Development Division ,PRICEWATERHOUSECOOPERS ,204250-101 ,"182,614.14",
DFID,DFID,26/04/2017,Project delivery costs – supplier services ,Economic Development Division ,PRICEWATERHOUSECOOPERS ,204250-102 ,"26,805.35",
DFID,DFID,26/04/2017,Project delivery costs – supplier services ,Asia  Caribbean and Overseas Territories ,PRICEWATERHOUSECOOPERS ,203964-101 ,"266,485.62",
DFID,DFID,27/04/2017,Project delivery costs – supplier services ,West and Southern Africa ,PRICEWATERHOUSECOOPERS ,203161-104 ,"572,466.00",
DFID,DFID,03/04/2017,Project delivery costs – supplier services ,Policy Division ,PRICEWATERHOUSECOOPERS ,202372-102 ,"1,100,415.60",
DFID,DFID,26/04/2017,Project delivery costs – supplier services ,Economic Development Division ,PRICEWATERHOUSECOOPERS ,114178-104 ,"122,297.35",
DFID,DFID,07/04/2017,Project delivery costs – supplier services ,Economic Development Division ,PRICEWATERHOUSECOOPERS ,202648-102 ,"39,225.84",
DFID,DFID,07/04/2017,Project delivery costs – supplier services ,Economic Development Division ,PRICEWATERHOUSECOOPERS ,202648-102 ,"102,226.80",
DFID,DFID,07/04/2017,Storage & Distribution costs ,West and Southern Africa ,PICKFORDS LTD ,101610-101 ,"16,447.97",
DFID,DFID,06/04/2017,Storage & Distribution costs,West and Southern Africa ,PICKFORDS LTD ,101613-101 ,"6,087.53",
DFID,DFID,05/04/2017,Relocation costs ,West and Southern Africa ,PICKFORDS LTD ,101629-101 ,"2,904.35",
DFID,DFID,06/04/2017,Storage & Distribution costs ,Asia  Caribbean and Overseas Territories ,PICKFORDS LTD ,101604-101 ,"1,248.74",
DFID,DFID,27/04/2017,Storage & Distribution costs ,Asia  Caribbean and Overseas Territories ,Supplier Name withheld ,101601-110 ,"2,319.94",
DFID,DFID,13/04/2017,Storage & Distribution costs ,Asia  Caribbean and Overseas Territories ,PICKFORDS LTD ,101624-101 ,"1,021.13",
DFID,DFID,11/04/2017,Storage & Distribution costs ,West and Southern Africa ,PICKFORDS LTD ,101622-101 ,575.14,
DFID,DFID,05/04/2017,Storage & Distribution costs ,East and Central Africa ,PICKFORDS LTD ,203986-103 ,525.71,
DFID,DFID,04/04/2017,Storage & Distribution costs ,East and Central Africa ,PICKFORDS LTD ,101612-101 ,543.77,
DFID,DFID,12/04/2017,Storage & Distribution costs ,Asia  Caribbean and Overseas Territories ,Supplier Name withheld ,101601-110 ,"3,805.81",
DFID,DFID,03/04/2017,Storage & Distribution costs ,Conflict  Humanitarian  Security & Stabilisation Division ,PICKFORDS LTD ,202410-101 ,"2,210.46",
DFID,DFID,07/04/2017,Storage & Distribution costs ,Economic Development Division ,PICKFORDS LTD ,202373-101 ,"2,082.36",
DFID,DFID,13/04/2017,Storage & Distribution costs ,Middle East and North Africa Division ,PICKFORDS LTD ,204527-102 ,520.00,
DFID,DFID,28/04/2017,Project delivery costs – supplier services ,West and Southern Africa ,POPULATION  SERVICES INTERNATIONAL ,202640-109 ,"2,151,929.00",
DFID,DFID,11/04/2017,Project delivery costs – supplier services ,East and Central Africa ,POPULATION  SERVICES INTERNATIONAL ,204266-103 ,"185,215.00",
DFID,DFID,11/04/2017,Project delivery costs – supplier services ,East and Central Africa ,POPULATION  SERVICES INTERNATIONAL ,204266-103 ,"505,121.00",
DFID,DFID,20/04/2017,Training - Course Fees ,Research and Evidence Division ,THE POLICY PRACTICE LTD ,202331-102 ,"29,120.24",On-line training course in professional  political economic analysis for DFID staff
DFID,DFID,28/04/2017,Project delivery costs – supplier services ,East and Central Africa ,THE SAVE THE CHILDREN FUND ,202891-101 ,"711,484.72",
DFID,DFID,19/04/2017,Aid Programme - Accountable Grant Payments ,Research and Evidence Division ,THE SAVE THE CHILDREN FUND ,203705-129 ,"25,510.00",
DFID,DFID,24/04/2017,Aid Programme - Humanitarian Material Relief Assistance and Services ,Conflict  Humanitarian  Security & Stabilisation Division ,SAVE THE CHILDREN ,203044-101 ,"2,639,692.00",
DFID,DFID,11/04/2017,Aid Programme - Accountable Grant Payments ,Asia  Caribbean and Overseas Territories ,SAVE THE CHILDREN ,203101-101 ,"175,749.00",
DFID,DFID,06/04/2017,Aid Programme - Accountable Grant Payments ,Asia  Caribbean and Overseas Territories ,SAVE THE CHILDREN ,205268-105 ,"822,623.00",
DFID,DFID,12/04/2017,Training - Course Fees ,Research and Evidence Division ,SAFERWORLD ,202331-102 ,"7,599.00",
DFID,DFID,20/04/2017,Research and development costs - supplier services ,Research and Evidence Division ,SCHOOL OF ORIENTAL & AFRICAN STUDIES (UK) ,203752-104 ,"37,622.21",
DFID,DFID,18/04/2017,Project delivery costs – supplier services ,West and Southern Africa ,Social Development Direct Ltd ,203823-102 ,"121,900.00",
DFID,DFID,21/04/2017,Project delivery costs – supplier services ,West and Southern Africa ,Social Development Direct Ltd ,203823-106 ,"47,495.96",
DFID,DFID,19/04/2017,Project delivery costs – supplier services ,Policy Division ,Social Development Direct Ltd ,203245-106 ,"19,807.06",
DFID,DFID,04/04/2017,Project delivery costs – supplier services ,Conflict  Humanitarian  Security & Stabilisation Division ,Social Development Direct Ltd ,204829-101 ,"40,000.00",
DFID,DFID,07/04/2017,Project delivery costs – supplier services ,Asia  Caribbean and Overseas Territories ,SERIOUS FRAUD OFFICE ,204792-104 ,"55,000.00",
DFID,DFID,20/04/2017,Project delivery costs – supplier services ,Asia  Caribbean and Overseas Territories ,SERIOUS FRAUD OFFICE ,204792-104 ,"55,000.00",
DFID,DFID,13/04/2017,Aid Programme - Accountable Grant Payments ,West and Southern Africa ,SAVE THE CHILDREN UK ,300298-101 ,"85,473.00",
DFID,DFID,21/04/2017,Aid Programme - Accountable Grant Payments ,West and Southern Africa ,SAVE THE CHILDREN UK ,205122-103 ,"3,016,132.00",
DFID,DFID,18/04/2017,Courier & Bag Services ,Group Operations ,TNT Express (UK) Ltd ,100106-101 ,797.46,
DFID,DFID,10/04/2017,Postage Costs ,Group Operations ,TNT Express (UK) Ltd ,100106-101 ,709.02,
DFID,DFID,27/04/2017,Storage & Distribution costs ,Business Solutions Division Level ,TNT Express (UK) Ltd ,200001-101 ,"4,872.63",
DFID,DFID,20/04/2017,Legal costs ,Finance and Corporate Performance Division ,GOVERNMENT LEGAL DEPARTMENT ,100201-101 ,580.32,
DFID,DFID,18/04/2017,Legal costs ,Human Resources ,GOVERNMENT LEGAL DEPARTMENT ,100269-136 ,"3,092.00",
DFID,DFID,19/04/2017,Legal costs ,Conflict  Humanitarian  Security & Stabilisation Division ,GOVERNMENT LEGAL DEPARTMENT ,100049-101 ,"4,386.06",
DFID,DFID,18/04/2017,Project delivery costs – supplier services ,Conflict  Humanitarian  Security & Stabilisation Division ,GOVERNMENT LEGAL DEPARTMENT ,202741-104 ,"4,386.06",
DFID,DFID,13/04/2017,Project delivery costs – supplier services ,Economic Development Division ,GOVERNMENT LEGAL DEPARTMENT ,201394-104 ,982.08,
DFID,DFID,12/04/2017,Computer Software Licenses ,Business Solutions Division Level ,TRUSTMARQUE SOLUTIONS LTD ,200002-228 ,"6,359.11",
DFID,DFID,07/04/2017,Computer software maintenance ,Business Solutions Division Level ,TRUSTMARQUE SOLUTIONS LTD ,200002-151 ,"94,239.00",Database support and maintenance contract for electronic and document records management system  for  April to September 2017 
DFID,DFID,26/04/2017,Aid Programme - Voluntary contributions ,Middle East and North Africa Division ,UNICEF ,300059-101 ,"9,000,000.00",
DFID,DFID,13/04/2017,Aid Programme - Voluntary contributions ,Middle East and North Africa Division ,UNICEF ,300331-101 ,"1,000,000.00",
DFID,DFID,18/04/2017,Aid Programme - Accountable Grant Payments ,East and Central Africa ,TROCAIRE (Northern Ireland) ,202619-109 ,"153,587.83",
DFID,DFID,26/04/2017,Project delivery costs – supplier services ,Policy Division ,TROPICAL HEALTH AND EDUCATION TRUST ,202208-101 ,565.57,
DFID,DFID,28/04/2017,Project delivery costs – supplier services ,West and Southern Africa ,TRL LTD ,201433-102 ,"36,265.28",
DFID,DFID,04/04/2017,Aid Programme - Accountable Grant Payments ,Asia  Caribbean and Overseas Territories ,THE OPEN UNIVERSITY ,203480-101 ,"400,000.00",
DFID,DFID,13/04/2017,Aid Programme - Accountable Grant Payments ,East and Central Africa ,THE MENTOR INITIATIVE ,113303-113 ,"321,182.00",
DFID,DFID,12/04/2017,Training Providers/Facilitation Services ,Research and Evidence Division ,University Of Sussex ,202331-101 ,"8,429.50",
DFID,DFID,27/04/2017,Aid Programme - Core contributions ,West and Southern Africa ,UNDP CONTRIBUTIONS ACCOUNT ,300144-101 ,"1,100,000.00",
DFID,DFID,12/04/2017,Aid Programme - Core contributions ,West and Southern Africa ,UNDP CONTRIBUTIONS ACCOUNT ,203824-102 ,"1,500,000.00",
DFID,DFID,24/04/2017,Aid Programme - Voluntary contributions ,Middle East and North Africa Division ,UN RELIEF AND WORKS AGENCY ,204535-102 ,"600,000.00",
DFID,DFID,25/04/2017,Aid Programme - Pooled/Basket funding ,East and Central Africa ,UNDP CONTRIBUTIONS GBP ,204788-109 ,"400,000.00",
DFID,DFID,25/04/2017,Aid Programme - Pooled/Basket funding ,East and Central Africa ,UNDP CONTRIBUTIONS GBP ,204788-110 ,"605,000.00",
DFID,DFID,21/04/2017,Aid Programme - Pooled/Basket funding ,East and Central Africa ,UNDP CONTRIBUTIONS GBP ,204437-101 ,"300,000.00",
DFID,DFID,11/04/2017,Aid Programme - Voluntary contributions ,Asia  Caribbean and Overseas Territories ,UNDP CONTRIBUTIONS GBP ,202972-103 ,"400,000.00",
DFID,DFID,27/04/2017,Aid Programme - Joint programme contribution ,Asia  Caribbean and Overseas Territories ,UNDP CONTRIBUTIONS GBP ,203385-102 ,"250,000.00",
DFID,DFID,18/04/2017,Aid Programme - Trust Funds contributions ,Asia  Caribbean and Overseas Territories ,UNDP CONTRIBUTIONS GBP ,108538-104 ,"100,000.00",
DFID,DFID,26/04/2017,Aid Programme - Voluntary contributions ,East and Central Africa ,UNICEF ,204903-103 ,"1,500,000.00",
DFID,DFID,25/04/2017,Aid Programme - Voluntary contributions ,East and Central Africa ,UNICEF ,205116-106 ,"500,000.00",
DFID,DFID,28/04/2017,Aid Programme - Voluntary contributions ,East and Central Africa ,UNICEF ,300367-101 ,"2,500,000.00",
DFID,DFID,25/04/2017,Aid Programme - Voluntary contributions ,East and Central Africa ,UNICEF ,300367-101 ,"1,500,000.00",
DFID,DFID,12/04/2017,Aid Programme - Humanitarian Material Relief Assistance and Services ,Middle East and North Africa Division ,UNICEF ,205094-104 ,"2,000,000.00",
DFID,DFID,25/04/2017,Aid Programme - Humanitarian Material Relief Assistance and Services ,East and Central Africa ,UNICEF ,203462-102 ,"15,000,000.00",
DFID,DFID,06/04/2017,Aid Programme - Pooled/Basket funding ,West and Southern Africa ,UNICEF ,204831-101 ,"2,500,000.00",
DFID,DFID,26/04/2017,Aid Programme - Voluntary contributions ,West and Southern Africa ,UNICEF ,203445-103 ,"11,431,761.00",
DFID,DFID,26/04/2017,Aid Programme - Accountable Grant Payments ,Policy Division ,VOLUNTARY SERVICE OVERSEAS ,300083-102 ,"4,593,000.00",
DFID,DFID,12/04/2017,Project delivery costs – supplier services ,Policy Division ,VOLUNTARY SERVICE OVERSEAS ,204894-101 ,"1,698,816.44",
DFID,DFID,11/04/2017,Training Providers/Facilitation Services ,Group Operations ,VULCAN FIRE TRAINING CO LTD ,100106-101 ,575.00,
DFID,DFID,04/04/2017,Data Network - land lines ,Business Solutions Division Level ,VERIZON UK LIMITED ,200002-126 ,"8,007.13",
DFID,DFID,06/04/2017,Training - Travel & Subsistence ,Asia  Caribbean and Overseas Territories ,British High Commission (Dhaka) ,100025-101 ,804.50,
DFID,DFID,06/04/2017,Training - Travel & Subsistence ,Asia  Caribbean and Overseas Territories ,Saimon Overseas Ltd ,100025-101 ,972.27,
DFID,DFID,25/04/2017,Air fares ,East and Central Africa ,Mukwa Travel and Tours ,101625-112 ,"1,310.60",
DFID,DFID,25/04/2017,Air fares ,West and Southern Africa ,Mukwa Travel and Tours ,101637-101 ,"1,154.51",
DFID,DFID,18/04/2017,Air fares ,West and Southern Africa ,Mukwa Travel and Tours ,101637-101 ,647.94,
DFID,DFID,28/04/2017,Repairs  Maintenance and Alterations – Other Building Costs ,Asia  Caribbean and Overseas Territories ,John Sanday Associates Pvt. Ltd ,101621-101 ,"1,119.75",
DFID,DFID,24/04/2017,Hotels - Accommodation only ,West and Southern Africa ,Accra City Hotel ,101613-101 ,726.70,
DFID,DFID,24/04/2017,Conferences  Seminars & Meeting/Event Resource ,West and Southern Africa ,Accra City Hotel ,204918-101 ,"1,013.39",
DFID,DFID,25/04/2017,Hotels - Accommodation only ,East and Central Africa ,Sheraton Hotel ,101635-101 ,646.31,
DFID,DFID,10/04/2017,Air fares ,East and Central Africa ,KAMPALA EXECUTIVE AVIATION ,101635-101 ,"7,679.87",
DFID,DFID,06/04/2017,Air fares ,East and Central Africa ,Simbatravelcare Limited ,101635-101 ,"1,252.59",
DFID,DFID,19/04/2017,Air fares ,East and Central Africa ,Simbatravelcare Limited ,101635-101 ,"1,625.50",
DFID,DFID,19/04/2017,Air fares ,East and Central Africa ,Simbatravelcare Limited ,101635-101 ,657.37,
DFID,DFID,19/04/2017,Air fares ,East and Central Africa ,Simbatravelcare Limited ,101635-101 ,609.56,
DFID,DFID,07/04/2017,Air fares ,East and Central Africa ,WFP Somalia ,101630-101 ,"1,725.52",
DFID,DFID,18/04/2017,Project delivery costs – supplier services ,Asia  Caribbean and Overseas Territories ,The Population Council ,114506-101 ,"124,629.00",
DFID,DFID,18/04/2017,Research and development costs - supplier services ,Research and Evidence Division ,The Population Council ,204329-103 ,"261,165.00",
DFID,DFID,03/04/2017,Research and development costs - supplier services ,Research and Evidence Division ,The Population Council ,204329-103 ,"111,953.80",
DFID,DFID,03/04/2017,Aid Programme - Accountable Grant Payments ,West and Southern Africa ,The Population Council ,202344-102 ,"75,071.00",
DFID,DFID,18/04/2017,Research and development costs - supplier services ,Research and Evidence Division ,South African Institute of International Affairs ,204584-147 ,"34,599.00",
DFID,DFID,19/04/2017,Project delivery costs – supplier services ,West and Southern Africa , Khulisa Management Services ,204970-104 ,"72,680.00",
DFID,DFID,05/04/2017,Hotels - Accommodation only ,West and Southern Africa ,SENTINEL EXECUTIVE SUITES CC ,101631-101 ,619.73,
DFID,DFID,26/04/2017,Hotels - Accommodation only ,West and Southern Africa ,Hotel Cardoso S A R L ,101620-101 ,753.26,
DFID,DFID,19/04/2017,Aid Programme - Core contributions ,International Relations Division ,FOOD AND AGRICULTURE ORGANIZATION (EURO) ,204147-101 ,"8,445,474.61",
DFID,DFID,24/04/2017,Research and development costs - supplier services ,Research and Evidence Division ,Overseas Development Institute ,203529-106 ,"388,091.25",
DFID,DFID,19/04/2017,Research and development costs - supplier services ,Research and Evidence Division ,Overseas Development Institute ,201009-106 ,"600,297.37",
DFID,DFID,07/04/2017,Aid Programme - Accountable Grant Payments ,Economic Development Division ,Overseas Development Institute ,204254-101 ,"373,663.94",
DFID,DFID,26/04/2017,Project delivery costs – supplier services ,Research and Evidence Division ,Overseas Development Institute ,203199-109 ,"120,667.76",
DFID,DFID,25/04/2017,Aid Programme - Core contributions ,East and Central Africa ,THE WORLD BANK (IBRD ACCOUNT) ,203348-102 ,"257,953.57",
DFID,DFID,05/04/2017,Project delivery costs – supplier services ,International Relations Division ,ART OF LIVING ,205081-101 ,"2,340.00",
DFID,DFID,07/04/2017,Project delivery costs – supplier services ,International Relations Division ,ART OF LIVING ,205081-101 ,"2,302.00",
DFID,DFID,04/04/2017,Training - Course Fees ,Finance and Corporate Performance Division ,KAPLAN FINANCIAL LTD ,100008-101 ,"1,744.00",
DFID,DFID,05/04/2017,Training - Course Fees ,Policy Division ,KAPLAN FINANCIAL LTD ,100277-101 ,"1,155.00",
DFID,DFID,13/04/2017,Aid Programme - Humanitarian Material Relief Assistance and Services ,Asia  Caribbean and Overseas Territories ,UN OCHA ,204603-109 ,"2,000,000.00",
DFID,DFID,13/04/2017,Aid Programme - Humanitarian Material Relief Assistance and Services ,Asia  Caribbean and Overseas Territories ,UN OCHA ,204603-114 ,"600,000.00",
DFID,DFID,27/04/2017,Aid Programme - Humanitarian Material Relief Assistance and Services ,Conflict  Humanitarian  Security & Stabilisation Division ,UN OCHA ,203419-105 ,"6,458.23",
DFID,DFID,27/04/2017,Aid Programme - Voluntary contributions ,Middle East and North Africa Division ,UN OCHA ,300020-101 ,"18,000,000.00",
DFID,DFID,03/04/2017,Computer Software Licenses ,Business Solutions Division Level ,SOFTWARE BOX LTD (SBL) ,200004-102 ,"11,692.80",
DFID,DFID,04/04/2017,Computer Consumables ,Business Solutions Division Level ,SOFTWARE BOX LTD (SBL) ,200002-197 ,616.39,
DFID,DFID,28/04/2017,Project delivery costs – supplier services ,Group Operations ,ASSESSMENT SERVICES LTD ,204284-101 ,"1,102.50",
DFID,DFID,25/04/2017,Aid Programme - Humanitarian Material Relief Assistance and Services ,East and Central Africa ,FAO ,203462-102 ,"9,320,000.00",
DFID,DFID,13/04/2017,Aid Programme - Voluntary contributions ,West and Southern Africa ,FAO ,203429-101 ,"4,338,795.00",
DFID,DFID,24/04/2017,Aid Programme - Voluntary contributions ,Policy Division ,FAO ,201724-146 ,"850,000.00",
DFID,DFID,27/04/2017,Aid Programme - Refugee Relief Payments ,East and Central Africa ,WFP CONTRIBUTIONS UNIT ,205070-102 ,"1,000,000.00",
DFID,DFID,26/04/2017,Aid Programme - Joint programme contribution ,Asia  Caribbean and Overseas Territories ,WFP CONTRIBUTIONS UNIT ,203385-102 ,"106,075.43",
DFID,DFID,18/04/2017,Aid Programme - Humanitarian Material Relief Assistance and Services ,Asia  Caribbean and Overseas Territories ,WFP CONTRIBUTIONS UNIT ,204603-108 ,"500,000.00",
DFID,DFID,19/04/2017,Aid Programme - Voluntary contributions ,Asia  Caribbean and Overseas Territories ,WFP CONTRIBUTIONS UNIT ,202972-104 ,"300,000.00",
DFID,DFID,25/04/2017,Aid Programme - Voluntary contributions ,East and Central Africa ,WFP CONTRIBUTIONS UNIT ,205116-105 ,"1,900,000.00",
DFID,DFID,07/04/2017,Aid Programme - Humanitarian Material Relief Assistance and Services ,Asia  Caribbean and Overseas Territories ,WFP CONTRIBUTIONS UNIT ,205138-107 ,"450,401.70",
DFID,DFID,27/04/2017,Aid Programme - Voluntary contributions ,East and Central Africa ,WFP CONTRIBUTIONS UNIT ,203462-102 ,"20,000,000.00",
DFID,DFID,07/04/2017,Data Network - land lines ,Business Solutions Division Level ,KUBE NETWORKS LTD ,200002-130 ,"1,115.57",
DFID,DFID,27/04/2017,DFID Purchased Relief Supplies ,Policy Division ,IPA-International Procurement Agency (BV) ,201724-144 ,"15,427.78",
DFID,DFID,21/04/2017,Project delivery costs – supplier services ,West and Southern Africa ,IPA-International Procurement Agency (BV) ,204917-101 ,"60,927.02",
DFID,DFID,19/04/2017,DFID Purchased Relief Supplies ,West and Southern Africa ,IPA-International Procurement Agency (BV) ,203714-103 ,"27,344.25",
DFID,DFID,19/04/2017,Project delivery costs – supplier services ,West and Southern Africa ,IPA-International Procurement Agency (BV) ,203714-103 ,"1,367.21",
DFID,DFID,07/04/2017,Aid Programme - Accountable Grant Payments ,East and Central Africa ,AGRA IN AFRICA (NO2) ,203574-104 ,"650,276.00",
DFID,DFID,07/04/2017,Aid Programme - Accountable Grant Payments ,East and Central Africa ,AGRA IN AFRICA (NO2) ,203574-107 ,"121,881.00",
DFID,DFID,25/04/2017,Aid Programme - Accountable Grant Payments ,Research and Evidence Division ,AATF ,204988-102 ,"250,000.00",
DFID,DFID,25/04/2017,Aid Programme - Accountable Grant Payments ,Research and Evidence Division ,AATF ,204988-102 ,"480,000.00",
DFID,DFID,10/04/2017,Subscriptions ,Economic Development Division ,FINANCIAL TIMES LTD ,202259-101 ,"4,116.00",
DFID,DFID,11/04/2017,Fund monies to be managed and dispersed by the supplier ,Policy Division ,KPMG EAST AFRICA LTD ,201724-142 ,"3,672,052.00",
DFID,DFID,26/04/2017,Project delivery costs – supplier services ,Economic Development Division ,LONDON SCHOOL OF ECONOMICS AND POLITICAL SCIENCE ,203286-101 ,"4,764,099.12",
DFID,DFID,21/04/2017,Project delivery costs – supplier services ,West and Southern Africa ,UPPER QUARTILE ,201625-107 ,"71,739.20",
DFID,DFID,24/04/2017,Hotels - Accommodation only ,West and Southern Africa ,The Country Lodge Complex ,101629-101 ,773.73,
DFID,DFID,27/04/2017,Aid Programme - Voluntary contributions ,International Relations Division ,UNFPA ,203855-102 ,"24,250,000.00",
DFID,DFID,11/04/2017,Project delivery costs – supplier services ,Policy Division ,KPMG LLP ,300083-101 ,"7,503.12",
DFID,DFID,11/04/2017,Project delivery costs – supplier services ,Policy Division ,KPMG LLP ,300326-101 ,"7,632.59",
DFID,DFID,12/04/2017,Project delivery costs – supplier services ,Economic Development Division ,KPMG LLP ,202647-101 ,"9,916.80",
DFID,DFID,04/04/2017,Project delivery costs – supplier services ,Economic Development Division ,KPMG LLP ,202647-101 ,"45,124.80",
DFID,DFID,19/04/2017,Project delivery costs – supplier services ,Economic Development Division ,KPMG LLP ,204252-113 ,"389,219.83",
DFID,DFID,06/04/2017,Project delivery costs – supplier services ,Economic Development Division ,KPMG LLP ,204252-113 ,"168,772.93",
DFID,DFID,28/04/2017,Aid Programme - Voluntary contributions ,West and Southern Africa ,WHO (GENEVA) ,205182-102 ,"712,534.28",
DFID,DFID,07/04/2017,Aid Programme - Voluntary contributions ,East and Central Africa ,WHO (GENEVA) ,203155-104 ,"698,081.00",
DFID,DFID,10/04/2017,Aid Programme - Pooled/Basket funding ,Research and Evidence Division ,WHO (GENEVA) ,204765-104 ,"738,306.00",
DFID,DFID,27/04/2017,Aid Programme - Voluntary contributions ,Middle East and North Africa Division ,WHO (GENEVA) ,300097-101 ,"3,500,000.00",
DFID,DFID,04/04/2017,Aid Programme - Voluntary contributions ,Asia  Caribbean and Overseas Territories ,IOM ,300051-101 ,"200,000.00",
DFID,DFID,04/04/2017,Aid Programme - Voluntary contributions ,Asia  Caribbean and Overseas Territories ,IOM ,300051-101 ,"200,000.00",
DFID,DFID,07/04/2017,Aid Programme - Accountable Grant Payments ,West and Southern Africa ,SEARCH FOR COMMON GROUND ,203878-103 ,"454,533.00",
DFID,DFID,24/04/2017,Project delivery costs – supplier services ,Asia  Caribbean and Overseas Territories ,BMB MOTT  MACDONALD ,107480-101 ,"66,474.74",
DFID,DFID,24/04/2017,Project delivery costs – supplier services ,West and Southern Africa ,IPE Global Ltd. ,203164-102 ,"305,835.95",
DFID,DFID,10/04/2017,Project delivery costs – supplier services ,Asia  Caribbean and Overseas Territories ,IPE Global Ltd. ,202927-101 ,"5,881.10",
DFID,DFID,04/04/2017,Project delivery costs – supplier services ,Asia  Caribbean and Overseas Territories ,IPE Global Ltd. ,204237-101 ,"26,158.54",
DFID,DFID,13/04/2017,Project delivery costs – supplier services ,Asia  Caribbean and Overseas Territories ,IPE Global Ltd. ,204825-106 ,"20,675.16",
DFID,DFID,24/04/2017,Project delivery costs – supplier services ,Asia  Caribbean and Overseas Territories ,IPE Global Ltd. ,204794-103 ,"21,405.46",
DFID,DFID,19/04/2017,Project delivery costs – supplier services ,Asia  Caribbean and Overseas Territories ,IPE Global Ltd. ,204794-103 ,"42,560.36",
DFID,DFID,07/04/2017,Project delivery costs – supplier services ,East and Central Africa ,IPE Global Ltd. ,204957-102 ,"7,309.03",
DFID,DFID,07/04/2017,Project delivery costs – supplier services ,East and Central Africa ,IPE Global Ltd. ,204957-102 ,"14,618.06",
DFID,DFID,07/04/2017,Project delivery costs – supplier services ,East and Central Africa ,IPE Global Ltd. ,204957-102 ,"18,272.42",
DFID,DFID,07/04/2017,Project delivery costs – supplier services ,East and Central Africa ,IPE Global Ltd. ,204957-102 ,"7,309.03",
DFID,DFID,19/04/2017,Project delivery costs – supplier services ,Asia  Caribbean and Overseas Territories ,IPE Global Ltd. ,204794-103 ,"69,000.00",
DFID,DFID,19/04/2017,Project delivery costs – supplier services ,Asia  Caribbean and Overseas Territories ,IPE Global Ltd. ,204794-103 ,"20,700.00",
DFID,DFID,21/04/2017,Project delivery costs – supplier services ,Asia  Caribbean and Overseas Territories ,IPE Global Ltd. ,204794-103 ,"97,750.00",
DFID,DFID,07/04/2017,Project delivery costs – supplier services ,East and Central Africa ,IPE Global Ltd. ,204957-102 ,"14,618.06",
DFID,DFID,07/04/2017,Project delivery costs – supplier services ,East and Central Africa ,IPE Global Ltd. ,204957-102 ,"36,544.99",
DFID,DFID,07/04/2017,Project delivery costs – supplier services ,East and Central Africa ,IPE Global Ltd. ,204957-102 ,"7,309.03",
DFID,DFID,05/04/2017,Aid Programme - Humanitarian Material Relief Assistance and Services ,East and Central Africa ,THE INTERNATIONAL COMMITTEE OF THE RED CROSS (ICRC) ,205286-102 ,"1,000,000.00",
DFID,DFID,28/04/2017,Aid Programme - Humanitarian Material Relief Assistance and Services ,East and Central Africa ,THE INTERNATIONAL COMMITTEE OF THE RED CROSS (ICRC) ,204439-110 ,"1,250,000.00",
DFID,DFID,18/04/2017,Aid Programme - Humanitarian Material Relief Assistance and Services ,East and Central Africa ,THE INTERNATIONAL COMMITTEE OF THE RED CROSS (ICRC) ,204439-110 ,"4,500,000.00",
DFID,DFID,28/04/2017,Aid Programme - Accountable Grant Payments ,West and Southern Africa ,The Carter Center ,204889-102 ,"199,948.00",
DFID,DFID,12/04/2017,Aid Programme - Accountable Grant Payments ,Economic Development Division ,International Centre for Trade and Sustainable Development ,204717-101 ,"425,000.00",
DFID,DFID,28/04/2017,Aid Programme - Accountable Grant Payments ,Conflict  Humanitarian  Security & Stabilisation Division ,INTERNATIONAL RESCUE COMMITTEE ,204060-101 ,"723,648.00",
DFID,DFID,19/04/2017,Aid Programme - Core contributions ,Research and Evidence Division ,WELLCOME TRUST ,204765-103 ,"560,146.00",
DFID,DFID,27/04/2017,Aid Programme - Core contributions ,Global Funds ,WORLD HEALTH ORGANISATION (WHO) ,204028-101 ,"7,250,000.00",
DFID,DFID,21/04/2017,Aid Programme - Core contributions ,International Relations Division ,FOOD AND AGRICULTURE ORGANISATION (USD) ,204147-101 ,"11,405,440.97",
DFID,DFID,26/04/2017,Aid Programme - Core contributions ,East and Central Africa ,EITI Secretariat ,203308-107 ,"150,000.00",
DFID,DFID,26/04/2017,Aid Programme - Core contributions ,Research and Evidence Division ,BILL & MELINDA GATES FOUNDATION (USD) ,205273-103 ,"1,564,700.36",
DFID,DFID,12/04/2017,Hotels - Accommodation only ,East and Central Africa ,Southern Sun Hotels(T) Ltd (USD) ,204334-102 ,688.71,
DFID,DFID,10/04/2017,Aid Programme - Accountable Grant Payments ,Asia  Caribbean and Overseas Territories ,Chinadialogue ,202775-104 ,"36,286.00",
DFID,DFID,19/04/2017,Project delivery costs – supplier services ,Business Solutions Division Level ,Capita Business Serivces Ltd ,200001-101 ,"7,080.00",
DFID,DFID,27/04/2017,Aid Programme - Voluntary contributions ,Policy Division ,EUROPEAN FOREST INSTITUTE ,201724-110 ,"2,000,000.00",
DFID,DFID,28/04/2017,Fund monies to be managed and dispersed by the supplier ,East and Central Africa ,BMB  MOTT  MACDONALD ,203383-101 ,"487,460.00",
DFID,DFID,26/04/2017,Fund monies to be managed and dispersed by the supplier ,East and Central Africa ,BMB  MOTT  MACDONALD ,203383-101 ,"12,540.00",
DFID,DFID,28/04/2017,Project delivery costs – supplier services ,East and Central Africa ,BMB  MOTT  MACDONALD ,202511-102 ,"638,284.89",
DFID,DFID,05/04/2017,Aid Programme - Trust Funds contributions ,Asia  Caribbean and Overseas Territories ,UNOPS ,201239-101 ,"15,000,000.00",
DFID,DFID,05/04/2017,Aid Programme - Trust Funds contributions ,Asia  Caribbean and Overseas Territories ,UNOPS ,201239-103 ,"5,000,000.00",
DFID,DFID,28/04/2017,Aid Programme - Accountable Grant Payments ,Asia  Caribbean and Overseas Territories ,Transparency International (Bangladesh) ,203488-101 ,"712,500.00",
DFID,DFID,28/04/2017,Aid Programme - Accountable Grant Payments ,Asia  Caribbean and Overseas Territories ,Transparency International (Bangladesh) ,203488-102 ,"137,500.00",
DFID,DFID,28/04/2017,Aid Programme - Accountable Grant Payments ,Asia  Caribbean and Overseas Territories ,Transparency International (Bangladesh) ,203488-104 ,"100,000.00",
DFID,DFID,27/04/2017,Joint programme contribution ,Asia  Caribbean and Overseas Territories ,Swiss Agency for Development and Cooperation SDC (Bangladesh) ,203229-101 ,"781,799.70",
DFID,DFID,04/04/2017,Project delivery costs – supplier services ,Economic Development Division ,CARDNO EMERGING MARKETS (UK) LTD ,204253-105 ,"148,496.24",
DFID,DFID,18/04/2017,Project delivery costs – supplier services ,Asia  Caribbean and Overseas Territories ,UN ESCAP ,203035-102 ,"20,625.00",
DFID,DFID,05/04/2017,Project delivery costs – supplier services ,Asia  Caribbean and Overseas Territories ,DELOITTE TOUCHE TOHAMATSU INDIA PRIVATE LTD (DTTIPL) ,202736-102 ,"103,500.00",
DFID,DFID,05/04/2017,Project delivery costs – supplier services ,Asia  Caribbean and Overseas Territories ,DELOITTE TOUCHE TOHAMATSU INDIA PRIVATE LTD (DTTIPL) ,202736-102 ,"248,091.00",
DFID,DFID,07/04/2017,Aid Programme - Accountable Grant Payments ,Research and Evidence Division ,International Initiative for Impact Evaluation(3ie) ,203650-104 ,"139,778.00",
DFID,DFID,18/04/2017,Bank Charges/Services ,Group Operations ,Government Actuary's Department ,100182-101 ,"2,149.66",
DFID,DFID,10/04/2017,Aid Programme - Joint programme contribution ,West and Southern Africa ,UNDP MULTI-PARTNER TRUST FUND OFFICE (USD) ACCOUNT ,205122-102 ,"189,690.00",
DFID,DFID,27/04/2017,Aid Programme - Core contributions ,Asia  Caribbean and Overseas Territories ,UNOPS - support for Access Cell unit ,300072-101 ,"1,500,000.00",
DFID,DFID,12/04/2017,Aid Programme - Voluntary contributions ,East and Central Africa ,UNOPS - support for Access Cell unit ,205069-103 ,"1,984,764.00",
DFID,DFID,05/04/2017,Aid Programme - Voluntary contributions ,Middle East and North Africa Division ,UNOPS - support for Access Cell unit ,300001-101 ,"160,000.00",
DFID,DFID,25/04/2017,Project delivery costs – supplier services ,Asia  Caribbean and Overseas Territories ,RURAL RECONSTRUCTION NEPAL ,203764-104 ,"251,308.00",
DFID,DFID,25/04/2017,Project delivery costs – supplier services ,Asia  Caribbean and Overseas Territories ,RURAL RECONSTRUCTION NEPAL ,203764-110 ,"75,796.00",
DFID,DFID,06/04/2017,Air fares ,Asia  Caribbean and Overseas Territories ,BONDS TRAVEL BUREAU ,101624-101 ,524.19,
DFID,DFID,06/04/2017,Air fares ,Asia  Caribbean and Overseas Territories ,BONDS TRAVEL BUREAU ,101624-101 ,530.40,
DFID,DFID,13/04/2017,Training - Travel & Subsistence ,Asia  Caribbean and Overseas Territories ,BONDS TRAVEL BUREAU ,101624-101 ,961.52,
DFID,DFID,13/04/2017,Training - Travel & Subsistence ,Asia  Caribbean and Overseas Territories ,BONDS TRAVEL BUREAU ,101624-101 ,895.95,
DFID,DFID,10/04/2017,Air fares ,Asia  Caribbean and Overseas Territories ,BONDS TRAVEL BUREAU ,101624-101 ,980.06,
DFID,DFID,06/04/2017,Data Network - land lines ,Business Solutions Division Level ,NAYATEL (PVT) LTD ,203329-102 ,722.16,
DFID,DFID,06/04/2017,Data Network - land lines ,Business Solutions Division Level ,NAYATEL (PVT) LTD ,200002-121 ,722.16,
DFID,DFID,25/04/2017,Hotels - Accommodation only ,Asia  Caribbean and Overseas Territories ,Supplier Name withheld ,101624-101 ,855.15,
DFID,DFID,25/04/2017,Hotels - Accommodation only ,Asia  Caribbean and Overseas Territories ,Supplier Name withheld ,101624-101 ,568.02,
DFID,DFID,11/04/2017,Hotels - Accommodation only ,Asia  Caribbean and Overseas Territories ,Supplier Name withheld ,101624-101 ,878.79,
DFID,DFID,05/04/2017,Hotels - Accommodation only ,Asia  Caribbean and Overseas Territories ,TOURISM PROMOTION SERVICES / FSH ,101624-101 ,"1,484.79",
DFID,DFID,25/04/2017,Conferences  Seminars & Meeting/Event Resource ,Asia  Caribbean and Overseas Territories ,TOURISM PROMOTION SERVICES/ ISLAMABA ,101624-101 ,507.23,
DFID,DFID,25/04/2017,"Conferences, Seminars & Meeting/Event Resource",Asia  Caribbean and Overseas Territories ,TOURISM PROMOTION SERVICES/ ISLAMABA ,101624-101 ,"1,025.22",
DFID,DFID,24/04/2017,Project delivery costs – supplier services ,Asia  Caribbean and Overseas Territories ,HM Revenue & Customs Acc No 11963228 ,204024-106 ,"20,559.27",
DFID,DFID,07/04/2017,Aid Programme - Trust Funds contributions ,East and Central Africa ,The World Bank (Tanzania) ,204369-102 ,"4,250,000.00",
DFID,DFID,07/04/2017,Aid Programme - Trust Funds contributions ,East and Central Africa ,The World Bank (Tanzania) ,204369-104 ,"750,000.00",
DFID,DFID,18/04/2017,Research and development costs - supplier services ,Conflict  Humanitarian  Security & Stabilisation Division ,Chatham House Enterprises ,204795-105 ,"100,000.00",
DFID,DFID,04/04/2017,Project delivery costs – supplier services ,West and Southern Africa ,Futures Group Europe ,202819-102 ,"107,058.79",
DFID,DFID,12/04/2017,Project delivery costs – supplier services ,West and Southern Africa ,Futures Group Europe ,202819-102 ,"358,668.12",
DFID,DFID,26/04/2017,Project delivery costs – supplier services ,Asia  Caribbean and Overseas Territories ,Futures Group Europe ,202488-105 ,"408,794.95",
DFID,DFID,12/04/2017,Aid Programme - Voluntary contributions ,Research and Evidence Division ,International Monetary Fund (GBP) ,202960-104 ,"1,907,975.00",
DFID,DFID,03/04/2017,Aid Programme - Voluntary contributions ,Research and Evidence Division ,International Monetary Fund (GBP) ,204933-101 ,"611,090.00",
DFID,DFID,11/04/2017,Project delivery costs – supplier services ,West and Southern Africa ,HM REVENUE AND CUSTOMS Acc ,204918-101 ,"10,077.79",
DFID,DFID,06/04/2017,Recruitment costs ,Human Resources ,HM REVENUE AND CUSTOMS Acc ,100269-117 ,"358,545.29",DFID�s contribution to the Civil Service Fast Stream Programme for the period July  2016 � March 2017
DFID,DFID,06/04/2017,Training - Course Fees ,Human Resources ,HM REVENUE AND CUSTOMS Acc ,100269-117 ,"130,831.94",DFID's annual contribution for�learning and development costs for the Generalist Fast Streamer programme for the period July 2016�- March 2017�
DFID,DFID,12/04/2017,Training - Course Fees ,Human Resources ,HM REVENUE AND CUSTOMS Acc ,100261-101 ,"3,930.00",
DFID,DFID,12/04/2017,Recruitment costs ,International Relations Division ,HM REVENUE AND CUSTOMS Acc ,100086-101 ,"12,325.84",
DFID,DFID,26/04/2017,Aid Programme - Other Financial Aid to Government ,Asia  Caribbean and Overseas Territories ,STATE BANK OF PAKISTAN  ,202697-108 ,"3,000,000.00",
DFID,DFID,07/04/2017,Air fares ,East and Central Africa ,Bon Voyage Travel Centre Ltd(USD) ,204334-102 ,738.36,
DFID,DFID,03/04/2017,Air fares ,East and Central Africa ,Bon Voyage Travel Centre Ltd(Tsh) ,101634-101 ,757.77,
DFID,DFID,11/04/2017,Aid Programme - Accountable Grant Payments ,Research and Evidence Division ,The Royal Society ,203041-102 ,"886,218.00",
DFID,DFID,12/04/2017,Research and development costs - supplier services ,Research and Evidence Division ,Tim Leyland ,300361-102 ,"2,682.85",
DFID,DFID,25/04/2017,Research and development costs - supplier services ,Research and Evidence Division ,Tim Leyland ,300361-102 ,"2,537.50",
DFID,DFID,19/04/2017,Project delivery costs – supplier services ,Asia  Caribbean and Overseas Territories ,Landell Mills Ltd ,202787-102 ,"140,059.28",
DFID,DFID,13/04/2017,Project delivery costs – supplier services ,Asia  Caribbean and Overseas Territories ,Landell Mills Ltd ,202787-102 ,"80,139.54",
DFID,DFID,26/04/2017,Project delivery costs – supplier services ,Asia  Caribbean and Overseas Territories ,Landell Mills Ltd ,202787-102 ,"123,399.67",
DFID,DFID,10/04/2017,Training Providers/Facilitation Services ,Middle East and North Africa Division ,RedR UK ,204981-101 ,"1,354.00",
DFID,DFID,11/04/2017,Aid Programme - Core contributions ,Economic Development Division ,SG HAMBROS BANK & TRUST LTD (USD) ,203232-101 ,"50,230.00",
DFID,DFID,27/04/2017,Aid Programme - Core contributions ,Global Funds ,GAVI ,204240-101 ,"200,000,000.00",
DFID,DFID,10/04/2017,Encashment of Promissory Notes ,Economic Development Division ,International Development Association ,202969-106 ,"77,922,500.00",
DFID,DFID,10/04/2017,Encashment of Promissory Notes ,Economic Development Division ,International Development Association ,204002-102 ,"34,465,000.00",
DFID,DFID,10/04/2017,Encashment of Promissory Notes ,Economic Development Division ,International Development Association ,204002-103 ,"47,000,000.00",
DFID,DFID,10/04/2017,Encashment of Promissory Notes ,Economic Development Division ,International Development Association ,204002-104 ,"28,280,000.00",
DFID,DFID,03/04/2017,Encashment of Promissory Notes ,Economic Development Division ,Asian Development Fund ,203547-102 ,"5,850,000.00",
DFID,DFID,03/04/2017,Encashment of Promissory Notes ,Economic Development Division ,Asian Development Fund ,203547-103 ,"1,700,000.00",
DFID,DFID,07/04/2017,Encashment of Promissory Notes ,Policy Division ,International Bank for Reconstruction and Development - Global Environment Fund 6 ,204056-101 ,"2,100,000.00",
DFID,DFID,07/04/2017,Encashment of Promissory Notes ,Policy Division ,International Bank for Reconstruction and Development - Global Environment Fund 6 ,204056-102 ,"3,150,000.00",
DFID,DFID,19/04/2017,Encashment of Promissory Notes ,East and Central Africa ,Kreditanstalt Fur Wiederaufbau Bankengruppe,203153-101 ,"1,632,000.00",
DFID,DFID,03/04/2017,Encashment of Promissory Notes ,Economic Development Division ,Asian Development Fund ,200614-104 ,"2,204,000.00",
DFID,DFID,10/04/2017,Encashment of Promissory Notes ,Economic Development Division ,International Development Association ,200269-106 ,"27,740,000.00",
DFID,DFID,03/04/2017,Encashment of Promissory Notes ,Global Funds ,Global Fund to Fight AIDS  TB and Malaria ,204389-102 ,"285,000,000.00",
DFID,DFID,26/04/2017,Encashment of Promissory Notes ,Economic Development Division ,Caribbean Development Bank - Special Development Fund 8 ,203550-104 ,"7,000,000.00",
DFID,DFID,07/04/2017,Encashment of Promissory Notes ,Policy Division ,International Bank for Reconstruction and Development - Global Environment Fund 5 ,202216-104 ,"2,100,000.00",
DFID,DFID,07/04/2017,Encashment of Promissory Notes ,Policy Division ,International Bank for Reconstruction and Development - Global Environment Fund 5 ,202216-105 ,"3,150,000.00",
DFID,DFID,19/04/2017,Aid Programme - Accountable Grant Payments ,Middle East and North Africa Division ,DANISH REFUGEE COUNCIL ,300045-104 ,"132,027.00",
DFID,DFID,13/04/2017,Aid Programme - Accountable Grant Payments ,Conflict  Humanitarian  Security & Stabilisation Division ,DANISH REFUGEE COUNCIL ,203419-105 ,"15,571.39",
DFID,DFID,10/04/2017,Aid Programme - Accountable Grant Payments ,Conflict  Humanitarian  Security & Stabilisation Division ,DANISH REFUGEE COUNCIL ,300334-101 ,"3,991.91",
DFID,DFID,27/04/2017,Project delivery costs – supplier services ,East and Central Africa ,DANISH REFUGEE COUNCIL ,204439-103 ,"1,598.18",
DFID,DFID,27/04/2017,Project delivery costs – supplier services ,East and Central Africa ,DANISH REFUGEE COUNCIL ,204439-103 ,"13,569.79",
DFID,DFID,04/04/2017,Aid Programme - Accountable Grant Payments ,East and Central Africa ,DANISH REFUGEE COUNCIL ,204019-107 ,"17,026.16",
DFID,DFID,04/04/2017,Aid Programme - Accountable Grant Payments ,East and Central Africa ,DANISH REFUGEE COUNCIL ,204019-107 ,"20,898.00",
DFID,DFID,05/04/2017,Project delivery costs – supplier services ,Asia  Caribbean and Overseas Territories ,SIDBI MUMBAI ,114293-103 ,"231,416.66",
DFID,DFID,05/04/2017,Project delivery costs – supplier services ,Asia  Caribbean and Overseas Territories ,SIDBI MUMBAI ,114293-103 ,"224,066.73",
DFID,DFID,12/04/2017,Project delivery costs – supplier services ,East and Central Africa ,Jarco Consulting ,204957-103 ,"30,065.07",
DFID,DFID,12/04/2017,Project delivery costs – supplier services ,East and Central Africa ,Jarco Consulting ,204957-103 ,"4,024.79",
DFID,DFID,11/04/2017,Conferences  Seminars & Meeting/Event Resource ,East and Central Africa ,Golden Jubilee Ltd ,101616-101 ,"1,417.44",
DFID,DFID,21/04/2017,Aid Programme - Accountable Grant Payments ,Research and Evidence Division ,MASSACHUSETTS INSTITUTE OF TECHNOLOGY ,204291-102 ,"136,670.00",
DFID,DFID,04/04/2017,Office Equipment - Purchases ,Group Operations ,Sitelink Communications Ltd ,203716-101 ,"1,029.60",
DFID,DFID,25/04/2017,Aid Programme - Accountable Grant Payments ,Asia  Caribbean and Overseas Territories ,The Asia Foundation (GBP) ,204623-101 ,"153,783.00",
DFID,DFID,19/04/2017,Data Network - land lines ,Business Solutions Division Level ,Virgin Media Business ,200002-217 ,"44,186.95",Annual data communications link and  line rental charges for DFID UK offices for the period February 2017 � January 2018 
DFID,DFID,25/04/2017,Research and development costs - supplier services ,Research and Evidence Division ,DEVELOPMENT PATHWAYS LTD ,204584-134 ,"38,157.53",
DFID,DFID,12/04/2017,Research and development costs - supplier services ,Research and Evidence Division ,DEVELOPMENT PATHWAYS LTD ,204584-135 ,"19,740.00",
DFID,DFID,21/04/2017,Aid Programme - Voluntary contributions ,Economic Development Division ,OECD ,300066-101 ,"92,292.24",
DFID,DFID,21/04/2017,Aid Programme - Accountable Grant Payments ,Middle East and North Africa Division ,Norwegian Refugee Council ,300314-101 ,"257,738.00",
DFID,DFID,10/04/2017,Aid Programme - Humanitarian Material Relief Assistance and Services ,Conflict  Humanitarian  Security & Stabilisation Division ,Norwegian Refugee Council ,204610-102 ,"27,935.00",
DFID,DFID,10/04/2017,Aid Programme - Accountable Grant Payments ,Middle East and North Africa Division ,Norwegian Refugee Council ,300290-101 ,"2,500,000.00",
DFID,DFID,25/04/2017,Project delivery costs – supplier services ,East and Central Africa ,Norwegian Refugee Council ,300270-103 ,"11,802.00",
DFID,DFID,21/04/2017,Aid Programme - Accountable Grant Payments ,East and Central Africa ,Norwegian Refugee Council ,204019-107 ,"18,256.00",
DFID,DFID,21/04/2017,Aid Programme - Accountable Grant Payments ,East and Central Africa ,Norwegian Refugee Council ,204019-107 ,"20,013.00",
DFID,DFID,13/04/2017,Project delivery costs – supplier services ,Policy Division ,CfBT Education Trust ,201469-106 ,"63,571.00",
DFID,DFID,28/04/2017,Aid Programme - Joint programme contribution ,Middle East and North Africa Division , Social Fund for Development  ,201427-101 ,"3,142,061.58",
DFID,DFID,06/04/2017,Legal costs ,Human Resources ,Anderson Strathern ,100269-136 ,632.40,
DFID,DFID,27/04/2017,Air fares ,Asia  Caribbean and Overseas Territories ,Gerry's Travel Agency Private Limited ,101624-101 ,646.06,
DFID,DFID,28/04/2017,Aid Programme - Accountable Grant Payments ,West and Southern Africa ,AgDevCo ,204270-109 ,"62,401.60",
DFID,DFID,28/04/2017,Aid Programme - Accountable Grant Payments ,East and Central Africa ,AgDevCo ,204270-110 ,"269,342.00",
DFID,DFID,28/04/2017,Aid Programme - Accountable Grant Payments ,West and Southern Africa ,AgDevCo ,204270-111 ,"82,810.80",
DFID,DFID,28/04/2017,Aid Programme - Accountable Grant Payments ,West and Southern Africa ,AgDevCo ,204270-117 ,"93,602.40",
DFID,DFID,28/04/2017,Aid Programme - Accountable Grant Payments ,East and Central Africa ,AgDevCo ,204270-119 ,"404,013.00",
DFID,DFID,28/04/2017,Aid Programme - Accountable Grant Payments ,West and Southern Africa ,AgDevCo ,204270-120 ,"124,216.20",
DFID,DFID,28/04/2017,Aid Programme - Accountable Grant Payments ,West and Southern Africa ,AgDevCo ,204270-123 ,"55,924.80",
DFID,DFID,28/04/2017,Aid Programme - Accountable Grant Payments ,East and Central Africa ,AgDevCo ,204940-107 ,"75,000.00",
DFID,DFID,28/04/2017,Aid Programme - Accountable Grant Payments ,West and Southern Africa ,AgDevCo ,204270-126 ,"18,666.80",
DFID,DFID,28/04/2017,Aid Programme - Accountable Grant Payments ,West and Southern Africa ,AgDevCo ,204270-128 ,"28,000.20",
DFID,DFID,28/04/2017,Project delivery costs – supplier services ,East and Central Africa ,AgDevCo ,204270-107 ,"21,032.40",
DFID,DFID,28/04/2017,Project delivery costs – supplier services ,East and Central Africa ,AgDevCo ,204270-130 ,"31,548.60",
DFID,DFID,28/04/2017,Aid Programme - Accountable Grant Payments ,East and Central Africa ,AgDevCo ,204270-118 ,"73,001.40",
DFID,DFID,28/04/2017,Aid Programme - Accountable Grant Payments ,East and Central Africa ,AgDevCo ,204270-108 ,"48,667.60",
DFID,DFID,28/04/2017,Aid Programme - Accountable Grant Payments ,East and Central Africa ,AgDevCo ,204012-102 ,"127,234.00",
DFID,DFID,28/04/2017,Aid Programme - Accountable Grant Payments ,West and Southern Africa ,AgDevCo ,204270-122 ,"37,283.20",
DFID,DFID,21/04/2017,Project delivery costs – supplier services ,West and Southern Africa ,IMC Worldwide Ltd. ,202455-102 ,"27,230.49",
DFID,DFID,18/04/2017,Project delivery costs – supplier services ,Research and Evidence Division ,IMC Worldwide Ltd. ,203199-109 ,"51,946.98",
DFID,DFID,21/04/2017,Project delivery costs – supplier services ,Asia  Caribbean and Overseas Territories ,IMC Worldwide Ltd. ,203186-103 ,"117,236.30",
DFID,DFID,21/04/2017,Project delivery costs – supplier services ,Asia  Caribbean and Overseas Territories ,IMC Worldwide Ltd. ,203186-110 ,"695,716.62",
DFID,DFID,05/04/2017,Project delivery costs – supplier services ,West and Southern Africa ,IMC Worldwide Ltd. ,204856-102 ,"64,149.29",
DFID,DFID,05/04/2017,Project delivery costs – supplier services ,Research and Evidence Division ,IMC Worldwide Ltd. ,204806-106 ,"19,838.40",
DFID,DFID,10/04/2017,Project delivery costs – supplier services ,Asia  Caribbean and Overseas Territories ,IMC Worldwide Ltd. ,202927-110 ,"55,902.00",
DFID,DFID,12/04/2017,Project delivery costs – supplier services ,Policy Division ,IMC Worldwide Ltd. ,203709-112 ,"94,753.20",
DFID,DFID,20/04/2017,Project delivery costs – supplier services ,Policy Division ,IMC Worldwide Ltd. ,203709-112 ,"23,688.30",
DFID,DFID,18/04/2017,Project delivery costs – supplier services ,Policy Division ,IMC Worldwide Ltd. ,204963-101 ,"23,202.00",
DFID,DFID,07/04/2017,Training - Course Fees ,Conflict  Humanitarian  Security & Stabilisation Division ,Freedom of Speech Ltd ,100049-134 ,560.00,
DFID,DFID,04/04/2017,Project delivery costs – supplier services ,East and Central Africa ,Integrity Research and Consultancy ,205067-101 ,"160,070.69",
DFID,DFID,25/04/2017,Project delivery costs – supplier services ,East and Central Africa ,Integrity Research and Consultancy ,204809-101 ,"11,930.40",
DFID,DFID,10/04/2017,Project delivery costs – supplier services ,West and Southern Africa ,DAI Europe ,204822-101 ,"204,982.35",
DFID,DFID,13/04/2017,Project delivery costs – supplier services ,West and Southern Africa ,DAI Europe ,201980-102 ,"95,229.18",
DFID,DFID,13/04/2017,Project delivery costs – supplier services ,West and Southern Africa ,DAI Europe ,201980-102 ,"15,744.78",
DFID,DFID,13/04/2017,Project delivery costs – supplier services ,West and Southern Africa ,DAI Europe ,201980-102 ,"48,959.76",
DFID,DFID,13/04/2017,Project delivery costs – supplier services ,Asia  Caribbean and Overseas Territories ,DAI Europe ,204619-103 ,"31,310.89",
DFID,DFID,25/04/2017,Project delivery costs – supplier services ,East and Central Africa ,DAI Europe ,203986-105 ,"197,445.25",
DFID,DFID,19/04/2017,Project delivery costs – supplier services ,Asia  Caribbean and Overseas Territories ,DAI Europe ,204672-102 ,"51,563.53",
DFID,DFID,28/04/2017,Fund monies to be managed and dispersed by the supplier ,Middle East and North Africa Division ,DAI Europe ,201828-101 ,"275,117.18",
DFID,DFID,26/04/2017,Project delivery costs – supplier services ,East and Central Africa ,DAI Europe ,204437-108 ,"14,304.77",
DFID,DFID,21/04/2017,Project delivery costs – supplier services ,West and Southern Africa ,DAI Europe ,202476-103 ,"121,028.65",
DFID,DFID,25/04/2017,Project delivery costs – supplier services ,East and Central Africa ,DAI Europe ,202580-102 ,"338,341.77",
DFID,DFID,25/04/2017,Project delivery costs – supplier services ,East and Central Africa ,DAI Europe ,202580-102 ,"154,002.25",
DFID,DFID,05/04/2017,Project delivery costs – supplier services ,West and Southern Africa ,DAI Europe ,202585-102 ,"79,119.67",
DFID,DFID,19/04/2017,Project delivery costs – supplier services ,Asia  Caribbean and Overseas Territories ,DAI Europe ,204672-102 ,"103,888.00",
DFID,DFID,21/04/2017,Project delivery costs – supplier services ,West and Southern Africa ,DAI Europe ,203317-102 ,"44,703.87",
DFID,DFID,03/04/2017,Project delivery costs – supplier services ,West and Southern Africa ,DAI Europe ,201857-102 ,"50,275.88",
DFID,DFID,27/04/2017,Project delivery costs – supplier services ,West and Southern Africa ,DAI Europe ,203922-101 ,"374,654.40",
DFID,DFID,20/04/2017,Project delivery costs – supplier services ,West and Southern Africa ,DAI Europe ,201018-108 ,"275,180.37",
DFID,DFID,26/04/2017,Project delivery costs – supplier services ,East and Central Africa ,DAI Europe ,204437-102 ,"174,775.00",
DFID,DFID,25/04/2017,Hotels - Accommodation only ,Asia  Caribbean and Overseas Territories ,Ramada Multan ,101624-101 ,818.27,
DFID,DFID,25/04/2017,Hotels - Accommodation only ,Asia  Caribbean and Overseas Territories ,Ramada Multan ,101624-101 ,"1,052.06",
DFID,DFID,12/04/2017,Project delivery costs – supplier services ,Policy Division ,Sightsavers ,203145-101 ,"486,974.00",
DFID,DFID,12/04/2017,Project delivery costs – supplier services ,Policy Division ,Sightsavers ,203145-101 ,"664,510.00",
DFID,DFID,20/04/2017,Project delivery costs – supplier services ,West and Southern Africa ,Abt Associates ,202342-102 ,"105,531.80",
DFID,DFID,25/04/2017,Research and development costs - supplier services ,Research and Evidence Division ,Abt Associates ,203052-105 ,"188,166.69",
DFID,DFID,28/04/2017,Project delivery costs – supplier services ,East and Central Africa ,Marie Stopes International (MSI) ,204266-102 ,"716,807.00",
DFID,DFID,25/04/2017,Fund monies to be managed and dispersed by the supplier ,East and Central Africa ,Marie Stopes International (MSI) ,202549-105 ,"908,865.00",
DFID,DFID,27/04/2017,Project delivery costs – supplier services ,East and Central Africa ,Marie Stopes International (MSI) ,202549-105 ,"784,666.00",
DFID,DFID,11/04/2017,Project delivery costs – supplier services ,Policy Division ,PATH ,202676-101 ,"52,992.32",
DFID,DFID,11/04/2017,Project delivery costs – supplier services ,Policy Division ,PATH ,204954-102 ,"14,141.00",
DFID,DFID,11/04/2017,Project delivery costs – supplier services ,Policy Division ,PATH ,204954-102 ,"13,564.66",
DFID,DFID,11/04/2017,Project delivery costs – supplier services ,Policy Division ,PATH ,204954-102 ,"89,728.98",
DFID,DFID,11/04/2017,Project delivery costs – supplier services ,Policy Division ,PATH ,204954-102 ,"5,295.50",
DFID,DFID,11/04/2017,Project delivery costs – supplier services ,Policy Division ,PATH ,204954-102 ,"25,152.00",
DFID,DFID,05/04/2017,Project delivery costs – supplier services ,Asia  Caribbean and Overseas Territories ,LTS International Ltd. ,201724-153 ,"8,005.50",
DFID,DFID,19/04/2017,Project delivery costs – supplier services ,Policy Division ,LTS International Ltd. ,201724-135 ,"167,631.21",
DFID,DFID,19/04/2017,Project delivery costs – supplier services ,Policy Division ,LTS International Ltd. ,201724-135 ,"89,689.79",
DFID,DFID,12/04/2017,Project delivery costs – supplier services ,Policy Division ,LTS International Ltd. ,201724-135 ,"10,130.00",
DFID,DFID,12/04/2017,Project delivery costs – supplier services ,Policy Division ,LTS International Ltd. ,201724-135 ,"19,142.28",
DFID,DFID,18/04/2017,Project delivery costs – supplier services ,Research and Evidence Division ,LTS International Ltd. ,201878-102 ,"1,581.81",
DFID,DFID,06/04/2017,Project delivery costs – supplier services ,Research and Evidence Division ,LTS International Ltd. ,201878-102 ,"101,975.00",
DFID,DFID,13/04/2017,Project delivery costs – supplier services ,Asia  Caribbean and Overseas Territories ,LTS International Ltd. ,200773-102 ,"4,500.00",
DFID,DFID,27/04/2017,Project delivery costs – supplier services ,West and Southern Africa ,Dalberg Global Development Advisors ,205058-101 ,"18,325.00",
DFID,DFID,12/04/2017,Aid Programme - Programme Contribution ,International Relations Division ,Commonwealth Scholarships Comm ,204043-101 ,"5,907,000.00",
DFID,DFID,20/04/2017,Other Admin Costs ,International Relations Division ,Commonwealth Scholarships Comm ,204043-102 ,"406,000.00",Quarterly admin charges (April - June 2017) to the Commonwealth Scholarship Commission (CSC)
DFID,DFID,07/04/2017,Project delivery costs – supplier services ,Middle East and North Africa Division ,TRANSTEC ,204516-101 ,"99,088.00",
DFID,DFID,21/04/2017,Project delivery costs – supplier services ,Economic Development Division ,Landesa ,204249-102 ,"10,836.00",
DFID,DFID,07/04/2017,Project delivery costs – supplier services ,East and Central Africa ,International NGO Training and Research Centre ,204801-103 ,"26,601.33",
DFID,DFID,06/04/2017,Recruitment costs ,Policy Division ,Newsquest (Herald & Times) Ltd ,100045-101 ,798.00,
DFID,DFID,04/04/2017,Recruitment costs ,Business Solutions Division Level ,Newsquest (Herald & Times) Ltd ,200001-101 ,"2,712.00",
DFID,DFID,13/04/2017,Project delivery costs – supplier services ,West and Southern Africa ,Charlie Goldsmith Associates Limited ,202427-103 ,"7,327.00",
DFID,DFID,26/04/2017,Project delivery costs – supplier services ,Research and Evidence Division ,Tilburg University - TiSEM ,202818-102 ,"326,449.00",
DFID,DFID,10/04/2017,Project delivery costs – supplier services ,Economic Development Division ,Frankfurt School of Finance and Management ,203444-109 ,"79,205.00",
DFID,DFID,27/04/2017,Aid Programme - Voluntary contributions ,Policy Division ,Deutsche Gesellschaft fuer Internationale Zusammenarbeit (GIZ) GmbH ,202884-104 ,"3,022,929.00",
DFID,DFID,26/04/2017,Aid Programme - Joint programme contribution ,Asia  Caribbean and Overseas Territories ,Deutsche Gesellschaft fuer Internationale Zusammenarbeit (GIZ) GmbH ,203227-101 ,"950,000.00",
DFID,DFID,25/04/2017,Aid Programme - Joint programme contribution ,Asia  Caribbean and Overseas Territories ,Deutsche Gesellschaft fuer Internationale Zusammenarbeit (GIZ) GmbH ,300268-101 ,"288,000.00",
DFID,DFID,10/04/2017,Aid Programme - Joint programme contribution ,East and Central Africa ,Deutsche Gesellschaft fuer Internationale Zusammenarbeit (GIZ) GmbH ,203598-102 ,"1,122,256.00",
DFID,DFID,11/04/2017,Project delivery costs – supplier services ,West and Southern Africa ,Mokoro ltd. ,202427-103 ,"25,397.10",
DFID,DFID,19/04/2017,Project delivery costs – supplier services ,Asia  Caribbean and Overseas Territories ,Deloitte Touche Tohmatsu India Private Limited ,203224-101 ,"26,537.40",
DFID,DFID,13/04/2017,Project delivery costs – supplier services ,Asia  Caribbean and Overseas Territories ,Deloitte Touche Tohmatsu India Private Limited ,203224-101 ,"7,331.26",
DFID,DFID,13/04/2017,Project delivery costs – supplier services ,Asia  Caribbean and Overseas Territories ,Deloitte Touche Tohmatsu India Private Limited ,203224-101 ,"20,168.70",
DFID,DFID,21/04/2017,Aid Programme - Accountable Grant Payments ,East and Central Africa ,Helen Keller International-Tanzania ,202480-101 ,"66,329.79",
DFID,DFID,26/04/2017,Aid Programme - Trust Funds contributions ,Asia  Caribbean and Overseas Territories ,International Labour Organization ,203857-101 ,"900,000.00",
DFID,DFID,03/04/2017,Hardware - desktop PCs ,Business Solutions Division Level ,Phoenix Software Ltd ,200004-127 ,"21,432.31",
DFID,DFID,03/04/2017,Computer software maintenance ,Business Solutions Division Level ,Phoenix Software Ltd ,200002-139 ,"173,811.00",Annual licence and support costs for DFID Firewall service to ensure all IT systems remain protected from unauthorised access -  April 2017 - March 2018 
DFID,DFID,03/04/2017,Hardware - servers & storage ,Business Solutions Division Level ,Phoenix Software Ltd ,200004-127 ,"94,943.53",
DFID,DFID,03/04/2017,Hardware - servers & storage ,Business Solutions Division Level ,Phoenix Software Ltd ,200004-127 ,"149,910.84",
DFID,DFID,03/04/2017,Hardware - desktop PCs ,Business Solutions Division Level ,Phoenix Software Ltd ,200004-127 ,"96,275.14",
DFID,DFID,27/04/2017,Aid Programme - Accountable Grant Payments ,East and Central Africa ,Gatsby Charitable Foundation UK ,202844-107 ,"215,922.98",
DFID,DFID,20/04/2017,Aid Programme - Non Grant Financial contributions ,Asia  Caribbean and Overseas Territories ,National Housing Bank ,202867-104 ,"108,334.95",
DFID,DFID,28/04/2017,Contract & Agency Staff ,Business Solutions Division Level ,Parity Resources ,200004-127 ,"1,344.86",
DFID,DFID,28/04/2017,Contract & Agency Staff ,Business Solutions Division Level ,Parity Resources ,200004-127 ,"1,681.08",
DFID,DFID,24/04/2017,Aid Programme - Partnership Programme Arrangements ,Research and Evidence Division ,Shell Foundation ,204867-103 ,"1,482,352.00",
DFID,DFID,10/04/2017,Aid Programme - Programme Contribution ,International Relations Division ,TheQueen Elizabeth Diamond Jubilee Trust ,203754-102 ,"5,000,000.00",
DFID,DFID,07/04/2017,Aid Programme - Other Financial Aid to Government ,East and Central Africa ,Ministry of Finance Tanzania  (BRN) ,202770-101 ,"35,122.02",
DFID,DFID,13/04/2017,Training - Course Fees ,Finance and Corporate Performance Division ,Rusando Limited ,202836-101 ,"4,453.81",
DFID,DFID,04/04/2017,Training - Course Fees ,Group Operations ,Rusando Limited ,204284-101 ,"1,250.00",
DFID,DFID,04/04/2017,Training Providers/Facilitation Services ,Group Operations ,Rusando Limited ,204284-101 ,540.00,
DFID,DFID,04/04/2017,Hardware - desktop PCs ,Business Solutions Division Level ,CDW Ltd ,200004-128 ,"23,175.44",
DFID,DFID,24/04/2017,Aid Programme - Accountable Grant Payments ,Policy Division ,Guttmacher Institute ,203177-101 ,"832,688.00",
DFID,DFID,18/04/2017,Training - Course Fees ,Conflict  Humanitarian  Security & Stabilisation Division ,Civil Service College Limited ,100049-101 ,595.00,
DFID,DFID,27/04/2017,Aid Programme - Other Financial Aid to Government ,Asia  Caribbean and Overseas Territories ,INDECOM Jamaica ,204232-103 ,"218,750.00",
DFID,DFID,10/04/2017,Project delivery costs – supplier services ,East and Central Africa ,Impact Initiatives ,204019-111 ,"31,708.00",
DFID,DFID,10/04/2017,Contract & Agency Staff,Business Solutions Division Level ,Anderson Knight Ltd ,200001-101 ,"2,196.99",
DFID,DFID,27/04/2017,Contract & Agency Staff ,Business Solutions Division Level ,Anderson Knight Ltd ,200001-101 ,864.12,
DFID,DFID,25/04/2017,Contract & Agency Staff ,Group Operations ,Anderson Knight Ltd ,201870-101 ,698.47,
DFID,DFID,12/04/2017,Contract & Agency Staff ,Human Resources ,Anderson Knight Ltd ,100261-101 ,622.17,
DFID,DFID,04/04/2017,Contract & Agency Staff ,Group Operations ,Anderson Knight Ltd ,100270-101 ,549.36,
DFID,DFID,04/04/2017,Contract & Agency Staff ,Group Operations ,Anderson Knight Ltd ,100270-101 ,725.94,
DFID,DFID,25/04/2017,Contract & Agency Staff ,Group Operations ,Anderson Knight Ltd ,100270-101 ,588.60,
DFID,DFID,18/04/2017,Contract & Agency Staff ,Group Operations ,Anderson Knight Ltd ,100270-101 ,588.60,
DFID,DFID,10/04/2017,Contract & Agency Staff ,Group Operations ,Anderson Knight Ltd ,100270-101 ,725.94,
DFID,DFID,10/04/2017,Contract & Agency Staff ,Group Operations ,Anderson Knight Ltd ,100270-101 ,725.94,
DFID,DFID,13/04/2017,Contract & Agency Staff ,Group Operations ,Anderson Knight Ltd ,100270-101 ,725.94,
DFID,DFID,11/04/2017,Contract & Agency Staff ,Group Operations ,Anderson Knight Ltd ,100270-101 ,725.94,
DFID,DFID,11/04/2017,Contract & Agency Staff ,Group Operations ,Anderson Knight Ltd ,100270-101 ,725.94,
DFID,DFID,11/04/2017,Contract & Agency Staff ,Group Operations ,Anderson Knight Ltd ,100270-101 ,725.94,
DFID,DFID,11/04/2017,Contract & Agency Staff ,Group Operations ,Anderson Knight Ltd ,100270-101 ,725.94,
DFID,DFID,04/04/2017,Contract & Agency Staff ,Group Operations ,Anderson Knight Ltd ,100270-101 ,725.94,
DFID,DFID,03/04/2017,Recruitment costs ,Group Operations ,Anderson Knight Ltd ,204284-101 ,"1,790.28",
DFID,DFID,03/04/2017,Recruitment costs ,Group Operations ,Anderson Knight Ltd ,204284-101 ,"3,580.56",
DFID,DFID,11/04/2017,Recruitment costs ,Group Operations ,Anderson Knight Ltd ,204664-101 ,"3,580.56",
DFID,DFID,11/04/2017,Contract & Agency Staff ,Group Operations ,Anderson Knight Ltd ,204664-101 ,725.94,
DFID,DFID,04/04/2017,Contract & Agency Staff ,Group Operations ,Anderson Knight Ltd ,204664-101 ,725.94,
DFID,DFID,11/04/2017,Contract & Agency Staff ,Group Operations ,Anderson Knight Ltd ,204664-101 ,725.94,
DFID,DFID,11/04/2017,Contract & Agency Staff ,Group Operations ,Anderson Knight Ltd ,204664-101 ,725.94,
DFID,DFID,10/04/2017,Contract & Agency Staff ,Group Operations ,Anderson Knight Ltd ,204664-101 ,725.94,
DFID,DFID,04/04/2017,Contract & Agency Staff ,Group Operations ,Anderson Knight Ltd ,204664-101 ,725.94,
DFID,DFID,19/04/2017,Contract & Agency Staff ,Group Operations ,Anderson Knight Ltd ,204664-101 ,588.60,
DFID,DFID,25/04/2017,Contract & Agency Staff ,Group Operations ,Anderson Knight Ltd ,204664-101 ,588.60,
DFID,DFID,04/04/2017,Contract & Agency Staff ,Group Operations ,Anderson Knight Ltd ,100270-104 ,725.94,
DFID,DFID,04/04/2017,Contract & Agency Staff ,Group Operations ,Anderson Knight Ltd ,100270-104 ,725.94,
DFID,DFID,04/04/2017,Contract & Agency Staff ,Group Operations ,Anderson Knight Ltd ,100270-104 ,725.94,
DFID,DFID,11/04/2017,Contract & Agency Staff ,Group Operations ,Anderson Knight Ltd ,100270-104 ,580.75,
DFID,DFID,11/04/2017,Contract & Agency Staff ,Group Operations ,Anderson Knight Ltd ,100270-104 ,725.94,
DFID,DFID,10/04/2017,Contract & Agency Staff ,Group Operations ,Anderson Knight Ltd ,100270-104 ,725.94,
DFID,DFID,11/04/2017,Contract & Agency Staff ,Group Operations ,Anderson Knight Ltd ,100270-104 ,725.94,
DFID,DFID,10/04/2017,Contract & Agency Staff ,Group Operations ,Anderson Knight Ltd ,100270-104 ,806.82,
DFID,DFID,10/04/2017,Contract & Agency Staff ,Group Operations ,Anderson Knight Ltd ,100270-104 ,580.75,
DFID,DFID,12/04/2017,Contract & Agency Staff ,Group Operations ,Anderson Knight Ltd ,100270-104 ,698.47,
DFID,DFID,10/04/2017,Contract & Agency Staff ,Group Operations ,Anderson Knight Ltd ,100270-104 ,725.94,
DFID,DFID,24/04/2017,Contract & Agency Staff ,Group Operations ,Anderson Knight Ltd ,100270-104 ,580.75,
DFID,DFID,25/04/2017,Contract & Agency Staff ,Group Operations ,Anderson Knight Ltd ,100270-104 ,580.75,
DFID,DFID,11/04/2017,Contract & Agency Staff ,Group Operations ,Anderson Knight Ltd ,100270-104 ,517.81,
DFID,DFID,11/04/2017,Contract & Agency Staff ,Group Operations ,Anderson Knight Ltd ,100270-104 ,725.94,
DFID,DFID,11/04/2017,Contract & Agency Staff ,Group Operations ,Anderson Knight Ltd ,100270-104 ,725.94,
DFID,DFID,04/04/2017,Contract & Agency Staff ,Group Operations ,Anderson Knight Ltd ,100270-105 ,534.66,
DFID,DFID,11/04/2017,Contract & Agency Staff ,Group Operations ,Anderson Knight Ltd ,100270-105 ,891.11,
DFID,DFID,11/04/2017,Contract & Agency Staff ,Group Operations ,Anderson Knight Ltd ,100270-105 ,909.17,
DFID,DFID,13/04/2017,Contract & Agency Staff ,Human Resources ,Anderson Knight Ltd ,100261-101 ,832.91,
DFID,DFID,10/04/2017,Aid Programme - Accountable Grant Payments ,Policy Division ,Namati ,204252-112 ,"146,884.91",
DFID,DFID,10/04/2017,Aid Programme - Accountable Grant Payments ,Economic Development Division ,Namati ,204252-122 ,"147,025.30",
DFID,DFID,27/04/2017,Aid Programme - Voluntary contributions ,Economic Development Division ,CDC Group plc ,202939-102 ,"1,271,373.17",
DFID,DFID,27/04/2017,Aid Programme - Voluntary contributions ,Economic Development Division ,CDC Group plc ,202939-104 ,"287,110.80",
DFID,DFID,25/04/2017,Aid Programme - Voluntary contributions ,Economic Development Division ,CDC Group plc ,202939-104 ,"25,424.70",
DFID,DFID,13/04/2017,Aid Programme - Voluntary contributions ,Economic Development Division ,CDC Group plc ,202939-112 ,"300,000.00",
DFID,DFID,18/04/2017,Recruitment costs ,Research and Evidence Division ,HMRC ,202392-101 ,"5,280.00",
DFID,DFID,11/04/2017,Aid Programme - Accountable Grant Payments ,East and Central Africa ,PEAS (Promoting Equality in African Schools) ,204641-101 ,"316,085.00",
DFID,DFID,25/04/2017,Training Providers/Facilitation Services ,International Relations Division ,Language Services Direct Ltd ,100086-101 ,863.72,
DFID,DFID,07/04/2017,Aid Programme - Pooled/Basket funding ,East and Central Africa ,Kenya Markets Trust ,202698-111 ,"4,899,027.00",
DFID,DFID,18/04/2017,Aid Programme - Accountable Grant Payments ,Research and Evidence Division ,Grand Challenges Canada ,203486-103 ,"1,171,070.00",
DFID,DFID,07/04/2017,Aid Programme - Voluntary contributions ,International Relations Division ,Faculdades Católicas ,203707-102 ,"7,889.20",
DFID,DFID,05/04/2017,Research and development costs - supplier services ,Research and Evidence Division ,The Sustainability Institute Trust ,204584-117 ,"8,750.00",
DFID,DFID,03/04/2017,Aid Programme - Joint programme contribution ,West and Southern Africa ,Deutsche Gesellschaft für Internationale Zusammenarbeit (GIZ) GmbH ,203824-101 ,"70,000.00",
DFID,DFID,12/04/2017,Training - Course Fees ,Research and Evidence Division ,Partnership for African Social & Governance Research Inc. ,202392-111 ,"2,728.00",
DFID,DFID,26/04/2017,Project delivery costs – supplier services ,Asia  Caribbean and Overseas Territories ,Supplier Name withheld ,202112-103 ,"43,171.75",
DFID,DFID,06/04/2017,Hotels - Accommodation only ,Policy Division ,Golden Jubilee Limited (USD) ,100191-101 ,719.42,
DFID,DFID,07/04/2017,Computer Consumables ,Human Resources ,XMA Limited ,100268-101 ,"4,795.20",
DFID,DFID,10/04/2017,Aid Programme - Voluntary contributions ,Policy Division ,Aids Fonds - STOP AIDS NOW! - Soa Aids Nederland ,203325-101 ,"437,500.00",
DFID,DFID,28/04/2017,Computer software maintenance ,Internal Audit ,GoPro Consulting Ltd ,100121-101 ,839.70,
DFID,DFID,03/04/2017,Computer software maintenance ,Internal Audit ,GoPro Consulting Ltd ,100121-101 ,"26,382.00",Annual maintenance and support costs for DFIDs Internal audit management system for 2017
DFID,DFID,27/04/2017,Aid Programme - Accountable Grant Payments ,West and Southern Africa ,THET Zambia ,203543-102 ,"71,254.00",
DFID,DFID,26/04/2017,Aid Programme - Other Financial Aid to Government ,Asia  Caribbean and Overseas Territories ,Maternal Newborn and Child Health Programme  Pakistan ,202488-102 ,"4,613,333.00",
DFID,DFID,28/04/2017,Aid Programme - Other Financial Aid to Government ,Asia  Caribbean and Overseas Territories ,Maternal Newborn and Child Health Programme  Pakistan ,202488-103 ,"3,562,777.00",
DFID,DFID,26/04/2017,Aid Programme - Other Financial Aid to Government ,East and Central Africa ,MINISTRY OF HEALTH  RWANDA ,203639-101 ,"700,000.00",
DFID,DFID,24/04/2017,Project delivery costs – supplier services ,Policy Division ,South African Medical Research Council ,203709-110 ,"1,039,797.00",
DFID,DFID,13/04/2017,Project delivery costs – supplier services ,Policy Division ,South African Medical Research Council ,203709-110 ,"267,048.00",
DFID,DFID,20/04/2017,Project delivery costs – supplier services ,Asia  Caribbean and Overseas Territories ,British Council Burma ,203601-113 ,"281,200.95",
DFID,DFID,26/04/2017,Aid Programme - Other Financial Aid to Government ,Asia  Caribbean and Overseas Territories ,Ministry of Finance and Planning Jamaica  Financial Investigation Division ,204232-102 ,"20,000.00",
DFID,DFID,25/04/2017,Project delivery costs – supplier services ,Asia  Caribbean and Overseas Territories ,Center for Project Supervision and Management  Ministry of Health ,202708-103 ,"365,970.65",
DFID,DFID,18/04/2017,Aid Programme - Accountable Grant Payments ,Conflict  Humanitarian  Security & Stabilisation Division ,Catholic Relief Services - USCCB ,300264-104 ,"1,535,965.00",
DFID,DFID,28/04/2017,Air fares ,Asia  Caribbean and Overseas Territories ,dnata International Private Ltd. ,205258-102 ,613.90,
DFID,DFID,27/04/2017,Air fares ,Asia  Caribbean and Overseas Territories ,dnata International Private Ltd. ,204053-101 ,930.27,
DFID,DFID,27/04/2017,Air fares ,Asia  Caribbean and Overseas Territories ,dnata International Private Ltd. ,204053-101 ,514.96,
DFID,DFID,20/04/2017,Aid Programme - Joint programme contribution ,Asia  Caribbean and Overseas Territories ,UNDP Multi-Partner Trust Fund Office ,204603-113 ,"1,333,333.00",
DFID,DFID,20/04/2017,Aid Programme - Joint programme contribution ,Asia  Caribbean and Overseas Territories ,UNDP Multi-Partner Trust Fund Office ,204603-118 ,"666,667.00",
DFID,DFID,12/04/2017,Aid Programme - Trust Funds contributions ,Policy Division ,UNDP Multi-Partner Trust Fund Office ,300311-102 ,"1,000,000.00",
DFID,DFID,28/04/2017,Aid Programme - Humanitarian Material Relief Assistance and Services ,East and Central Africa ,UNDP Multi-Partner Trust Fund Office ,205286-103 ,"2,500,000.00",
DFID,DFID,12/04/2017,Subscriptions ,Communications Division ,Intelogy Limited ,100197-101 ,"4,032.00",
DFID,DFID,13/04/2017,Aid Programme - Accountable Grant Payments ,West and Southern Africa ,Christian Health Association of Ghana (CHAG) ,203536-104 ,"461,055.85",
DFID,DFID,25/04/2017,Project delivery costs – supplier services ,West and Southern Africa ,Imperial Health Sciences ,202214-108 ,"72,164.40",
DFID,DFID,06/04/2017,Aid Programme - Other Financial Aid to Government ,West and Southern Africa ,Ministry of Finance  Ghana Health Sector Support Programme ,203536-110 ,"1,250,000.00",
DFID,DFID,04/04/2017,Project delivery costs – supplier services ,Conflict  Humanitarian  Security & Stabilisation Division ,The Metropolitan Police Service ,300042-102 ,"75,000.00",
DFID,DFID,05/04/2017,Project delivery costs – supplier services ,Conflict  Humanitarian  Security & Stabilisation Division ,The Metropolitan Police Service ,300042-103 ,"14,266.00",
DFID,DFID,21/04/2017,Project delivery costs – supplier services ,West and Southern Africa ,ICC Moçambique  Lda ,204179-107 ,"2,478.58",
DFID,DFID,07/04/2017,Project delivery costs – supplier services ,Business Solutions Division Level ,eSynergy Solutions Ltd ,200001-101 ,"14,790.00",
DFID,DFID,07/04/2017,Aid Programme - Accountable Grant Payments ,Asia  Caribbean and Overseas Territories ,Infrastructure Development Company Limited (IDCOL) ,202976-107 ,"468,801.00",
DFID,DFID,04/04/2017,Aid Programme - Core contributions ,Research and Evidence Division ,The Innovative Vector Control Consortium ,204076-103 ,"952,000.00",
DFID,DFID,07/04/2017,Aid Programme - Humanitarian Material Relief Assistance and Services ,East and Central Africa ,CANADEM ,205256-108 ,"13,162.23",
DFID,DFID,25/04/2017,Project delivery costs – supplier services ,West and Southern Africa ,CANADEM ,300298-107 ,"20,149.62",
DFID,DFID,11/04/2017,Aid Programme - Accountable Grant Payments ,Conflict  Humanitarian  Security & Stabilisation Division ,CANADEM ,300334-101 ,"24,877.98",
DFID,DFID,19/04/2017,Aid Programme - Accountable Grant Payments ,East and Central Africa ,CANADEM ,205256-104 ,"9,396.34",
DFID,DFID,21/04/2017,Aid Programme - Humanitarian Material Relief Assistance and Services ,East and Central Africa ,CANADEM ,205256-104 ,"11,644.78",
DFID,DFID,21/04/2017,Project delivery costs – supplier services ,East and Central Africa ,CANADEM ,205256-104 ,"7,131.53",
DFID,DFID,26/04/2017,Aid Programme - Accountable Grant Payments ,Conflict  Humanitarian  Security & Stabilisation Division ,CANADEM ,300334-101 ,"9,149.67",
DFID,DFID,26/04/2017,Aid Programme - Accountable Grant Payments ,Conflict  Humanitarian  Security & Stabilisation Division ,CANADEM ,300334-101 ,"16,975.50",
DFID,DFID,19/04/2017,Aid Programme - Accountable Grant Payments ,East and Central Africa ,CANADEM ,205256-104 ,"11,595.76",
DFID,DFID,07/04/2017,Aid Programme - Humanitarian Material Relief Assistance and Services ,Middle East and North Africa Division ,CANADEM ,205094-104 ,"8,181.00",
DFID,DFID,26/04/2017,Project delivery costs – supplier services ,Middle East and North Africa Division ,CANADEM ,205137-103 ,"23,433.94",
DFID,DFID,21/04/2017,Aid Programme - Humanitarian Material Relief Assistance and Services ,East and Central Africa ,CANADEM ,205256-104 ,"7,667.19",
DFID,DFID,26/04/2017,Project delivery costs – supplier services ,East and Central Africa ,CANADEM ,205256-104 ,"11,143.76",
DFID,DFID,28/04/2017,Aid Programme - Accountable Grant Payments ,Conflict  Humanitarian  Security & Stabilisation Division ,CANADEM ,300334-101 ,"21,511.09",
DFID,DFID,27/04/2017,Air fares ,East and Central Africa ,Supplier Name withheld ,204964-102 ,"3,305.55",
DFID,DFID,06/04/2017,Project delivery costs – supplier services ,West and Southern Africa ,RENAN CONSULT LTD ,204918-101 ,"4,257.38",
DFID,DFID,18/04/2017,Aid Programme - Accountable Grant Payments ,East and Central Africa ,International NGO Safety Organisation ,203462-118 ,"71,253.00",
DFID,DFID,04/04/2017,Data Network - land lines ,Business Solutions Division Level ,Keltec Ltd ,200002-124 ,"1,125.00",
DFID,DFID,10/04/2017,Project delivery costs – supplier services ,Research and Evidence Division ,Havas People ,203874-103 ,"3,657.61",
DFID,DFID,10/04/2017,Project delivery costs – supplier services ,Research and Evidence Division ,Havas People ,202348-103 ,"3,657.60",
DFID,DFID,18/04/2017,Aid Programme - Voluntary contributions ,East and Central Africa ,World Bank - IBRD ,205065-105 ,"200,000.00",
DFID,DFID,20/04/2017,Aid Programme - Trust Funds contributions ,Middle East and North Africa Division ,World Bank - IBRD ,204906-105 ,"90,500.00",
DFID,DFID,20/04/2017,Aid Programme - Trust Funds contributions ,Middle East and North Africa Division ,World Bank - IBRD ,204906-105 ,"201,500.00",
DFID,DFID,26/04/2017,Aid Programme - Joint programme contribution ,East and Central Africa ,World Bank - IBRD ,204635-108 ,"355,000.00",
DFID,DFID,07/04/2017,Project delivery costs – supplier services ,West and Southern Africa ,Public Health England ,205182-101 ,"676,571.35",
DFID,DFID,06/04/2017,other information and communication technologies ,Business Solutions Division Level ,Kainos Software Limited ,200002-215 ,"4,906.67",
DFID,DFID,12/04/2017,other information and communication technologies ,Business Solutions Division Level ,Kainos Software Limited ,200002-228 ,"16,941.20",
DFID,DFID,26/04/2017,other information and communication technologies ,Business Solutions Division Level ,Kainos Software Limited ,200002-228 ,547.20,
DFID,DFID,11/04/2017,Project delivery costs – supplier services ,Policy Division ,NUI Galway ,203709-111 ,"252,547.22",
DFID,DFID,18/04/2017,Aid Programme - Accountable Grant Payments ,Research and Evidence Division ,NUI Galway ,204584-142 ,"48,500.00",
DFID,DFID,11/04/2017,Project delivery costs – supplier services ,Policy Division ,Gaiasoft ,203516-104 ,"19,570.00",
DFID,DFID,13/04/2017,Project delivery costs – supplier services ,Asia  Caribbean and Overseas Territories ,Scottish Police Authority ,204619-107 ,"36,758.00",
DFID,DFID,11/04/2017,Project delivery costs – supplier services ,Business Solutions Division Level ,Lockheed Martin ,200005-116 ,"1,497.00",
DFID,DFID,27/04/2017,Auditors Assurance Service ,Policy Division ,Stroz Friedberg ,202194-103 ,"342,558.07",
DFID,DFID,25/04/2017,Aid Programme - Accountable Grant Payments ,West and Southern Africa ,Zvitambo Institute for Maternal & Child Health Research ,201854-108 ,"7,400.00",
DFID,DFID,21/04/2017,Aid Programme - Accountable Grant Payments ,West and Southern Africa ,Policy & Legal Advocacy Centre ,203851-107 ,"172,843.00",
DFID,DFID,26/04/2017,Project delivery costs – supplier services ,Asia  Caribbean and Overseas Territories ,Galliford Try Infrastructure Limited ,203137-101 ,"142,091.00",
DFID,DFID,20/04/2017,Aid Programme - Voluntary contributions ,Asia  Caribbean and Overseas Territories ,UNOPS-HQ ,205268-101 ,"1,564,443.87",
DFID,DFID,28/04/2017,Aid Programme - Non Grant Financial contributions ,Research and Evidence Division ,Innovate UK - Technology Strategy Board ,205170-101 ,"123,933.98",
DFID,DFID,28/04/2017,Aid Programme - Non Grant Financial contributions ,Research and Evidence Division ,Innovate UK - Technology Strategy Board ,205170-101 ,"3,300.00",
DFID,DFID,11/04/2017,Aid Programme - Programme Contribution ,Research and Evidence Division ,Innovate UK - Technology Strategy Board ,204867-106 ,"130,682.92",
DFID,DFID,11/04/2017,Aid Programme - Programme Contribution ,Research and Evidence Division ,Innovate UK - Technology Strategy Board ,204867-106 ,"120,000.00",
DFID,DFID,27/04/2017,Aid Programme - Accountable Grant Payments ,Research and Evidence Division ,The British Academy ,203752-103 ,"31,881.10",
DFID,DFID,19/04/2017,Aid Programme - Humanitarian Material Relief Assistance and Services ,East and Central Africa ,European Commission GBP 8225 ,204439-101 ,"3,000,000.00",
DFID,DFID,19/04/2017,Aid Programme - Humanitarian Material Relief Assistance and Services ,East and Central Africa ,European Commission GBP 8225 ,204439-109 ,"8,000,000.00",
DFID,DFID,07/04/2017,Project delivery costs – supplier services ,Policy Division ,AECOM Professional Services ,201724-156 ,"20,329.67",
DFID,DFID,27/04/2017,DFID Purchased Relief Supplies ,West and Southern Africa ,AECOM Professional Services ,202584-108 ,"34,482.52",
DFID,DFID,03/04/2017,DFID Purchased Relief Supplies ,West and Southern Africa ,AECOM Professional Services ,202584-108 ,"69,951.84",
DFID,DFID,03/04/2017,Project delivery costs – supplier services ,West and Southern Africa ,AECOM Professional Services ,202584-108 ,"3,497.59",
DFID,DFID,26/04/2017,DFID Purchased Relief Supplies ,East and Central Africa ,AECOM Professional Services ,202900-107 ,"167,641.56",
DFID,DFID,27/04/2017,DFID Purchased Relief Supplies ,East and Central Africa ,AECOM Professional Services ,202900-110 ,"559,478.24",
DFID,DFID,27/04/2017,Project delivery costs – supplier services ,East and Central Africa ,AECOM Professional Services ,202900-110 ,"38,082.45",
DFID,DFID,04/04/2017,DFID Purchased Relief Supplies ,West and Southern Africa ,AECOM Professional Services ,300036-109 ,"433,599.32",
DFID,DFID,06/04/2017,Project delivery costs – supplier services ,Policy Division ,AECOM Professional Services ,201724-156 ,"1,213.25",
DFID,DFID,07/04/2017,Aid Programme - Accountable Grant Payments ,Asia  Caribbean and Overseas Territories ,Perkumpulan Dewan Bisnis Indonesia Untuk Pembangunan Berkelanjutan ,204623-107 ,"39,295.70",
DFID,DFID,10/04/2017,Project delivery costs – supplier services ,West and Southern Africa ,PRICEWATERHOUSECOOPERS  GHANA ,202476-101 ,"15,403.55",
DFID,DFID,27/04/2017,Fund monies to be managed and dispersed by the supplier ,Policy Division ,KPMG East Africa Limited ,202921-128 ,"3,003,562.00",
DFID,DFID,27/04/2017,Fund monies to be managed and dispersed by the supplier ,Policy Division ,KPMG East Africa Limited ,202921-127 ,"6,569,483.00",
DFID,DFID,18/04/2017,Aid Programme - Core contributions ,Policy Division ,Global Innovation Fund ,202604-102 ,"3,000,000.00",
DFID,DFID,11/04/2017,Project delivery costs – supplier services ,Research and Evidence Division ,Research Fish Ltd ,203094-104 ,"7,081.38",
DFID,DFID,24/04/2017,Recruitment costs ,Finance and Corporate Performance Division ,Livingston James ,202437-102 ,"3,000.00",
DFID,DFID,25/04/2017,Recruitment costs ,Finance and Corporate Performance Division ,Livingston James ,202437-102 ,"3,000.00",
DFID,DFID,26/04/2017,Aid Programme - Accountable Grant Payments ,Policy Division ,International Federation of Accountants ,204680-101 ,"22,884.00",
DFID,DFID,26/04/2017,Aid Programme - Accountable Grant Payments ,Economic Development Division ,Land Portal ,204252-118 ,"121,534.00",
DFID,DFID,04/04/2017,Project delivery costs – supplier services ,Asia  Caribbean and Overseas Territories ,Lochan & Company ,203224-105 ,"6,500.64",
DFID,DFID,19/04/2017,Hotels - Accommodation only ,East and Central Africa ,HRG Kenya (KES) ,101616-101 ,"1,441.83",
DFID,DFID,26/04/2017,Air fares ,East and Central Africa ,HRG Kenya (USD) ,101630-101 ,"1,799.53",
DFID,DFID,18/04/2017,Air fares ,East and Central Africa ,HRG Kenya (USD) ,101630-101 ,"3,007.62",
DFID,DFID,13/04/2017,Air fares ,East and Central Africa ,HRG Kenya (USD) ,101630-101 ,787.32,
DFID,DFID,13/04/2017,Air fares ,Research and Evidence Division ,HRG Kenya (USD) ,202392-107 ,"1,434.76",
DFID,DFID,18/04/2017,Air fares ,Research and Evidence Division ,HRG Kenya (USD) ,202392-111 ,561.51,
DFID,DFID,13/04/2017,Air fares ,East and Central Africa ,HRG Kenya (USD) ,101616-101 ,"1,863.99",
DFID,DFID,26/04/2017,Air fares ,East and Central Africa ,HRG Kenya (USD) ,101616-101 ,"1,451.81",
DFID,DFID,18/04/2017,Air fares ,East and Central Africa ,HRG Kenya (USD) ,101616-102 ,988.57,
DFID,DFID,26/04/2017,Air fares ,East and Central Africa ,HRG Kenya (USD) ,101616-102 ,972.04,
DFID,DFID,18/04/2017,Air fares ,West and Southern Africa ,HRG Kenya (USD) ,101638-101 ,782.95,
DFID,DFID,11/04/2017,Hotels - Accommodation only ,Research and Evidence Division ,Ascott Palace Ltd ,202392-106 ,587.07,
DFID,DFID,25/04/2017,Aid Programme - Accountable Grant Payments ,Economic Development Division ,Global Reporting Initiative ,203448-101 ,"116,072.00",
DFID,DFID,01/04/2017,Conferences  Seminars & Meeting/Event Resource ,Top Management Group ,cranfield conference centre ltd ,100232-104 ,"38,545.08",Strategic Planning conference attended by 98 senior civil servants for the period 17-19 January 2017
DFID,DFID,07/04/2017,Training - Course Fees ,West and Southern Africa ,ALLIANCE FRANCAISE BORDEAUX AQUITAINE ,101610-101 ,"1,281.88",
DFID,DFID,21/04/2017,Aid Programme - Accountable Grant Payments ,Asia  Caribbean and Overseas Territories ,Proximity Designs ,203601-117 ,"70,802.04",
DFID,DFID,04/04/2017,Aid Programme - Joint programme contribution ,Asia  Caribbean and Overseas Territories ,Asian Development Bank - PECP ,204358-103 ,"1,900,000.00",
DFID,DFID,04/04/2017,Aid Programme - Joint programme contribution ,Asia  Caribbean and Overseas Territories ,Asian Development Bank - PECP ,204358-107 ,"100,000.00",
DFID,DFID,26/04/2017,Aid Programme - Joint programme contribution ,Asia  Caribbean and Overseas Territories ,Asian Development Bank - PECP ,204358-103 ,"9,700,000.00",
DFID,DFID,21/04/2017,Aid Programme - Partnership Programme Arrangements ,Asia  Caribbean and Overseas Territories ,Development Research Center of the State Council of China ,204737-101 ,"101,351.40",
DFID,DFID,25/04/2017,other information and communication technologies ,Business Solutions Division Level ,Zimmerman & Zimmerman ,200005-122 ,"21,000.00",
DFID,DFID,25/04/2017,other information and communication technologies ,Business Solutions Division Level ,Zimmerman & Zimmerman ,200005-122 ,"7,800.00",
DFID,DFID,12/04/2017,Hotels - Accommodation only ,West and Southern Africa ,UMODZI PARKS AND RESORTS ,101618-101 ,"1,559.21",
DFID,DFID,12/04/2017,Hotels - Accommodation only ,West and Southern Africa ,UMODZI PARKS AND RESORTS ,101618-101 ,"1,761.70",
DFID,DFID,03/04/2017,Project delivery costs – supplier services ,Business Solutions Division Level ,Code iT Recruitment Limited ,200002-229 ,"7,650.00",
DFID,DFID,20/04/2017,Project delivery costs – supplier services ,West and Southern Africa ,G4S Risk Management Ltd ,205182-104 ,"340,024.93",
DFID,DFID,04/04/2017,Aid Programme - Voluntary contributions ,Economic Development Division ,FSD Africa ,205238-101 ,"400,275.00",
DFID,DFID,06/04/2017,Recruitment costs ,Finance and Corporate Performance Division ,Crown Commercial Service ,100201-101 ,"9,180.00",
DFID,DFID,27/04/2017,Computer Software Licenses ,Business Solutions Division Level ,Concentra Consulting Limited ,200005-141 ,"99,360.00",
DFID,DFID,07/04/2017,Computer software maintenance ,Group Operations ,Concentra Consulting Limited ,204999-105 ,"7,200.00",
DFID,DFID,04/04/2017,Project delivery costs – supplier services ,East and Central Africa ,YUSUPH BALOZI HIJA ,204033-105 ,657.10,
DFID,DFID,13/04/2017,Aid Programme - Other Financial Aid to Government ,East and Central Africa ,Ministry of Finance  BRN Education ,204288-106 ,"446,000.00",
DFID,DFID,19/04/2017,Fund monies to be managed and dispersed by the supplier ,Policy Division ,Palladium - Client Bank Account ,202745-104 ,"216,428.77",
DFID,DFID,11/04/2017,Aid Programme - Accountable Grant Payments ,Asia  Caribbean and Overseas Territories ,Supplier Name withheld ,201000-116 ,"39,535.61",
DFID,DFID,21/04/2017,Aid Programme - Accountable Grant Payments ,Asia  Caribbean and Overseas Territories ,Supplier Name withheld ,201000-115 ,"55,253.70",
DFID,DFID,24/04/2017,Aid Programme - Accountable Grant Payments ,Asia  Caribbean and Overseas Territories ,Supplier Name withheld ,201000-115 ,"42,458.11",
DFID,DFID,13/04/2017,Hotels - Accommodation only ,Asia  Caribbean and Overseas Territories ,Recipient name withheld ,203842-103 ,749.44,
DFID,DFID,13/04/2017,Air fares ,Asia  Caribbean and Overseas Territories ,Recipient name withheld ,203842-103 ,"1,140.78",
DFID,DFID,24/04/2017,Project delivery costs – supplier services ,Economic Development Division ,Cadasta Foundation ,204252-116 ,"272,773.00",
DFID,DFID,25/04/2017,Aid Programme - Humanitarian Material Relief Assistance and Services ,West and Southern Africa ,The UN World Food Programme ,300298-103 ,"743,609.00",
DFID,DFID,25/04/2017,Aid Programme - Humanitarian Material Relief Assistance and Services ,West and Southern Africa ,The UN World Food Programme ,203981-107 ,"2,000,000.00",
DFID,DFID,11/04/2017,Fund monies to be managed and dispersed by the supplier ,Policy Division ,MannionDaniels UK AID Direct ,202035-101 ,"34,918.47",
DFID,DFID,11/04/2017,Fund monies to be managed and dispersed by the supplier ,Policy Division ,MannionDaniels UK AID Direct ,202035-101 ,"24,010.09",
DFID,DFID,11/04/2017,Fund monies to be managed and dispersed by the supplier ,Policy Division ,MannionDaniels UK AID Direct ,202035-101 ,"4,193.19",
DFID,DFID,24/04/2017,Project delivery costs – supplier services ,Middle East and North Africa Division ,ARK Group DMCC ,300054-101 ,"111,796.15",
DFID,DFID,07/04/2017,Project delivery costs – supplier services ,Middle East and North Africa Division ,ARK Group DMCC ,300054-101 ,"423,503.84",
DFID,DFID,07/04/2017,Project delivery costs – supplier services ,Middle East and North Africa Division ,ARK Group DMCC ,300054-101 ,"70,999.51",
DFID,DFID,24/04/2017,Project delivery costs – supplier services ,Middle East and North Africa Division ,ARK Group DMCC ,300054-101 ,"111,496.16",
DFID,DFID,12/04/2017,Project delivery costs – supplier services ,West and Southern Africa ,ISAT (GBP) ,205182-108 ,"76,047.47",
DFID,DFID,06/04/2017,Computer software maintenance ,Business Solutions Division Level ,Brandworkz ,200002-196 ,"5,000.00",
DFID,DFID,24/04/2017,Project delivery costs – supplier services ,Middle East and North Africa Division ,Management Plus ,300060-102 ,"6,281.47",
DFID,DFID,05/04/2017,Project delivery costs – supplier services ,Research and Evidence Division ,Caerus Capital LLC ,203339-105 ,"80,000.00",
DFID,DFID,24/04/2017,Aid Programme - Accountable Grant Payments ,Asia  Caribbean and Overseas Territories ,Supplier Name withheld ,201000-118 ,"121,066.28",
DFID,DFID,03/04/2017,Computer software maintenance ,Business Solutions Division Level ,COMPAREX UK Ltd ,200002-206 ,"11,367.71",
DFID,DFID,11/04/2017,Aid Programme - Humanitarian Material Relief Assistance and Services ,Asia  Caribbean and Overseas Territories ,Supplier Name withheld ,203904-106 ,"34,094.27",
DFID,DFID,18/04/2017,Computer hardware maintenance ,Business Solutions Division Level ,Park Place Technologies Computer-Computer Ltd ,200002-224 ,"26,761.78",Annual core network maintenance support costs for DFID HQ networks for  the period  April 2017 to March 2018 
DFID,DFID,10/04/2017,Computer hardware maintenance ,Business Solutions Division Level ,Maindec Computer Solutions ,200002-113 ,"112,177.42",Annual server hardware maintenance contract for DFID core systems for the period  April  2017 - March 2018
DFID,DFID,10/04/2017,Oil - Other Utilities ,West and Southern Africa ,MASSI VISION BUSINESS ENTERPRESIS ,101622-108 ,"2,779.31",
DFID,DFID,10/04/2017,Oil - Other Utilities ,West and Southern Africa ,MASSI VISION BUSINESS ENTERPRESIS ,100152-117 ,"1,135.21",
DFID,DFID,13/04/2017,Project delivery costs – supplier services ,East and Central Africa ,The Writing Company Service PLC ,204957-102 ,"18,614.10",
DFID,DFID,18/04/2017,Research and development costs - supplier services ,Research and Evidence Division ,Trustees of Boston University  BUMC ,204584-131 ,"42,252.36",
DFID,DFID,20/04/2017,Aid Programme - Accountable Grant Payments ,West and Southern Africa ,ZAMBIAN FINANCIAL SECTOR DEEPENING LIMITED ,203000-105 ,"1,544,790.00",
DFID,DFID,07/04/2017,Training - Travel & Subsistence ,Asia  Caribbean and Overseas Territories ,Recipient name withheld ,204857-102 ,"2,010.50",
DFID,DFID,24/04/2017,Aid Programme - Core contributions ,Asia  Caribbean and Overseas Territories ,Indonesia Climate Change Trust Fund ,204623-105 ,"660,965.00",
DFID,DFID,26/04/2017,Aid Programme - Accountable Grant Payments ,Policy Division ,Railway Children ,203559-153 ,"71,376.00",
DFID,DFID,11/04/2017,Project delivery costs – supplier services ,East and Central Africa ,McKinsey and Company Inc East Africa Pty Ltd ,204635-102 ,"357,535.00",
DFID,DFID,11/04/2017,Project delivery costs – supplier services ,East and Central Africa ,McKinsey and Company Inc East Africa Pty Ltd ,204635-102 ,"1,103,252.00",
DFID,DFID,11/04/2017,Project delivery costs – supplier services ,East and Central Africa ,McKinsey and Company Inc East Africa Pty Ltd ,204635-102 ,"114,922.13",
DFID,DFID,11/04/2017,Project delivery costs – supplier services ,East and Central Africa ,McKinsey and Company Inc East Africa Pty Ltd ,204635-102 ,"56,751.67",
DFID,DFID,11/04/2017,Project delivery costs – supplier services ,East and Central Africa ,McKinsey and Company Inc East Africa Pty Ltd ,204635-102 ,"735,501.60",
DFID,DFID,11/04/2017,Project delivery costs – supplier services ,East and Central Africa ,McKinsey and Company Inc East Africa Pty Ltd ,204635-102 ,"612,918.00",
